﻿Service,Expense type,Merchant Name,Expense Invoice Date,Total Expense
16+ INDEPENDENCE SERVICE (LEAVING CARE),Domestic Goods-Other,CURRYS ONLINE,01-Apr-2020,828.98
CAMPAIGNS & COMMUNICATIONS,IT Services,NATIONBUILDER,01-Apr-2020,182.90
CAMPAIGNS & COMMUNICATIONS,IT Software-Customised,WINSERVE2902814,01-Apr-2020,19.18
CAMPAIGNS & COMMUNICATIONS,IT Software-Customised,WINSERVE2903093,01-Apr-2020,8.40
CHILDREN LOOKED AFTER,Domestic Goods-Other,Yougotagift.com LTD,01-Apr-2020,66.76
CHILDREN LOOKED AFTER,Furniture-Domestic Furniture,WWW.IKEA.COM,01-Apr-2020,383.00
EARLY HELP,Consultancy-Business,CS* TESCO STORES GC,01-Apr-2020,"1,000.00"
EARLY HELP,Taxi Fares,WWW.ADDISONLEE.COM,01-Apr-2020,44.50
MH SERVICES,Legal Services-Other,HMCOURTS-SERVICE.G,01-Apr-2020,150.00
PUBLIC PROTECTION & REGULATORY SERVICES,Catering Food & Drink,ADEXA DIRECT,01-Apr-2020,"3,074.76"
PUBLIC PROTECTION & REGULATORY SERVICES,Domestic Goods-Other,AMZNMktplace,01-Apr-2020,28.99
REGISTRAR SERVICES,Domestic Goods-Other,AMAZON.CO.UK,01-Apr-2020,6.54
16+ INDEPENDENCE SERVICE (LEAVING CARE),Domestic Goods-Other,Yougotagift.com LTD,02-Apr-2020,22.22
16+ INDEPENDENCE SERVICE (LEAVING CARE),Furniture-Domestic Furniture,WAYFAIR,02-Apr-2020,991.77
16+ INDEPENDENCE SERVICE (LEAVING CARE),Travel/Subsistence,OYSTER BUS AUTOLOAD,02-Apr-2020,20.00
CAMPAIGNS & COMMUNICATIONS,IT Services,GOOGLE,02-Apr-2020,20.70
DEMOCRATIC SERVICES,Accommodation,CASH ADVANCE FEE,02-Apr-2020,13.87
DEMOCRATIC SERVICES,Accommodation,Wix.com,02-Apr-2020,122.40
FAMILY SUPPORT & CHILD PROTECTION,Domestic Goods-Other,ARGOS LTD,02-Apr-2020,29.99
FOSTERING & PERMANENCY,Accommodation,Hotel on Booking.com,02-Apr-2020,-267.30
HOUSING MANAGEMENT SERVICES,Building-General,PENNY SAVERS,02-Apr-2020,354.40
PUBLIC PROTECTION & REGULATORY SERVICES,Domestic Goods-Other,AMZNMktplace,02-Apr-2020,244.76
16+ INDEPENDENCE SERVICE (LEAVING CARE),Domestic Goods-Other,ARGOS LTD,03-Apr-2020,-45.00
16+ INDEPENDENCE SERVICE (LEAVING CARE),Domestic Goods-Other,Yougotagift.com LTD,03-Apr-2020,22.48
16+ INDEPENDENCE SERVICE (LEAVING CARE),Travel/Subsistence,OYSTER AUTO-TOP UP,03-Apr-2020,20.00
BEREAVEMENT SERVICES,Cemetery & Crematorium,SAFE.CO.UK,03-Apr-2020,109.22
BUSINESS IMPROVEMENT,Conference Expenses,EB *WORKSHOPS ARE BEAU,03-Apr-2020,-150.00
CAMPAIGNS & COMMUNICATIONS,IT Services,NATIONBUILDER,03-Apr-2020,100.39
CHILDREN LOOKED AFTER,Domestic Goods-Other,Yougotagift.com LTD,03-Apr-2020,67.42
CORPORATE COMPLAINTS,IT Services,AWS EMEA,03-Apr-2020,147.80
HOUSING MANAGEMENT SERVICES,Building-General,PENNY SAVERS,03-Apr-2020,249.70
HOUSING MANAGEMENT SERVICES,Education-Library Books,AMZN Mktp UK,03-Apr-2020,71.76
MH SERVICES,Legal Services-Other,HMCOURTS-SERVICE.G,03-Apr-2020,225.00
PARKS & LEISURE SERVICES,Building-General,SCREWFIX DIRECT,03-Apr-2020,44.30
PENSIONS SERVICES,Financial Services,GEN REGISTER OFFICE,03-Apr-2020,-33.00
PENSIONS SERVICES,Financial Services,GEN REGISTER OFFICE,03-Apr-2020,-11.00
PENSIONS SERVICES,Financial Services,GEN REGISTER OFFICE,03-Apr-2020,231.00
PUBLIC PROTECTION & REGULATORY SERVICES,Healthcare-Drugs,BROCKWELL PARK PHARMACY,03-Apr-2020,"2,547.00"
QUALITY ASSURANCE AND PERFORMANCE,Facilities-Market Research,Amazon Prime,03-Apr-2020,-7.99
CAMPAIGNS & COMMUNICATIONS,IT Services,BUZZSUMO.COM PRO,04-Apr-2020,100.22
FAMILY SUPPORT & CHILD PROTECTION,Domestic Goods-Other,ARGOS LTD,04-Apr-2020,-90.00
PUBLIC PROTECTION & REGULATORY SERVICES,Catering Food & Drink,LA OREGANO PIZZA,04-Apr-2020,145.00
PUBLIC PROTECTION & REGULATORY SERVICES,Domestic Goods-Other,WWW.ALBERT-HARRISON.CO,04-Apr-2020,302.64
16+ INDEPENDENCE SERVICE (LEAVING CARE),Domestic Goods-Other,ARGOS LTD,05-Apr-2020,-90.00
BEREAVEMENT SERVICES,Catering Food & Drink,AMZNMktplace,05-Apr-2020,181.36
FAMILY SUPPORT & CHILD PROTECTION,Travel/Subsistence,OYSTER BUS AUTOLOAD,05-Apr-2020,20.00
PUBLIC PROTECTION & REGULATORY SERVICES,Domestic Goods-Other,AMZNMktplace,05-Apr-2020,504.89
BEREAVEMENT SERVICES,Cemetery & Crematorium,AMZNMKTPLACE AMAZON.CO.UK,06-Apr-2020,15.98
CAMPAIGNS & COMMUNICATIONS,IT Software-Customised,WINSERVE2911277,06-Apr-2020,35.99
CHILDREN LOOKED AFTER,Domestic Goods-Other,Yougotagift.com LTD,06-Apr-2020,56.20
DEMOCRATIC SERVICES,Financial Services,LOYD - 18 ACRE LANE,06-Apr-2020,500.00
EARLY HELP,Taxi Fares,ADDISON LEE EXTRA,06-Apr-2020,2.40
FAMILY SUPPORT & CHILD PROTECTION,Domestic Goods-Other,ARGOS LTD,06-Apr-2020,-90.00
FOSTERING & PERMANENCY,Horticultural-Other,WWW.PRESTIGEFLOWERS.CO.U,06-Apr-2020,33.29
HOUSING MANAGEMENT SERVICES,Building-General,PENNY SAVERS,06-Apr-2020,249.60
HOUSING MANAGEMENT SERVICES,Facilities-Market Research,Amazon Prime,06-Apr-2020,7.99
HOUSING OPTIONS - GF,Furniture-Domestic Furniture,WWW.IKEA.COM,06-Apr-2020,273.00
MH SERVICES,Domestic Goods-Other,ARGOS LTD,06-Apr-2020,887.96
PUBLIC PROTECTION & REGULATORY SERVICES,Domestic Goods-Other,WWW.ALBERT-HARRISON.CO,06-Apr-2020,340.38
PUBLIC PROTECTION & REGULATORY SERVICES,Stationery,ESEDIRECT.CO.UK,06-Apr-2020,"1,779.49"
PUBLIC PROTECTION & REGULATORY SERVICES,Works-Construction/Materials,MULTIMATTS LTD,06-Apr-2020,"1,231.20"
SUBSTANCE MISUSE,Domestic Goods-Other,AMZNMktplace,06-Apr-2020,29.98
16+ INDEPENDENCE SERVICE (LEAVING CARE),Domestic Goods-Other,ARGOS LTD,07-Apr-2020,-100.00
16+ INDEPENDENCE SERVICE (LEAVING CARE),Domestic Goods-Other,Yougotagift.com LTD,07-Apr-2020,124.05
BEREAVEMENT SERVICES,Domestic Goods-Other,AMZNMktplace,07-Apr-2020,11.99
EMERGENCY PLANNING,Building-Others,WWW.ARCO.CO.UK,07-Apr-2020,-198.75
EMERGENCY PLANNING,Domestic Goods-Other,AMZNMKTPLACE AMAZON.CO.UK,07-Apr-2020,-27.79
EMERGENCY PLANNING,Domestic Goods-Other,AMZNMKTPLACE AMAZON.CO.UK,07-Apr-2020,-37.99
FAMILY SUPPORT & CHILD PROTECTION,Domestic Goods-Other,Yougotagift.com LTD,07-Apr-2020,112.79
HOUSING OPTIONS - GF,Domestic Goods-Other,WWW.JOHNLEWIS.COM,07-Apr-2020,77.95
HOUSING OPTIONS - GF,Furniture-Domestic Furniture,ARGOS LTD,07-Apr-2020,256.93
LAMBETH WORKING S106,Environmental-Pest Control,PAYPAL,07-Apr-2020,46.11
MH SERVICES,Domestic Goods-Other,ARGOS LTD,07-Apr-2020,458.98
16+ INDEPENDENCE SERVICE (LEAVING CARE),Domestic Goods-Other,Yougotagift.com LTD,08-Apr-2020,39.07
ACCESS & ASSESSMENTS,Travel/Subsistence,OYSTER BUS AUTOLOAD,08-Apr-2020,20.00
BEREAVEMENT SERVICES,Cemetery & Crematorium,AMZNMktplace,08-Apr-2020,109.01
CAMPAIGNS & COMMUNICATIONS,Facilities-Design & Photography,iStock.com,08-Apr-2020,900.00
CHILDREN LOOKED AFTER,Domestic Goods-Other,MANOMANO,08-Apr-2020,187.95
DEMOCRATIC SERVICES,Financial Services,HSBC/BRIXTON RD E2,08-Apr-2020,500.00
DSG HIGH NEEDS BLOCK,Facilities-Printing,Amazon.co.uk,08-Apr-2020,55.67
HOUSING MANAGEMENT SERVICES,Domestic Goods-Other,AMAZON.CO.UK,08-Apr-2020,54.00
HOUSING OPTIONS - GF,Books/Publications/Resources,WHICH,08-Apr-2020,11.75
MH SERVICES,Legal Services-Other,HMCOURTS-SERVICE.G,08-Apr-2020,150.00
PARKS & LEISURE SERVICES,Building-Paint,LEYLAND SDM,08-Apr-2020,64.34
QUALITY ASSURANCE AND PERFORMANCE,Travel/Subsistence,TRAINLINE,08-Apr-2020,-58.30
16+ INDEPENDENCE SERVICE (LEAVING CARE),Domestic Goods-Other,Yougotagift.com LTD,09-Apr-2020,33.29
16+ INDEPENDENCE SERVICE (LEAVING CARE),Domestic Goods-Other,Yougotagift.com LTD,09-Apr-2020,66.60
ACCESS & ASSESSMENTS,Catering Food & Drink,MARKS&SPENCER PLC,09-Apr-2020,95.00
CHILDREN LOOKED AFTER,Domestic Goods-Other,Yougotagift.com LTD,09-Apr-2020,133.16
CHILDREN WITH DISABILITIES,Domestic Goods-Other,ARGOS LTD,09-Apr-2020,327.87
CONTRACT MANAGEMENT,Facilities-Printing,CENTRAL SOURCE LTD,09-Apr-2020,233.50
CSC SENIOR MANAGEMENT,Furniture-Soft Furnishings,BLINDS 2 GO LTD,09-Apr-2020,120.93
DEMOCRATIC SERVICES,Accommodation,CASH ADVANCE FEE,09-Apr-2020,14.75
DSG EARLY YEARS BLOCK,Facilities-Printing,Amazon.co.uk,09-Apr-2020,"1,050.00"
EARLY HELP,Domestic Goods-Other,ARGOS LTD,09-Apr-2020,66.94
FAMILY SUPPORT & CHILD PROTECTION,Domestic Goods-Other,Yougotagift.com LTD,09-Apr-2020,66.60
FAMILY SUPPORT & CHILD PROTECTION,Financial Services,LOYD - 18 ACRE LANE,09-Apr-2020,110.00
FAMILY SUPPORT & CHILD PROTECTION,Travel/Subsistence,OYSTER BUS AUTOLOAD,09-Apr-2020,20.00
FOSTERING & PERMANENCY,Travel/Subsistence,OYSTER BUS AUTOLOAD,09-Apr-2020,20.00
PARKS & LEISURE SERVICES,Building-General,SCREWFIX DIRECT,09-Apr-2020,16.98
PARKS & LEISURE SERVICES,Consultancy-Business,G24LTD PARKING SOL,09-Apr-2020,60.00
PUBLIC PROTECTION & REGULATORY SERVICES,Banquet & Catering,BFS GROUP,09-Apr-2020,"2,905.93"
PUBLIC PROTECTION & REGULATORY SERVICES,Domestic Goods-Other,WWW.ALBERT-HARRISON.CO,09-Apr-2020,"1,593.53"
PUBLIC PROTECTION & REGULATORY SERVICES,Facilities-Market Research,ZOOM.GBP,09-Apr-2020,14.39
PUBLIC PROTECTION & REGULATORY SERVICES,Stationery,VIKING UK,09-Apr-2020,17.86
SHELTERED HOUSING,Domestic Goods-Other,AMZNMktplace,09-Apr-2020,182.70
SUBSTANCE MISUSE,Domestic Goods-Other,AMZ*Foktech direct,09-Apr-2020,-12.00
SUBSTANCE MISUSE,Domestic Goods-Other,AMZ*UKEASYY,09-Apr-2020,-13.99
16+ INDEPENDENCE SERVICE (LEAVING CARE),Domestic Goods-Other,Yougotagift.com LTD,10-Apr-2020,33.14
ASC SENIOR MANAGEMENT,Catering Food & Drink,PAYPAL,10-Apr-2020,"1,056.83"
ASC SENIOR MANAGEMENT,Financial Services,HSBC/BRIXTON RD E1,10-Apr-2020,500.00
EARLY HELP,Taxi Fares,UBER TRIP HELP.UBER.COM,10-Apr-2020,17.29
EARLY HELP,Taxi Fares,UBER TRIP HELP.UBER.COM,10-Apr-2020,15.59
FAMILY SUPPORT & CHILD PROTECTION,Accommodation,CASH ADVANCE FEE,10-Apr-2020,3.25
FAMILY SUPPORT & CHILD PROTECTION,Domestic Goods-Other,ARGOS LTD,10-Apr-2020,-449.98
FAMILY SUPPORT & CHILD PROTECTION,Education-Other,TUTORFUL* L-YAMKWO6B,10-Apr-2020,60.00
FAMILY SUPPORT & CHILD PROTECTION,Travel/Subsistence,OYSTER BUS AUTOLOAD,10-Apr-2020,20.00
FOSTERING & PERMANENCY,Domestic Goods-Other,Yougotagift.com LTD,10-Apr-2020,44.18
16+ INDEPENDENCE SERVICE (LEAVING CARE),Facilities-Market Research,Amazon Prime,11-Apr-2020,7.99
EARLY HELP,Taxi Fares,UBER TRIP HELP.UBER.COM,11-Apr-2020,17.37
EARLY HELP,Taxi Fares,UBER TRIP HELP.UBER.COM,11-Apr-2020,17.41
FAMILY SUPPORT & CHILD PROTECTION,Domestic Goods-Other,AMZNMktplace,11-Apr-2020,99.98
FAMILY SUPPORT & CHILD PROTECTION,Education-Other,TUTORFUL* L-X4P5LALX,11-Apr-2020,60.00
FAMILY SUPPORT & CHILD PROTECTION,Travel/Subsistence,OYSTER BUS AUTOLOAD,11-Apr-2020,20.00
PUBLIC PROTECTION & REGULATORY SERVICES,Catering Food & Drink,UberUK_EATS UBER EATS HEL,11-Apr-2020,136.80
PUBLIC PROTECTION & REGULATORY SERVICES,Domestic Goods-Other,WWW.ALBERT-HARRISON.CO,11-Apr-2020,202.86
SPECIALIST YOUTH,Public Transport,OYSTER BUS AUTOLOAD,11-Apr-2020,20.00
CHILDREN LOOKED AFTER,Travel/Subsistence,OYSTER BUS AUTOLOAD,12-Apr-2020,20.00
HOUSING MANAGEMENT SERVICES,Domestic Goods-Other,AMZNMktplace,13-Apr-2020,169.99
PUBLIC PROTECTION & REGULATORY SERVICES,Accommodation,CASH ADVANCE FEE,13-Apr-2020,14.75
SHELTERED HOUSING,Domestic Goods-Other,AMZNMKTPLACE AMAZON.CO.UK,13-Apr-2020,172.28
BEREAVEMENT SERVICES,Building-Timber,TP MITCHAM,14-Apr-2020,193.80
BEREAVEMENT SERVICES,Building-Timber,TP MITCHAM,14-Apr-2020,195.00
BEREAVEMENT SERVICES,Building-Timber,TP MITCHAM,14-Apr-2020,176.02
CHILDREN LOOKED AFTER,Domestic Goods-Other,Yougotagift.com LTD,14-Apr-2020,32.93
CHILDREN LOOKED AFTER,Domestic Goods-Other,Yougotagift.com LTD,14-Apr-2020,32.93
CSC SENIOR MANAGEMENT,Domestic Goods-Other,Yougotagift.com LTD,14-Apr-2020,32.93
DSG EARLY YEARS BLOCK,Domestic Goods-Other,AMAZON.CO.UK,14-Apr-2020,"1,000.00"
FAMILY SUPPORT & CHILD PROTECTION,Domestic Goods-Other,Yougotagift.com LTD,14-Apr-2020,175.65
FAMILY SUPPORT & CHILD PROTECTION,Domestic Goods-Other,Yougotagift.com LTD,14-Apr-2020,54.89
PUBLIC HEALTH - ADULTS,Travel/Subsistence,AVANTI WEST COAST,14-Apr-2020,-73.00
PUBLIC PROTECTION & REGULATORY SERVICES,Banquet & Catering,BFS GROUP,14-Apr-2020,"4,483.90"
PUBLIC PROTECTION & REGULATORY SERVICES,Catering Food & Drink,ADEXA DIRECT,14-Apr-2020,"1,424.40"
PUBLIC PROTECTION & REGULATORY SERVICES,Facilities-Market Research,WWW.NISBETS.COM,14-Apr-2020,93.43
RESIDENT ENGAGEMENT,IT Software,ZOOM.GBP,14-Apr-2020,14.39
SPECIALIST YOUTH,Public Transport,OYSTER BUS AUTOLOAD,14-Apr-2020,20.00
DSG EARLY YEARS BLOCK,Facilities-Printing,Amazon.co.uk,15-Apr-2020,"1,000.00"
EARLY HELP,Taxi Fares,UBER TRIP HELP.UBER.COM,15-Apr-2020,19.75
EARLY HELP,Taxi Fares,UBER TRIP HELP.UBER.COM,15-Apr-2020,12.18
EARLY HELP,Taxi Fares,UBER TRIP HELP.UBER.COM,15-Apr-2020,12.40
EARLY HELP,Taxi Fares,UBER TRIP HELP.UBER.COM,15-Apr-2020,6.00
EARLY HELP,Taxi Fares,UBER TRIP HELP.UBER.COM,15-Apr-2020,18.62
EARLY YEARS SERVICES,Facilities-Printing,CIRCLE OF SECURITY INT,15-Apr-2020,827.90
FAMILY SUPPORT & CHILD PROTECTION,Facilities-Printing,Amazon.co.uk,15-Apr-2020,104.47
FAMILY SUPPORT & CHILD PROTECTION,Travel/Subsistence,OYSTER ONLINE,15-Apr-2020,28.80
FAMILY SUPPORT & CHILD PROTECTION,Travel/Subsistence,OYSTER BUS AUTOLOAD,15-Apr-2020,20.00
FAMILY SUPPORT & CHILD PROTECTION,Travel/Subsistence,AUTO TOP-UP ARREARS,15-Apr-2020,20.00
HOUSING MANAGEMENT SERVICES,Building-General,PENNY SAVERS,15-Apr-2020,21.96
HOUSING MANAGEMENT SERVICES,Domestic Goods-Other,AMZNMktplace,15-Apr-2020,99.96
HOUSING MANAGEMENT SERVICES,Domestic Goods-Other,AMAZON.CO.UK AMAZON.CO.UK,15-Apr-2020,-54.00
MH SERVICES,Legal Services-Other,HMCOURTS-SERVICE.G,15-Apr-2020,75.00
PARKS & LEISURE SERVICES,Building-General,LANDSCAPE SUPPLY COMPA,15-Apr-2020,153.00
PARKS & LEISURE SERVICES,Building-General,SCREWFIX DIRECT,15-Apr-2020,193.98
PUBLIC PROTECTION & REGULATORY SERVICES,Catering Food & Drink,ADEXA DIRECT,15-Apr-2020,"1,287.84"
SCHOOL & EDUCATIONAL IMPROVEMENT SERVICE,Consultancy-Business,AWEBER COMMUNICATIONS,15-Apr-2020,8.30
16+ INDEPENDENCE SERVICE (LEAVING CARE),Domestic Goods-Other,Yougotagift.com LTD,16-Apr-2020,22.11
16+ INDEPENDENCE SERVICE (LEAVING CARE),Domestic Goods-Other,Yougotagift.com LTD,16-Apr-2020,66.34
ACCESS & ASSESSMENTS,Travel/Subsistence,OYSTER BUS AUTOLOAD,16-Apr-2020,20.00
ASC SENIOR MANAGEMENT,Banquet & Catering,BFS GROUP,16-Apr-2020,"6,059.98"
CHILDREN LOOKED AFTER,Domestic Goods-Other,Yougotagift.com LTD,16-Apr-2020,88.44
CHILDREN LOOKED AFTER,Domestic Goods-Other,Yougotagift.com LTD,16-Apr-2020,88.46
EARLY HELP,Taxi Fares,UBER TRIP HELP.UBER.COM,16-Apr-2020,19.25
EARLY HELP,Taxi Fares,UBER TRIP HELP.UBER.COM,16-Apr-2020,18.14
FAMILY SUPPORT & CHILD PROTECTION,Domestic Goods-Other,Yougotagift.com LTD,16-Apr-2020,33.17
FAMILY SUPPORT & CHILD PROTECTION,Domestic Goods-Other,Yougotagift.com LTD,16-Apr-2020,44.23
FAMILY SUPPORT & CHILD PROTECTION,Facilities-Printing,Amazon.co.uk,16-Apr-2020,99.00
FAMILY SUPPORT & CHILD PROTECTION,Financial Services,GEN REGISTER OFFICE,16-Apr-2020,35.00
MH SERVICES,Accommodation,PASHA HOTEL,16-Apr-2020,300.00
OT SERVICES,Domestic Goods-Other,ARGOS LTD,16-Apr-2020,245.47
OT SERVICES,Domestic Goods-Other,ARGOS LTD,16-Apr-2020,135.00
OT SERVICES,Domestic Goods-Other,ARGOS LTD,16-Apr-2020,168.00
OT SERVICES,Domestic Goods-Other,ARGOS LTD,16-Apr-2020,240.00
OT SERVICES,Domestic Goods-Other,ARGOS LTD,16-Apr-2020,194.93
PARKS & LEISURE SERVICES,Professional & Advisory Services,WWW.ICFM.COM,16-Apr-2020,60.00
PUBLIC PROTECTION & REGULATORY SERVICES,Catering Food & Drink,PAYPAL,16-Apr-2020,"1,214.59"
PUBLIC PROTECTION & REGULATORY SERVICES,IT Hardware,SHS HANDLING SOLUTIONS,16-Apr-2020,785.52
16+ INDEPENDENCE SERVICE (LEAVING CARE),Domestic Goods-Other,Yougotagift.com LTD,17-Apr-2020,33.17
16+ INDEPENDENCE SERVICE (LEAVING CARE),Domestic Goods-Other,ARGOS LTD,17-Apr-2020,33.94
16+ INDEPENDENCE SERVICE (LEAVING CARE),Horticultural-Seeds & Plants,CLAPHAM FLOWERS,17-Apr-2020,41.00
ACCESS & ASSESSMENTS,Travel/Subsistence,OYSTER BUS AUTOLOAD,17-Apr-2020,20.00
CAMPAIGNS & COMMUNICATIONS,Facilities-Design & Photography,CANVA* 02664-0954358,17-Apr-2020,10.75
CHILDREN LOOKED AFTER,Domestic Goods-Other,Yougotagift.com LTD,17-Apr-2020,33.17
CSC SENIOR MANAGEMENT,Travel/Subsistence,thetrainline.com,17-Apr-2020,319.69
EARLY HELP,Taxi Fares,UBER TRIP HELP.UBER.COM,17-Apr-2020,13.52
EARLY HELP,Taxi Fares,UBER TRIP HELP.UBER.COM,17-Apr-2020,20.30
EARLY HELP,Taxi Fares,UBER TRIP HELP.UBER.COM,17-Apr-2020,14.77
EARLY HELP,Taxi Fares,UBER TRIP HELP.UBER.COM,17-Apr-2020,5.42
EARLY HELP,Taxi Fares,UBER   *TRIP,17-Apr-2020,18.31
FAMILY SUPPORT & CHILD PROTECTION,Domestic Goods-Other,ARGOS LTD,17-Apr-2020,334.95
FAMILY SUPPORT & CHILD PROTECTION,Education-Other,TUTORFUL* L-B3GO5P4L,17-Apr-2020,60.00
FAMILY SUPPORT & CHILD PROTECTION,Facilities-Printing,Amazon.co.uk,17-Apr-2020,49.99
FAMILY SUPPORT & CHILD PROTECTION,Facilities-Printing,Amazon.co.uk,17-Apr-2020,49.99
LEGAL SERVICES,Stationery,WWW.DISCOUNTSTICKERPRI,17-Apr-2020,50.15
OT SERVICES,Domestic Goods-Other,ARGOS LTD,17-Apr-2020,990.92
OT SERVICES,Domestic Goods-Other,ARGOS LTD,17-Apr-2020,90.00
OT SERVICES,Domestic Goods-Other,ARGOS LTD,17-Apr-2020,249.95
OT SERVICES,Domestic Goods-Other,ARGOS LTD,17-Apr-2020,998.89
OT SERVICES,Domestic Goods-Other,ARGOS LTD,17-Apr-2020,875.97
OT SERVICES,Domestic Goods-Other,ARGOS LTD,17-Apr-2020,43.99
PARKING OPERATIONS,Stationery,WWW.POSTOFFICESHOP.CO.UK,17-Apr-2020,97.96
PUBLIC PROTECTION & REGULATORY SERVICES,Domestic Goods-Other,WWW.ALBERT-HARRISON.CO,17-Apr-2020,"1,149.12"
PUBLIC PROTECTION & REGULATORY SERVICES,Facilities-Printing,Amazon.co.uk,17-Apr-2020,22.18
RESIDENT ENGAGEMENT,IT Consumables,ARGOS LTD,17-Apr-2020,69.93
SCHOOL & EDUCATIONAL IMPROVEMENT SERVICE,Facilities-Advertising,FACEBK FA2K8SECE2,17-Apr-2020,622.33
16+ INDEPENDENCE SERVICE (LEAVING CARE),Travel/Subsistence,OYSTER AUTO TOPUP,18-Apr-2020,20.00
FAMILY SUPPORT & CHILD PROTECTION,Education-Other,TUTORFUL* L-YAGW5KMR,18-Apr-2020,60.00
FAMILY SUPPORT & CHILD PROTECTION,Domestic Goods-Other,AMAZON.CO.UK,19-Apr-2020,104.47
FAMILY SUPPORT & CHILD PROTECTION,Facilities-Printing,Amazon.co.uk,19-Apr-2020,299.94
SCHOOL & EDUCATIONAL IMPROVEMENT SERVICE,Facilities-Advertising,GOOGLE  ADS3485321156,19-Apr-2020,130.49
ASC SENIOR MANAGEMENT,Financial Services,HSBC/BRIXTON RD E2,20-Apr-2020,500.00
CAMPAIGNS & COMMUNICATIONS,IT Software,ADOBE CREATIVE CLOUD,20-Apr-2020,212.40
CSC SENIOR MANAGEMENT,Domestic Goods-Other,AMZNMktplace,20-Apr-2020,24.90
CSC SENIOR MANAGEMENT,Furniture-Soft Furnishings,www.247blinds.co.uk,20-Apr-2020,122.07
DSG EARLY YEARS BLOCK,Education-Toys,AMAZON.CO.UK,20-Apr-2020,"2,500.00"
DSG EARLY YEARS BLOCK,Education-Toys,Amazon.co.uk,20-Apr-2020,"1,000.00"
ENVIRONMENTAL SERVICES,Building-General,SCREWFIX DIRECT,20-Apr-2020,149.98
FAMILY SUPPORT & CHILD PROTECTION,Taxi Fares,IZ *AIR TAXIS SHEF,20-Apr-2020,340.00
FAMILY SUPPORT & CHILD PROTECTION,Travel/Subsistence,OYSTER BUS AUTOLOAD,20-Apr-2020,40.00
MH SERVICES,Consultancy-Business,POSTURITE LTD,20-Apr-2020,112.64
MH SERVICES,Legal Services-Other,HMCOURTS-SERVICE.G,20-Apr-2020,150.00
PARKS & LEISURE SERVICES,Building-Tools,KEYTRAK LOCK &,20-Apr-2020,110.34
PARKS & LEISURE SERVICES,Education-Library Books,NHBS LTD,20-Apr-2020,202.44
PUBLIC PROTECTION & REGULATORY SERVICES,Catering Food & Drink,CASA SIBILLA,20-Apr-2020,840.00
ACCESS & ASSESSMENTS,Catering Food & Drink,MARKS&SPENCER PLC,21-Apr-2020,35.00
ACCESS & ASSESSMENTS,Financial Services,GEN REGISTER OFFICE,21-Apr-2020,-63.00
ACCESS & ASSESSMENTS,Financial Services,GEN REGISTER OFFICE,21-Apr-2020,114.00
ASC SENIOR MANAGEMENT,Accommodation,CASH ADVANCE FEE,21-Apr-2020,14.75
CHILDREN LOOKED AFTER,Domestic Goods-Other,Yougotagift.com LTD,21-Apr-2020,212.81
CHILDREN LOOKED AFTER,Domestic Goods-Other,Yougotagift.com LTD,21-Apr-2020,33.60
DSG EARLY YEARS BLOCK,Education-Toys,AMAZON.CO.UK,21-Apr-2020,"1,500.00"
DSG EARLY YEARS BLOCK,Education-Toys,Amazon.co.uk,21-Apr-2020,"1,500.00"
DSG EARLY YEARS BLOCK,Education-Toys,Amazon.co.uk,21-Apr-2020,"1,500.00"
DSG EARLY YEARS BLOCK,Facilities-Printing,Amazon.co.uk,21-Apr-2020,"3,000.00"
FAMILY SUPPORT & CHILD PROTECTION,Domestic Goods-Other,Yougotagift.com LTD,21-Apr-2020,112.00
FAMILY SUPPORT & CHILD PROTECTION,Financial Services,GEN REGISTER OFFICE,21-Apr-2020,38.00
LAMBETH COUNTRY SHOW,Facilities-Advertising,PAYPAL,21-Apr-2020,8.36
OT SERVICES,Domestic Goods-Other,ARGOS LTD,21-Apr-2020,12.00
PARKS & LEISURE SERVICES,Consultancy-Business,WWW.PLANNINGPORTAL.CO.,21-Apr-2020,237.00
PARKS & LEISURE SERVICES,Consultancy-Business,WWW.PLANNINGPORTAL.CO.,21-Apr-2020,250.00
PUBLIC PROTECTION & REGULATORY SERVICES,Catering Food & Drink,IZ *PLANE TREE HOSPITALIT,21-Apr-2020,133.40
BEREAVEMENT SERVICES,Building-Timber,TP MITCHAM,22-Apr-2020,384.00
DSG EARLY YEARS BLOCK,Education-Toys,Amazon.co.uk,22-Apr-2020,"1,000.00"
EARLY HELP,Domestic Goods-Other,ARGOS LTD,22-Apr-2020,262.95
EARLY HELP,Furniture-Domestic Furniture,WWW.IKEA.COM,22-Apr-2020,754.00
FAMILY SUPPORT & CHILD PROTECTION,Domestic Goods-Other,ARGOS LTD,22-Apr-2020,259.99
FAMILY SUPPORT & CHILD PROTECTION,Financial Services,ROYAL BANK UK /,22-Apr-2020,60.00
MH SERVICES,Accommodation,PASHA HOTEL,22-Apr-2020,455.00
MH SERVICES,Legal Services-Other,HMCOURTS-SERVICE.G,22-Apr-2020,150.00
PARKS & LEISURE SERVICES,Building-General,SCREWFIX DIRECT,22-Apr-2020,104.98
PARKS & LEISURE SERVICES,Building-General,SCREWFIX DIRECT,22-Apr-2020,29.99
PUBLIC PROTECTION & REGULATORY SERVICES,Catering Food & Drink,IZ *PLANE TREE HOS,22-Apr-2020,168.48
PUBLIC PROTECTION & REGULATORY SERVICES,Catering Food & Drink,PAYPAL,22-Apr-2020,"1,805.95"
PUBLIC PROTECTION & REGULATORY SERVICES,Domestic Goods-Other,WWW.ALBERT-HARRISON.CO,22-Apr-2020,374.82
16+ INDEPENDENCE SERVICE (LEAVING CARE),Facilities-Market Research,Amazon Prime,23-Apr-2020,-7.99
ASC SENIOR MANAGEMENT,Banquet & Catering,BFS GROUP,23-Apr-2020,"7,065.62"
ASC SENIOR MANAGEMENT,Building-Others,INFO@TAOTECH.CO.UK,23-Apr-2020,27.94
ASC SENIOR MANAGEMENT,Domestic Goods-Other,AMZNMKTPLACE AMAZON.CO.UK,23-Apr-2020,16.98
ASC SENIOR MANAGEMENT,Stationery,STAPLES.CO.UK,23-Apr-2020,"4,608.00"
CHILDREN LOOKED AFTER,Domestic Goods-Other,Yougotagift.com LTD,23-Apr-2020,33.44
DSG EARLY YEARS BLOCK,Education-Toys,Amazon.co.uk,23-Apr-2020,750.00
DSG EARLY YEARS BLOCK,Education-Toys,AMAZON.CO.UK,23-Apr-2020,"1,000.00"
FAMILY SUPPORT & CHILD PROTECTION,Accommodation,CASH ADVANCE FEE,23-Apr-2020,2.95
FAMILY SUPPORT & CHILD PROTECTION,Domestic Goods-Other,ARGOS LTD,23-Apr-2020,273.95
PARKS & LEISURE SERVICES,Domestic Goods-Other,AMZNMKTPLACE AMAZON.CO.UK,23-Apr-2020,183.96
PUBLIC PROTECTION & REGULATORY SERVICES,IT Hardware,SHS HANDLING SOLUTIONS,23-Apr-2020,"1,963.20"
PUBLIC PROTECTION & REGULATORY SERVICES,Stationery,STAPLES.CO.UK,23-Apr-2020,"4,608.00"
BEREAVEMENT SERVICES,Domestic Goods-Other,AMAZON.CO.UK,26-Apr-2020,6.50
BEREAVEMENT SERVICES,Domestic Goods-Other,AMAZON.CO.UK,26-Apr-2020,14.33
BEREAVEMENT SERVICES,Domestic Goods-Other,AMZNMKTPLACE AMAZON.CO.UK,26-Apr-2020,11.99
ACCESS & ASSESSMENTS,Facilities-Market Research,Amazon Prime,27-Apr-2020,7.99
ASC SENIOR MANAGEMENT,Banquet & Catering,BFS GROUP,27-Apr-2020,-153.35
ASC SENIOR MANAGEMENT,Catering Food & Drink,CASA SIBILLA,27-Apr-2020,553.00
ASC SENIOR MANAGEMENT,Domestic Goods-Other,WWW.ALBERT-HARRISON.CO,27-Apr-2020,"1,211.88"
ASC SENIOR MANAGEMENT,Stationery,ESE DIRECT LIMITED,27-Apr-2020,48.00
CHILDREN LOOKED AFTER,Financial Services,BCP COUNCIL,27-Apr-2020,22.00
FAMILY SUPPORT & CHILD PROTECTION,Furniture-Domestic Furniture,BEDWORLD,27-Apr-2020,224.87
MH SERVICES,Legal Services-Other,HMCOURTS-SERVICE.G,27-Apr-2020,75.00
PARKS & LEISURE SERVICES,Building-Paint,LEYLAND SDM,27-Apr-2020,119.88
PARKS & LEISURE SERVICES,Vehicle Parts,STOCKWELL MOTOR ACCES,27-Apr-2020,155.96
PARKS & LEISURE SERVICES,Works-Construction/Materials,THE TRADE HUB,27-Apr-2020,52.95
16+ INDEPENDENCE SERVICE (LEAVING CARE),Domestic Goods-Other,ARGOS LTD,28-Apr-2020,-259.99
ASC SENIOR MANAGEMENT,Building-Others,PALLET TRUCK WAREHOUSE,28-Apr-2020,454.80
ASC SENIOR MANAGEMENT,Domestic Goods-Other,WWW.ALBERT-HARRISON.CO,28-Apr-2020,293.40
ASC SENIOR MANAGEMENT,IT Software,ETI LTD,28-Apr-2020,54.00
EARLY HELP,Taxi Fares,UBER   *TRIP,28-Apr-2020,12.12
EARLY HELP,Taxi Fares,UBER TRIP HELP.UBER.COM,28-Apr-2020,13.74
EVENTS & FILMING,Consultancy-Business,BLS*MONDAY.COM,28-Apr-2020,223.20
EVENTS & FILMING,Professional & Advisory Services,ALLSEATED SUBSCRIPTION,28-Apr-2020,73.88
FAMILY SUPPORT & CHILD PROTECTION,Domestic Goods-Other,WWW.JOHNLEWIS.COM,28-Apr-2020,246.94
MH SERVICES,Legal Services-Other,HMCOURTS-SERVICE.G,28-Apr-2020,150.00
RESIDENT ENGAGEMENT,IT Consumables,ARGOS LTD,28-Apr-2020,38.94
FAMILY SUPPORT & CHILD PROTECTION,Domestic Goods-Other,AMAZON.CO.UK,29-Apr-2020,54.48
16+ INDEPENDENCE SERVICE (LEAVING CARE),Domestic Goods-Other,Yougotagift.com LTD,30-Apr-2020,22.08
16+ INDEPENDENCE SERVICE (LEAVING CARE),Furniture-Domestic Furniture,BRANDALLEY UK LTD,30-Apr-2020,159.95
ASC SENIOR MANAGEMENT,Building-Others,PALLET TRUCK WAREHOUSE,30-Apr-2020,454.80
CAMPAIGNS & COMMUNICATIONS,IT Services,WINSERVE2947733,30-Apr-2020,11.99
CHILDREN LOOKED AFTER,Domestic Goods-Other,Yougotagift.com LTD,30-Apr-2020,44.17
DSG EARLY YEARS BLOCK,Education-Toys,Amazon.co.uk,30-Apr-2020,10.00
FAMILY SUPPORT & CHILD PROTECTION,Facilities-Printing,Amazon.co.uk,30-Apr-2020,49.99
MH SERVICES,Consultancy-Business,POSTURITE LTD,30-Apr-2020,67.52
PARKS & LEISURE SERVICES,Building-General,SCREWFIX DIRECT,30-Apr-2020,16.77
PARKS & LEISURE SERVICES,Domestic Goods-Other,AMZNMKTPLACE AMAZON.CO.UK,30-Apr-2020,139.99
ACCESS & ASSESSMENTS,Domestic Goods-Other,AMZNMktplace,01-May-2020,35.98
ACCESS & ASSESSMENTS,Travel/Subsistence,OYSTER AUTO TOPUP,01-May-2020,20.00
ASC SENIOR MANAGEMENT,Banquet & Catering,BFS GROUP,01-May-2020,"8,837.19"
ASC SENIOR MANAGEMENT,Domestic Goods-Other,WWW.ALBERT-HARRISON.CO,01-May-2020,"1,618.22"
CAMPAIGNS & COMMUNICATIONS,IT Services,NATIONBUILDER,01-May-2020,180.65
CHILDREN LOOKED AFTER,Domestic Goods-Other,MANOMANO,01-May-2020,-187.95
DEMOCRATIC SERVICES,Consultancy-Business,EB *ONLINE TRAINING AN,01-May-2020,90.00
DSG EARLY YEARS BLOCK,Education-Toys,Amazon.co.uk,01-May-2020,50.00
EMERGENCY PLANNING,Catering Food & Drink,TESCO STORE 2143,01-May-2020,68.71
FAMILY SUPPORT & CHILD PROTECTION,Domestic Goods-Other,Yougotagift.com LTD,01-May-2020,32.96
FAMILY SUPPORT & CHILD PROTECTION,Financial Services,SANTANDER PLC (UK),01-May-2020,60.00
FOSTERING & PERMANENCY,Domestic Goods-Other,WWW.JOHNLEWIS.COM,01-May-2020,129.93
PARKS & LEISURE SERVICES,Horticultural-Other,GREENSHIELDS JCB LTD,01-May-2020,28.54
SHELTERED HOUSING,Domestic Goods-Other,AMZNMKTPLACE AMAZON.CO.UK,01-May-2020,250.74
ASC SENIOR MANAGEMENT,Stationery,STAPLES.CO.UK,02-May-2020,"8,424.00"
CAMPAIGNS & COMMUNICATIONS,IT Services,GOOGLE,02-May-2020,20.71
CORPORATE COMPLAINTS,IT Services,AWS EMEA,02-May-2020,142.88
EMERGENCY PLANNING,Catering Food & Drink,SAINSBURYS S/MKTS,02-May-2020,120.25
EMERGENCY PLANNING,Catering Food & Drink,TESCO STORE 2143,02-May-2020,184.46
FAMILY SUPPORT & CHILD PROTECTION,Facilities-Printing,Amazon.co.uk,02-May-2020,49.99
CAMPAIGNS & COMMUNICATIONS,IT Services,NATIONBUILDER,03-May-2020,98.15
CHILDREN LOOKED AFTER,Travel/Subsistence,OYSTER AUTO TOPUP,03-May-2020,20.00
FAMILY SUPPORT & CHILD PROTECTION,Travel/Subsistence,OYSTER AUTO TOPUP,03-May-2020,20.00
FAMILY SUPPORT & CHILD PROTECTION,Travel/Subsistence,OYSTER AUTO TOPUP,03-May-2020,20.00
FAMILY SUPPORT & CHILD PROTECTION,Travel/Subsistence,OYSTER AUTO TOPUP,03-May-2020,20.00
QUALITY ASSURANCE AND PERFORMANCE,Travel/Subsistence,thetrainline.com,03-May-2020,-14.30
ASC SENIOR MANAGEMENT,Catering Food & Drink,CASA SIBILLA,04-May-2020,840.00
ASC SENIOR MANAGEMENT,Domestic Goods-Other,AMZNMKTPLACE AMAZON.CO.UK,04-May-2020,52.31
ASC SENIOR MANAGEMENT,IT Software,ETI LTD,04-May-2020,24.96
CAMPAIGNS & COMMUNICATIONS,IT Services,BUZZSUMO.COM PRO,04-May-2020,98.61
CHILDREN WITH DISABILITIES,Domestic Goods-Other,ARGOS LTD,04-May-2020,73.94
FAMILY SUPPORT & CHILD PROTECTION,Accommodation,CASH ADVANCE FEE,04-May-2020,2.95
FOSTERING & PERMANENCY,Domestic Goods-Other,WWW.JOHNLEWIS.COM,04-May-2020,457.89
LIBRARIES & ARCHIVES,Facilities-Market Research,ZOOM.GBP,04-May-2020,36.80
MH SERVICES,Legal Services-Other,HMCOURTS-SERVICE.G,04-May-2020,150.00
PARKS & LEISURE SERVICES,Building-Timber,WICKES BUILDING,04-May-2020,177.76
PUBLIC HEALTH - ADULTS,Education-Other,KCL FINANCE ONLINE,04-May-2020,500.00
16+ INDEPENDENCE SERVICE (LEAVING CARE),Domestic Goods-Other,Yougotagift.com LTD,05-May-2020,72.72
16+ INDEPENDENCE SERVICE (LEAVING CARE),Horticultural-Seeds & Plants,CLAPHAM FLOWERS,05-May-2020,40.00
ASC SENIOR MANAGEMENT,Banquet & Catering,BFS GROUP,05-May-2020,-49.61
BUSINESS IMPROVEMENT,Books/Publications/Resources,THE MJ/HEMMING GROUP L,05-May-2020,140.00
EMERGENCY PLANNING,Catering Food & Drink,TESCO STORE 2143,05-May-2020,63.98
FAMILY SUPPORT & CHILD PROTECTION,Domestic Goods-Other,Yougotagift.com LTD,05-May-2020,47.70
HOUSING MANAGEMENT SERVICES,Financial Services,LAMBETH INTERNET PAYM,05-May-2020,11.00
PARKS & LEISURE SERVICES,Vehicle Parts,STOCKWELL MOTOR ACCES,05-May-2020,107.32
ASC SENIOR MANAGEMENT,Banquet & Catering,BFS GROUP,06-May-2020,"1,141.03"
ASC SENIOR MANAGEMENT,Stationery,STAPLES.CO.UK,06-May-2020,347.88
DSG EARLY YEARS BLOCK,Education-Toys,AMAZON PRIME,06-May-2020,7.99
EMERGENCY PLANNING,Catering Food & Drink,TESCO STORE 2143,06-May-2020,78.38
FAMILY SUPPORT & CHILD PROTECTION,Domestic Goods-Other,ARGOS LTD,06-May-2020,53.90
FAMILY SUPPORT & CHILD PROTECTION,Domestic Goods-Other,AMZNMKTPLACE AMAZON.CO.UK,06-May-2020,129.94
FAMILY SUPPORT & CHILD PROTECTION,Domestic Goods-Other,Yougotagift.com LTD,06-May-2020,193.33
FAMILY SUPPORT & CHILD PROTECTION,Financial Services,ROYAL BANK UK /,06-May-2020,160.00
HOUSING MANAGEMENT SERVICES,Domestic Goods-Other,AMZ*VAN DIRECT,06-May-2020,-169.99
HOUSING MANAGEMENT SERVICES,Facilities-Market Research,Amazon Prime,06-May-2020,7.99
MH SERVICES,Legal Services-Other,HMCOURTS-SERVICE.G,06-May-2020,150.00
SPECIAL EDUCATION NEEDS,Education-Other,AMAZON.CO.UK,06-May-2020,120.00
ACCESS & ASSESSMENTS,Accommodation,CASH ADVANCE FEE,07-May-2020,4.72
ACCESS & ASSESSMENTS,Travel/Subsistence,OYSTER AUTO TOPUP,07-May-2020,20.00
ASC SENIOR MANAGEMENT,Domestic Goods-Other,WWW.ALBERT-HARRISON.CO,07-May-2020,"2,399.30"
BUSINESS IMPROVEMENT,Books/Publications/Resources,ECONOMIST SUBSCRIPTION,07-May-2020,215.00
BUSINESS IMPROVEMENT,Books/Publications/Resources,DENNIS TLD,07-May-2020,127.49
CHILDREN LOOKED AFTER,Domestic Goods-Other,Yougotagift.com LTD,07-May-2020,48.30
CHILDREN LOOKED AFTER,Domestic Goods-Other,Yougotagift.com LTD,07-May-2020,147.32
EARLY HELP,Furniture-Domestic Furniture,HAPPY BEDS,07-May-2020,590.97
EMERGENCY PLANNING,Catering Food & Drink,TESCO STORE 2143,07-May-2020,193.76
FAMILY SUPPORT & CHILD PROTECTION,Domestic Goods-Other,ARGOS LTD,07-May-2020,53.94
FAMILY SUPPORT & CHILD PROTECTION,Domestic Goods-Other,Yougotagift.com LTD,07-May-2020,109.28
FAMILY SUPPORT & CHILD PROTECTION,Domestic Goods-Other,ARGOS LTD,07-May-2020,73.90
FAMILY SUPPORT & CHILD PROTECTION,Domestic Goods-Other,ARGOS LTD,07-May-2020,162.95
FOSTERING & PERMANENCY,Domestic Goods-Other,Yougotagift.com LTD,07-May-2020,92.07
ASC SENIOR MANAGEMENT,Catering Food & Drink,SAINSBURY'S SMKT,08-May-2020,14.00
CHILDREN LOOKED AFTER,Domestic Goods-Other,AMZNMktplace,08-May-2020,64.99
FAMILY SUPPORT & CHILD PROTECTION,Domestic Goods-Other,AMZNMKTPLACE AMAZON.CO.UK,08-May-2020,56.99
FAMILY SUPPORT & CHILD PROTECTION,Facilities-Printing,Amazon.co.uk,08-May-2020,49.99
HOUSING OPTIONS - GF,Books/Publications/Resources,WHICH,08-May-2020,11.75
ASC SENIOR MANAGEMENT,Professional & Advisory Services,PAYPAL,09-May-2020,88.74
EMERGENCY PLANNING,Catering Food & Drink,TESCO STORE 2143,09-May-2020,140.72
EVENTS & FILMING,Facilities-Market Research,Amazon Prime,09-May-2020,79.00
ACCESS & ASSESSMENTS,Travel/Subsistence,OYSTER AUTO TOPUP,10-May-2020,20.00
FAMILY SUPPORT & CHILD PROTECTION,Domestic Goods-Other,AMZNMKTPLACE AMAZON.CO.UK,10-May-2020,138.47
PARKS & LEISURE SERVICES,Domestic Goods-Other,AMZNMktplace,10-May-2020,50.82
SCHOOL & EDUCATIONAL IMPROVEMENT SERVICE,Facilities-Advertising,FACEBK AA8N6TWBE2,10-May-2020,700.00
BEREAVEMENT SERVICES,Catering Food & Drink,AMZNMKTPLACE AMAZON.CO.UK,11-May-2020,69.13
BEREAVEMENT SERVICES,Domestic Goods-Other,AMZNMktplace,11-May-2020,14.99
CHILDREN LOOKED AFTER,Financial Services,LB CROYDON,11-May-2020,68.00
FAMILY SUPPORT & CHILD PROTECTION,Domestic Goods-Other,ARGOS LTD,11-May-2020,48.94
FAMILY SUPPORT & CHILD PROTECTION,Facilities-Printing,Amazon.co.uk,11-May-2020,26.99
MH SERVICES,Accommodation,PASHA HOTEL,11-May-2020,455.00
PARKS & LEISURE SERVICES,Building-Timber,WICKES BUILDING,11-May-2020,149.97
QUALITY ASSURANCE AND PERFORMANCE,Accommodation,BARBARA MUSETTI,11-May-2020,"1,850.00"
QUALITY ASSURANCE AND PERFORMANCE,Domestic Goods-Other,CHALLENGETROPHIES CO UK,11-May-2020,222.18
16+ INDEPENDENCE SERVICE (LEAVING CARE),Domestic Goods-Other,ARGOS LTD,12-May-2020,122.95
16+ INDEPENDENCE SERVICE (LEAVING CARE),Domestic Goods-Other,Yougotagift.com LTD,12-May-2020,36.86
16+ INDEPENDENCE SERVICE (LEAVING CARE),Domestic Goods-Other,Yougotagift.com LTD,12-May-2020,73.72
ASC SENIOR MANAGEMENT,Domestic Goods-Other,AMZNMKTPLACE AMAZON.CO.UK,12-May-2020,21.08
ASC SENIOR MANAGEMENT,Facilities-Market Research,ZOOM.GBP,12-May-2020,14.39
BEREAVEMENT SERVICES,Cemetery & Crematorium,AMZNMKTPLACE AMAZON.CO.UK,12-May-2020,32.45
BEREAVEMENT SERVICES,Organised Activities,MOONPIG,12-May-2020,29.29
CHILDREN LOOKED AFTER,Domestic Goods-Other,CURRYS ONLINE,12-May-2020,605.96
EVENTS & FILMING,IT Software-Customised,ELEGANTTHEMES.COM,12-May-2020,89.73
FAMILY SUPPORT & CHILD PROTECTION,Domestic Goods-Other,ARGOS LTD,12-May-2020,137.45
FAMILY SUPPORT & CHILD PROTECTION,Domestic Goods-Other,AMZNMKTPLACE AMAZON.CO.UK,12-May-2020,166.36
FAMILY SUPPORT & CHILD PROTECTION,Travel/Subsistence,OYSTER ONLINE,12-May-2020,35.00
MH SERVICES,Legal Services-Other,HMCOURTS-SERVICE.G,12-May-2020,75.00
OP SERVICES,Catering Food & Drink,NISA LOCAL,12-May-2020,50.46
PARKS & LEISURE SERVICES,Building-Paint,LEYLAND SDM,12-May-2020,80.36
PUBLIC HEALTH - ADULTS,Healthcare Services,Intern. Aids Society,12-May-2020,-300.26
ACCESS & ASSESSMENTS,Travel/Subsistence,OYSTER AUTO TOPUP,13-May-2020,20.00
ASC SENIOR MANAGEMENT,Domestic Goods-Other,AMZNMKTPLACE AMAZON.CO.UK,13-May-2020,108.56
ASC SENIOR MANAGEMENT,Stationery,STAPLES.CO.UK,13-May-2020,60.44
CHILDREN LOOKED AFTER,Furniture-Domestic Furniture,WWW.IKEA.COM,13-May-2020,128.00
EMERGENCY PLANNING,Catering Food & Drink,TESCO STORE 2143,13-May-2020,86.98
FAMILY SUPPORT & CHILD PROTECTION,Domestic Goods-Other,AMAZON.CO.UK,13-May-2020,49.99
FAMILY SUPPORT & CHILD PROTECTION,Facilities-Market Research,WHSMITH.CO.UK,13-May-2020,10.68
FAMILY SUPPORT & CHILD PROTECTION,Travel/Subsistence,OYSTER AUTO TOPUP,13-May-2020,20.00
FOSTERING & PERMANENCY,Domestic Goods-Other,WWW.JOHNLEWIS.COM,13-May-2020,209.00
HOUSING MANAGEMENT SERVICES,Financial Services,LAMBETH INTERNET PAYM,13-May-2020,11.00
OP SERVICES,Catering Food & Drink,TESCO-STORES 6567,13-May-2020,15.65
OT SERVICES,Domestic Goods-Other,ARGOS LTD,13-May-2020,83.94
PARKS & LEISURE SERVICES,Building-Timber,WICKES BUILDING,13-May-2020,6.08
PENSIONS SERVICES,Facilities-Market Research,AMAZON PRIME,13-May-2020,7.99
16+ INDEPENDENCE SERVICE (LEAVING CARE),Domestic Goods-Other,Yougotagift.com LTD,14-May-2020,59.06
ACCESS & ASSESSMENTS,Travel/Subsistence,OYSTER AUTO TOPUP,14-May-2020,20.00
ASC SENIOR MANAGEMENT,Banquet & Catering,BFS GROUP,14-May-2020,"6,667.63"
BEREAVEMENT SERVICES,IT Software-Customised,HP INC UK LIMITED,14-May-2020,46.98
CAMPAIGNS & COMMUNICATIONS,Books/Publications/Resources,RBI QSS SUBS,14-May-2020,390.00
CHILDREN LOOKED AFTER,Travel/Subsistence,OYSTER AUTO TOPUP,14-May-2020,20.00
CHILDREN WITH DISABILITIES,Domestic Goods-Other,ARGOS LTD,14-May-2020,186.95
EMERGENCY PLANNING,Catering Food & Drink,TESCO STORE 2143,14-May-2020,52.29
FAMILY SUPPORT & CHILD PROTECTION,Domestic Goods-Other,ARGOS LTD,14-May-2020,73.90
FAMILY SUPPORT & CHILD PROTECTION,Domestic Goods-Other,Yougotagift.com LTD,14-May-2020,74.26
FAMILY SUPPORT & CHILD PROTECTION,Domestic Goods-Other,ARGOS LTD,14-May-2020,249.99
FAMILY SUPPORT & CHILD PROTECTION,Facilities-Printing,Amazon.co.uk,14-May-2020,49.99
FAMILY SUPPORT & CHILD PROTECTION,Financial Services,ROYAL BANK UK /,14-May-2020,60.00
FAMILY SUPPORT & CHILD PROTECTION,Financial Services,ROYAL BANK UK /,14-May-2020,100.00
RESIDENT ENGAGEMENT,Education-Supplies,ADVANCE ENTERPRISES AUTOM,14-May-2020,689.00
RESIDENT ENGAGEMENT,IT Software,ZOOM.GBP,14-May-2020,14.39
ASC SENIOR MANAGEMENT,Domestic Goods-Other,WWW.ALBERT-HARRISON.CO,15-May-2020,"2,136.27"
BEREAVEMENT SERVICES,Cemetery & Crematorium,AMZNMKTPLACE AMAZON.CO.UK,15-May-2020,29.88
CHILDREN WITH DISABILITIES,Domestic Goods-Other,AMZNMKTPLACE AMAZON.CO.UK,15-May-2020,114.85
FAMILY SUPPORT & CHILD PROTECTION,Accommodation,CASH ADVANCE FEE,15-May-2020,5.90
FAMILY SUPPORT & CHILD PROTECTION,Domestic Goods-Other,ARGOS LTD,15-May-2020,212.95
FAMILY SUPPORT & CHILD PROTECTION,Facilities-Printing,Amazon.co.uk,15-May-2020,49.99
FAMILY SUPPORT & CHILD PROTECTION,Travel/Subsistence,OYSTER AUTO TOPUP,15-May-2020,20.00
MH SERVICES,Legal Services-Other,HMCOURTS-SERVICE.G,15-May-2020,150.00
PARKS & LEISURE SERVICES,Financial Services,DVLA VEHICLE TAX,15-May-2020,617.50
SCHOOL & EDUCATIONAL IMPROVEMENT SERVICE,Consultancy-Business,AWEBER COMMUNICATIONS,15-May-2020,8.51
ACCESS & ASSESSMENTS,Travel/Subsistence,OYSTER AUTO TOPUP,17-May-2020,20.00
CAMPAIGNS & COMMUNICATIONS,Facilities-Design & Photography,CANVA* 02694-0558530,17-May-2020,11.03
FAMILY SUPPORT & CHILD PROTECTION,Domestic Goods-Other,ARGOS LTD,17-May-2020,166.95
SCHOOL & EDUCATIONAL IMPROVEMENT SERVICE,Facilities-Advertising,FACEBK H8CPGSSCE2,17-May-2020,325.72
ASC SENIOR MANAGEMENT,Domestic Goods-Other,WWW.ALBERT-HARRISON.CO,18-May-2020,599.52
DSG HIGH NEEDS BLOCK,Education-Other,Amazon.co.uk,18-May-2020,"1,150.00"
MH SERVICES,Legal Services-Other,HMCOURTS-SERVICE.G,18-May-2020,75.00
16+ INDEPENDENCE SERVICE (LEAVING CARE),Domestic Goods-Other,Yougotagift.com LTD,19-May-2020,31.30
ASC SENIOR MANAGEMENT,Domestic Goods-Other,WWW.ALBERT-HARRISON.CO,19-May-2020,-418.32
ASC SENIOR MANAGEMENT,Stationery,STAPLES.CO.UK,19-May-2020,141.04
CONTRACT MANAGEMENT,Building-Timber,WICKES BUILDING,19-May-2020,37.95
EARLY HELP,Taxi Fares,UBER TRIP HELP.UBER.COM,19-May-2020,19.29
EARLY HELP,Taxi Fares,UBER TRIP HELP.UBER.COM,19-May-2020,18.84
EVENTS & FILMING,Financial Services,WANDSWORTH COUNCIL,19-May-2020,70.00
FAMILY SUPPORT & CHILD PROTECTION,Domestic Goods-Other,TESCO ONLINE,19-May-2020,45.00
SCHOOL & EDUCATIONAL IMPROVEMENT SERVICE,Facilities-Advertising,GOOGLE  ADS3485321156,19-May-2020,220.85
16+ INDEPENDENCE SERVICE (LEAVING CARE),Domestic Goods-Other,Yougotagift.com LTD,20-May-2020,36.96
ASC SENIOR MANAGEMENT,Domestic Goods-Other,WWW.ALBERT-HARRISON.CO,20-May-2020,899.42
ASC SENIOR MANAGEMENT,Domestic Goods-Other,AMZNMKTPLACE AMAZON.CO.UK,20-May-2020,50.51
ASC SENIOR MANAGEMENT,Domestic Goods-Other,AMZNMktplace,20-May-2020,44.76
ASC SENIOR MANAGEMENT,Travel/Subsistence,TFL BUSINESS BOPS WEB,20-May-2020,109.50
CAMPAIGNS & COMMUNICATIONS,IT Software,ADOBE CREATIVE CLOUD,20-May-2020,212.40
FAMILY SUPPORT & CHILD PROTECTION,Domestic Goods-Other,Yougotagift.com LTD,20-May-2020,153.34
FAMILY SUPPORT & CHILD PROTECTION,Domestic Goods-Other,ARGOS LTD,20-May-2020,45.94
FAMILY SUPPORT & CHILD PROTECTION,Travel/Subsistence,OYSTER AUTO TOPUP,20-May-2020,20.00
HOUSING MANAGEMENT SERVICES,Financial Services,LAMBETH INTERNET PAYM,20-May-2020,11.00
MH SERVICES,Taxi Fares,WWW.ADDISONLEE.COM,20-May-2020,31.76
PARKING OPERATIONS,Facilities-Printing,Amazon.co.uk,20-May-2020,20.00
ASC SENIOR MANAGEMENT,Banquet & Catering,BFS GROUP,21-May-2020,"9,439.31"
ASC SENIOR MANAGEMENT,Travel/Subsistence,TFL BUSINESS BOPS WEB,21-May-2020,38.00
CAMPAIGNS & COMMUNICATIONS,Conference Expenses,ZOOM.GBP,21-May-2020,-101.83
CHILDREN LOOKED AFTER,Facilities-Market Research,CRM LTD LUMIS LEICESTE,21-May-2020,"6,580.00"
EMERGENCY PLANNING,Catering Food & Drink,TESCO STORE 2143,21-May-2020,74.94
FAMILY SUPPORT & CHILD PROTECTION,Domestic Goods-Other,AMZNMKTPLACE AMAZON.CO.UK,21-May-2020,156.78
FAMILY SUPPORT & CHILD PROTECTION,Domestic Goods-Other,Yougotagift.com LTD,21-May-2020,37.07
FAMILY SUPPORT & CHILD PROTECTION,Domestic Goods-Other,AMZNMktplace,21-May-2020,74.98
FAMILY SUPPORT & CHILD PROTECTION,Domestic Goods-Other,Yougotagift.com LTD,21-May-2020,96.04
FAMILY SUPPORT & CHILD PROTECTION,Financial Services,ROYAL BANK UK /,21-May-2020,100.00
FAMILY SUPPORT & CHILD PROTECTION,Financial Services,ROYAL BANK UK /,21-May-2020,60.00
16+ INDEPENDENCE SERVICE (LEAVING CARE),Domestic Goods-Other,Yougotagift.com LTD,22-May-2020,74.32
16+ INDEPENDENCE SERVICE (LEAVING CARE),Facilities-Storage,WWW.SAFESTORE.CO.UK,22-May-2020,151.42
ACCESS & ASSESSMENTS,Domestic Goods-Other,Yougotagift.com LTD,22-May-2020,71.91
ASC SENIOR MANAGEMENT,Building-Others,PALLET TRUCK WAREHOUSE,22-May-2020,454.80
ASC SENIOR MANAGEMENT,Domestic Goods-Other,WWW.ALBERT-HARRISON.CO,22-May-2020,-5.51
CAMPAIGNS & COMMUNICATIONS,Facilities-Advertising,FACEBK KGVBHT66M2,22-May-2020,2.69
CHILDREN WITH DISABILITIES,Domestic Goods-Other,ARGOS LTD,22-May-2020,343.95
EMERGENCY PLANNING,Catering Food & Drink,TESCO STORE 2143,22-May-2020,67.69
FAMILY SUPPORT & CHILD PROTECTION,Accommodation,CASH ADVANCE FEE,22-May-2020,5.90
FAMILY SUPPORT & CHILD PROTECTION,Domestic Goods-Other,ARGOS LTD,22-May-2020,79.00
FAMILY SUPPORT & CHILD PROTECTION,Domestic Goods-Other,AMZNMKTPLACE AMAZON.CO.UK,22-May-2020,208.36
FAMILY SUPPORT & CHILD PROTECTION,Telecommunications,VODAFONE LTD,22-May-2020,25.00
MH SERVICES,Legal Services-Other,HMCOURTS-SERVICE.G,22-May-2020,150.00
PARKS & LEISURE SERVICES,Building-Timber,SELCO TRADING CTR,22-May-2020,90.41
ASC SENIOR MANAGEMENT,Domestic Goods-Other,AMZNMktplace,23-May-2020,30.98
ASC SENIOR MANAGEMENT,Travel/Subsistence,TFL BUSINESS BOPS WEB,23-May-2020,138.50
FAMILY SUPPORT & CHILD PROTECTION,Domestic Goods-Other,AMZNMktplace,23-May-2020,75.99
FAMILY SUPPORT & CHILD PROTECTION,Domestic Goods-Other,ARGOS LTD,23-May-2020,43.94
ACCESS & ASSESSMENTS,Travel/Subsistence,OYSTER AUTO TOPUP,24-May-2020,20.00
ASC SENIOR MANAGEMENT,Domestic Goods-Other,AMZNMKTPLACE AMAZON.CO.UK,24-May-2020,34.98
CAMPAIGNS & COMMUNICATIONS,Facilities-Advertising,FACEBK 8D7N7TE6M2,24-May-2020,60.00
FAMILY SUPPORT & CHILD PROTECTION,Travel/Subsistence,OYSTER AUTO TOPUP,24-May-2020,20.00
BEREAVEMENT SERVICES,Cemetery & Crematorium,AMZNMKTPLACE AMAZON.CO.UK,25-May-2020,15.98
BEREAVEMENT SERVICES,Stationery,AMZNMKTPLACE AMAZON.CO.UK,25-May-2020,8.95
CSC SENIOR MANAGEMENT,Taxi Fares,KV CARS & COURIERS LTD,25-May-2020,150.70
HOUSING MANAGEMENT SERVICES,Domestic Goods-Other,AMZNMKTPLACE AMAZON.CO.UK,25-May-2020,58.47
ASC SENIOR MANAGEMENT,Professional & Advisory Services,PAYPAL,26-May-2020,"1,210.00"
ASC SENIOR MANAGEMENT,Travel/Subsistence,TFL BUSINESS BOPS WEB,26-May-2020,24.00
BEREAVEMENT SERVICES,Domestic Goods-Other,ROADWARE LTD,26-May-2020,252.00
CSC SENIOR MANAGEMENT,Consultancy-Business,POSTURITE LTD,26-May-2020,36.82
MH SERVICES,Accommodation,PASHA HOTEL,26-May-2020,455.00
NO RECOURSE TO PUBLIC FUNDS,Financial Services,ROYAL BANK UK /,26-May-2020,60.00
PARKS & LEISURE SERVICES,Building-General,Selco Trade Centres Ltd,26-May-2020,91.55
ASC SENIOR MANAGEMENT,Travel/Subsistence,TFL BUSINESS BOPS WEB,27-May-2020,11.50
BEREAVEMENT SERVICES,Cemetery & Crematorium,AMZNMktplace,27-May-2020,105.00
BEREAVEMENT SERVICES,Stationery,AMZNMKTPLACE AMAZON.CO.UK,27-May-2020,2.95
CAMPAIGNS & COMMUNICATIONS,Facilities-Advertising,FACEBK 6EKS4T26M2,27-May-2020,60.00
CSC SENIOR MANAGEMENT,Facilities-Market Research,Amazon Prime,27-May-2020,7.99
EARLY HELP,Consultancy-Business,POSTURITE LTD,27-May-2020,35.99
FAMILY SUPPORT & CHILD PROTECTION,Accommodation,CASH ADVANCE FEE,27-May-2020,2.95
FAMILY SUPPORT & CHILD PROTECTION,Telecommunications,VESTA VODAFONE,27-May-2020,30.00
LIBRARIES & ARCHIVES,Facilities-Market Research,ZOOM.GBP,27-May-2020,48.00
MH SERVICES,Legal Services-Other,HMCOURTS-SERVICE.G,27-May-2020,150.00
REGISTRAR SERVICES,Domestic Goods-Other,AMZNMktplace,27-May-2020,65.00
SHELTERED HOUSING,Domestic Goods-Other,AMZNMKTPLACE AMAZON.CO.UK,27-May-2020,34.90
SHELTERED HOUSING,Domestic Goods-Other,AMZNMKTPLACE AMAZON.CO.UK,27-May-2020,41.78
SHELTERED HOUSING,Domestic Goods-Other,AMZNMKTPLACE AMAZON.CO.UK,27-May-2020,48.66
SHELTERED HOUSING,Domestic Goods-Other,AMZNMktplace,27-May-2020,21.14
ASC SENIOR MANAGEMENT,Banquet & Catering,BFS GROUP,28-May-2020,"8,509.89"
ASC SENIOR MANAGEMENT,Travel/Subsistence,TFL BUSINESS BOPS WEB,28-May-2020,23.00
DEMOCRATIC SERVICES,Travel/Subsistence,ANDERSON TOURS TELE OR,28-May-2020,-780.00
EARLY HELP,Taxi Fares,UBER *TRIP HELP.UBER.COM,28-May-2020,18.55
EARLY HELP,Taxi Fares,UBER TRIP HELP.UBER.COM,28-May-2020,19.80
EVENTS & FILMING,Consultancy-Business,BLS*MONDAY.COM,28-May-2020,223.20
EVENTS & FILMING,Professional & Advisory Services,ALLSEATED SUBSCRIPTION,28-May-2020,74.91
FAMILY SUPPORT & CHILD PROTECTION,Domestic Goods-Other,ARGOS LTD,28-May-2020,202.95
FAMILY SUPPORT & CHILD PROTECTION,Financial Services,ROYAL BANK UK /,28-May-2020,160.00
FAMILY SUPPORT & CHILD PROTECTION,Financial Services,ROYAL BANK UK /,28-May-2020,180.00
MH SERVICES,Legal Services-Other,HMCOURTS-SERVICE.G,28-May-2020,75.00
PARKS & LEISURE SERVICES,Vehicle Parts,STOCKWELL MOTOR ACCES,28-May-2020,65.46
PARKS & LEISURE SERVICES,Vehicle Parts,STOCKWELL MOTOR ACCES,28-May-2020,240.00
QUALITY ASSURANCE AND PERFORMANCE,Domestic Goods-Other,AMZNMKTPLACE AMAZON.CO.UK,28-May-2020,109.83
SCHOOL & EDUCATIONAL IMPROVEMENT SERVICE,Facilities-Advertising,FACEBK TZHSKTWBE2,28-May-2020,700.00
SHELTERED HOUSING,Domestic Goods-Other,AMZNMKTPLACE AMAZON.CO.UK,28-May-2020,41.86
SHELTERED HOUSING,Domestic Goods-Other,AMZNMktplace,28-May-2020,29.90
SHELTERED HOUSING,Domestic Goods-Other,AMZNMKTPLACE AMAZON.CO.UK,28-May-2020,17.94
SHELTERED HOUSING,Domestic Goods-Other,AMZNMKTPLACE AMAZON.CO.UK,28-May-2020,35.88
16+ INDEPENDENCE SERVICE (LEAVING CARE),Domestic Goods-Other,Yougotagift.com LTD,29-May-2020,36.75
ASC SENIOR MANAGEMENT,Domestic Goods-Other,WWW.ALBERT-HARRISON.CO,29-May-2020,821.88
ASC SENIOR MANAGEMENT,Travel/Subsistence,TFL BUSINESS BOPS WEB,29-May-2020,34.50
EMERGENCY PLANNING,Catering Food & Drink,TESCO STORE 2143,29-May-2020,52.39
FAMILY SUPPORT & CHILD PROTECTION,Accommodation,CASH ADVANCE FEE,29-May-2020,5.31
FAMILY SUPPORT & CHILD PROTECTION,Accommodation,CASH ADVANCE FEE,29-May-2020,4.72
FAMILY SUPPORT & CHILD PROTECTION,Financial Services,ROYAL BANK UK /,29-May-2020,70.00
PARKS & LEISURE SERVICES,Building-General,MACKAYS HARDWARE,29-May-2020,101.00
PARKS & LEISURE SERVICES,Domestic Goods-Other,AMZNMKTPLACE AMAZON.CO.UK,29-May-2020,179.94
EMERGENCY PLANNING,Catering Food & Drink,TESCO STORE 2143,30-May-2020,54.31
FAMILY SUPPORT & CHILD PROTECTION,Travel/Subsistence,OYSTER AUTO TOPUP,30-May-2020,20.00
ACCESS & ASSESSMENTS,Travel/Subsistence,OYSTER AUTO TOPUP,31-May-2020,20.00
CAMPAIGNS & COMMUNICATIONS,IT Services,WINSERVE2993582,31-May-2020,11.99
EVENTS & FILMING,Facilities-Advertising,FACEBK NMW67TABV2,31-May-2020,5.38
16+ INDEPENDENCE SERVICE (LEAVING CARE),Travel/Subsistence,TFL AUTOSETTLEMENT,01-Jun-2020,40.00
CAMPAIGNS & COMMUNICATIONS,IT Services,NATIONBUILDER,01-Jun-2020,183.10
FAMILY SUPPORT & CHILD PROTECTION,Domestic Goods-Other,ARGOS LTD,01-Jun-2020,161.95
NO RECOURSE TO PUBLIC FUNDS,Accommodation,CASH ADVANCE FEE,01-Jun-2020,2.95
PARKS & LEISURE SERVICES,Building-General,SCREWFIX DIRECT,01-Jun-2020,137.36
PARKS & LEISURE SERVICES,Building-General,B & Q 1037,01-Jun-2020,29.63
PARKS & LEISURE SERVICES,Building-Timber,TP VAUXHALL,01-Jun-2020,43.87
PARKS & LEISURE SERVICES,Facilities-Advertising,WH SMITH,01-Jun-2020,20.47
PARKS & LEISURE SERVICES,Mail Services-Postage,POST OFFICE COUNTER,01-Jun-2020,35.25
16+ INDEPENDENCE SERVICE (LEAVING CARE),Domestic Goods-Other,Yougotagift.com LTD,02-Jun-2020,160.55
ACCESS & ASSESSMENTS,Financial Services,LOYD - 18 ACRE LANE,02-Jun-2020,200.00
ASC SENIOR MANAGEMENT,Domestic Goods-Other,AMZNMKTPLACE AMAZON.CO.UK,02-Jun-2020,-31.49
BEREAVEMENT SERVICES,IT Software-Customised,HP INC UK LIMITED,02-Jun-2020,16.99
CAMPAIGNS & COMMUNICATIONS,IT Services,GOOGLE *GSUITE_lambeth,02-Jun-2020,20.70
FAMILY SUPPORT & CHILD PROTECTION,Domestic Goods-Other,ARGOS LTD,02-Jun-2020,94.95
FAMILY SUPPORT & CHILD PROTECTION,Domestic Goods-Other,CURRYS ONLINE,02-Jun-2020,239.00
HOUSING MANAGEMENT SERVICES,IT Software-Customised,INTELLISOFTWARE LTD,02-Jun-2020,52.80
HOUSING OPTIONS - GF,Furniture-Domestic Furniture,WAYFAIR #2807594108,02-Jun-2020,44.98
HOUSING OPTIONS - GF,Furniture-Domestic Furniture,IKEA LTD SHOP ONLINE,02-Jun-2020,509.00
HOUSING OPTIONS - GF,Furniture-Other,ARGOS LTD,02-Jun-2020,18.95
MH SERVICES,Legal Services-Other,HMCOURTS-SERVICE.G,02-Jun-2020,300.00
NO RECOURSE TO PUBLIC FUNDS,Financial Services,LOYD - 18 ACRE LANE,02-Jun-2020,100.00
PARKS & LEISURE SERVICES,Clothing-Uniforms,WORKWEAR EXPRESS LIMITED,02-Jun-2020,95.47
PARKS & LEISURE SERVICES,Domestic Goods-Other,AMZNMKTPLACE AMAZON.CO.UK,02-Jun-2020,-139.99
16+ INDEPENDENCE SERVICE (LEAVING CARE),Domestic Goods-Other,Yougotagift.com LTD,03-Jun-2020,108.03
ACCESS & ASSESSMENTS,Accommodation,CASH ADVANCE FEE,03-Jun-2020,8.85
ACCESS & ASSESSMENTS,Financial Services,LBL NOT PRESENT,03-Jun-2020,11.00
ASC SENIOR MANAGEMENT,Consultancy-Business,WHOLESALE SERVICES,03-Jun-2020,1.99
ASC SENIOR MANAGEMENT,Domestic Goods-Other,AMZNMktplace,03-Jun-2020,179.95
ASC SENIOR MANAGEMENT,Domestic Goods-Other,AMZNMKTPLACE AMAZON.CO.UK,03-Jun-2020,14.98
ASC SENIOR MANAGEMENT,Domestic Goods-Other,WWW.ALBERT-HARRISON.CO,03-Jun-2020,"1,648.83"
ASC SENIOR MANAGEMENT,IT Software,ETI LTD,03-Jun-2020,-78.96
CAMPAIGNS & COMMUNICATIONS,IT Services,NATIONBUILDER,03-Jun-2020,97.68
CORPORATE COMPLAINTS,IT Services,AWS EMEA,03-Jun-2020,148.61
EVENTS & FILMING,Facilities-Printing,Amazon.co.uk,03-Jun-2020,20.22
PARKS & LEISURE SERVICES,Building-Timber,SELCO TRADING CTR,03-Jun-2020,82.66
16+ INDEPENDENCE SERVICE (LEAVING CARE),Domestic Goods-Other,Yougotagift.com LTD,04-Jun-2020,23.70
ACCESS & ASSESSMENTS,Travel/Subsistence,OYSTER BUS AUTOLOAD,04-Jun-2020,40.00
ASC SENIOR MANAGEMENT,Domestic Goods-Other,WWW.ALBERT-HARRISON.CO,04-Jun-2020,-826.84
ASC SENIOR MANAGEMENT,Travel/Subsistence,TFL BUSINESS BOPS WEB,04-Jun-2020,46.00
CAMPAIGNS & COMMUNICATIONS,IT Services,BUZZSUMO.COM PRO,04-Jun-2020,97.86
EARLY ADOPTER PROGRAMMES,Accommodation,HIGHSTREET VOUCHERS,04-Jun-2020,250.00
FAMILY SUPPORT & CHILD PROTECTION,Domestic Goods-Other,Yougotagift.com LTD,04-Jun-2020,57.49
FAMILY SUPPORT & CHILD PROTECTION,Facilities-Printing,Amazon.co.uk,04-Jun-2020,9.43
LAMBETH COUNTRY SHOW,IT Software,"RESTREAM, INC.",04-Jun-2020,81.55
MH SERVICES,Accommodation,PASHA HOTEL,04-Jun-2020,455.00
MH SERVICES,Legal Services-Other,HMCOURTS-SERVICE.G,04-Jun-2020,75.00
PARKS & LEISURE SERVICES,Building-General,LANDSCAPE SUPPLY COMPA,04-Jun-2020,208.44
PARKS & LEISURE SERVICES,Building-General,Selco Trade Centres Ltd,04-Jun-2020,17.72
PARKS & LEISURE SERVICES,Building-Timber,TP VAUXHALL,04-Jun-2020,96.74
PARKS & LEISURE SERVICES,Vehicle Parts,STOCKWELL MOTOR ACCES,04-Jun-2020,108.98
16+ INDEPENDENCE SERVICE (LEAVING CARE),Financial Services,STA INTERNATIONAL LTD,05-Jun-2020,"1,589.21"
ACCESS & ASSESSMENTS,Travel/Subsistence,OYSTER AUTO TOPUP,05-Jun-2020,20.00
ASC SENIOR MANAGEMENT,Travel/Subsistence,TFL BUSINESS BOPS WEB,05-Jun-2020,11.50
EARLY ADOPTER PROGRAMMES,Accommodation,HIGHSTREET VOUCHERS,05-Jun-2020,350.00
EARLY HELP,Financial Services,ROYAL BANK UK /,05-Jun-2020,200.00
EMERGENCY PLANNING,Catering Food & Drink,TESCO STORE 2143,05-Jun-2020,49.97
FAMILY SUPPORT & CHILD PROTECTION,Domestic Goods-Other,Yougotagift.com LTD,05-Jun-2020,383.22
FAMILY SUPPORT & CHILD PROTECTION,Domestic Goods-Other,AMZNMKTPLACE AMAZON.CO.UK,05-Jun-2020,144.99
FAMILY SUPPORT & CHILD PROTECTION,Domestic Goods-Other,ARGOS LTD,05-Jun-2020,127.88
FAMILY SUPPORT & CHILD PROTECTION,Financial Services,ROYAL BANK UK /,05-Jun-2020,80.00
FAMILY SUPPORT & CHILD PROTECTION,Financial Services,ROYAL BANK UK /,05-Jun-2020,290.00
FAMILY SUPPORT & CHILD PROTECTION,Travel/Subsistence,AUTO TOP-UP ARREARS,05-Jun-2020,40.00
FAMILY SUPPORT & CHILD PROTECTION,Travel/Subsistence,OYSTER BUS AUTOLOAD,05-Jun-2020,40.00
HOUSING MANAGEMENT SERVICES,Building-General,PENNY SAVERS,05-Jun-2020,61.90
MH SERVICES,Legal Services-Other,HMCOURTS-SERVICE.G,05-Jun-2020,150.00
PARKS & LEISURE SERVICES,Building-Roofing,TARA FABRICATIONS,05-Jun-2020,216.00
SUBSTANCE MISUSE,Facilities-Market Research,ZOOM.GBP,05-Jun-2020,143.88
16+ INDEPENDENCE SERVICE (LEAVING CARE),Facilities-Market Research,AMAZON PRIME,06-Jun-2020,7.99
CAMPAIGNS & COMMUNICATIONS,Facilities-Advertising,FACEBK QVZJWSJ6M2,06-Jun-2020,27.34
CHILDREN WITH DISABILITIES,Travel/Subsistence,OYSTER AUTO TOPUP,06-Jun-2020,20.00
EMERGENCY PLANNING,Catering Food & Drink,TESCO STORE 2143,06-Jun-2020,62.29
EVENTS & FILMING,Facilities-Printing,Amazon.co.uk,06-Jun-2020,30.64
FAMILY SUPPORT & CHILD PROTECTION,Travel/Subsistence,OYSTER AUTO TOPUP,06-Jun-2020,20.00
HOUSING MANAGEMENT SERVICES,Facilities-Market Research,Amazon Prime,06-Jun-2020,7.99
HOUSING OPTIONS - GF,Furniture-Domestic Furniture,AMZNMKTPLACE AMAZON.CO.UK,06-Jun-2020,249.99
EVENTS & FILMING,Facilities-Printing,Amazon.co.uk,07-Jun-2020,54.91
FAMILY SUPPORT & CHILD PROTECTION,Travel/Subsistence,OYSTER AUTO TOPUP,07-Jun-2020,20.00
16+ INDEPENDENCE SERVICE (LEAVING CARE),Accommodation,HTTPS YOUGOTAGIFT COM,08-Jun-2020,23.50
16+ INDEPENDENCE SERVICE (LEAVING CARE),Financial Services,ROYAL BANK UK /,08-Jun-2020,290.00
ACCESS & ASSESSMENTS,Accommodation,HTTPS YOUGOTAGIFT COM,08-Jun-2020,70.52
ASC SENIOR MANAGEMENT,Travel/Subsistence,TFL BUSINESS BOPS WEB,08-Jun-2020,23.00
BEREAVEMENT SERVICES,Financial Services,L B SOUTHWARK - INT,08-Jun-2020,22.00
EARLY ADOPTER PROGRAMMES,Accommodation,HIGHSTREET VOUCHERS,08-Jun-2020,200.00
EARLY HELP,Accommodation,CASH ADVANCE FEE,08-Jun-2020,5.90
EARLY HELP,Domestic Goods-Other,AMAZON.CO.UK,08-Jun-2020,49.60
EARLY HELP,Domestic Goods-Other,AMZNMKTPLACE AMAZON.CO.UK,08-Jun-2020,98.91
EVENTS & FILMING,Domestic Goods-Other,AMAZON.CO.UK,08-Jun-2020,19.27
FAMILY SUPPORT & CHILD PROTECTION,Accommodation,CASH ADVANCE FEE,08-Jun-2020,10.33
FAMILY SUPPORT & CHILD PROTECTION,Financial Services,GEN REGISTER OFFICE,08-Jun-2020,-25.00
FAMILY SUPPORT & CHILD PROTECTION,Financial Services,ROYAL BANK UK /,08-Jun-2020,80.00
FAMILY SUPPORT & CHILD PROTECTION,Financial Services,GEN REGISTER OFFICE,08-Jun-2020,25.00
FAMILY SUPPORT & CHILD PROTECTION,Financial Services,BT PHONE / ATM KIOSK,08-Jun-2020,30.99
FAMILY SUPPORT & CHILD PROTECTION,Financial Services,ROYAL BANK UK /,08-Jun-2020,130.00
FINANCIAL PLANNING AND MANAGEMENT,Domestic Goods-Other,ARGOS LTD,08-Jun-2020,790.95
HOUSING OPTIONS - GF,Books/Publications/Resources,WHICH,08-Jun-2020,11.75
HOUSING OPTIONS - GF,Furniture-Other,ARGOS LTD,08-Jun-2020,18.95
MH SERVICES,Legal Services-Other,HMCOURTS-SERVICE.G,08-Jun-2020,150.00
NO RECOURSE TO PUBLIC FUNDS,Accommodation,CASH ADVANCE FEE,08-Jun-2020,2.95
OP SERVICES,Catering Food & Drink,TESCO-STORES 6567,08-Jun-2020,54.72
16+ INDEPENDENCE SERVICE (LEAVING CARE),Accommodation,CASH ADVANCE FEE,09-Jun-2020,8.56
ACCESS & ASSESSMENTS,Travel/Subsistence,OYSTER BUS AUTOLOAD,09-Jun-2020,20.00
ASC SENIOR MANAGEMENT,Catering Food & Drink,WWW.BODYKIND.COM,09-Jun-2020,364.80
ASC SENIOR MANAGEMENT,Facilities-Market Research,ZOOM.GBP,09-Jun-2020,14.39
ASC SENIOR MANAGEMENT,Healthcare Equipment,ISHOP,09-Jun-2020,981.00
ASC SENIOR MANAGEMENT,Travel/Subsistence,TFL BUSINESS BOPS WEB,09-Jun-2020,11.50
BEREAVEMENT SERVICES,Domestic Goods-Other,AMZNMktplace,09-Jun-2020,32.50
EARLY HELP,Taxi Fares,UBER TRIP HELP.UBER.COM,09-Jun-2020,15.39
EARLY HELP,Taxi Fares,UBER TRIP HELP.UBER.COM,09-Jun-2020,14.04
FAMILY SUPPORT & CHILD PROTECTION,Accommodation,CASH ADVANCE FEE,09-Jun-2020,2.95
FAMILY SUPPORT & CHILD PROTECTION,Accommodation,CASH ADVANCE FEE,09-Jun-2020,8.85
FAMILY SUPPORT & CHILD PROTECTION,Healthcare Services,CRYSTAL HEALTH GROUP LIMI,09-Jun-2020,156.00
FAMILY SUPPORT & CHILD PROTECTION,Telecommunications,EE TOP UP VESTA,09-Jun-2020,15.00
FAMILY SUPPORT & CHILD PROTECTION,Travel/Subsistence,OYSTER BUS AUTOLOAD,09-Jun-2020,20.00
MH SERVICES,Legal Services-Other,HMCOURTS-SERVICE.G,09-Jun-2020,75.00
NO RECOURSE TO PUBLIC FUNDS,Financial Services,ROYAL BANK UK /,09-Jun-2020,70.00
QUALITY ASSURANCE AND PERFORMANCE,Facilities-Printing,Amazon.co.uk,09-Jun-2020,26.19
SCHOOL & EDUCATIONAL IMPROVEMENT SERVICE,Financial Services-Grants,STEPHEN LAWRENCE TRUST,09-Jun-2020,500.00
ACCESS & ASSESSMENTS,Accommodation,CASH ADVANCE FEE,10-Jun-2020,2.95
ACCESS & ASSESSMENTS,Financial Services,ROYAL BANK UK /,10-Jun-2020,100.00
ACCESS & ASSESSMENTS,Travel/Subsistence,OYSTER BUS AUTOLOAD,10-Jun-2020,20.00
ASC SENIOR MANAGEMENT,Domestic Goods-Other,AMZNMktplace,10-Jun-2020,34.80
ASC SENIOR MANAGEMENT,IT Software,SP * TIME CAPSULES UK,10-Jun-2020,487.90
CHILDREN LOOKED AFTER,Accommodation,HTTPS YOUGOTAGIFT COM,10-Jun-2020,56.66
CHILDREN LOOKED AFTER,Accommodation,HTTPS YOUGOTAGIFT COM,10-Jun-2020,373.29
CHILDREN LOOKED AFTER,Domestic Goods-Other,ARGOS LTD,10-Jun-2020,74.93
FAMILY SUPPORT & CHILD PROTECTION,Accommodation,CASH ADVANCE FEE,10-Jun-2020,2.95
FAMILY SUPPORT & CHILD PROTECTION,Accommodation,HTTPS YOUGOTAGIFT COM,10-Jun-2020,204.46
FAMILY SUPPORT & CHILD PROTECTION,Facilities-Printing,Amazon.co.uk,10-Jun-2020,28.49
FAMILY SUPPORT & CHILD PROTECTION,Financial Services,ROYAL BANK UK /,10-Jun-2020,150.00
FAMILY SUPPORT & CHILD PROTECTION,Travel/Subsistence,OYSTER AUTO TOPUP,10-Jun-2020,20.00
FINANCIAL PLANNING AND MANAGEMENT,Domestic Goods-Other,ARGOS LTD,10-Jun-2020,898.84
HOUSING MANAGEMENT SERVICES,Horticultural-Seeds & Plants,Euroflorist AB,10-Jun-2020,24.98
OT SERVICES,Facilities-Retail,SYDENHAM INSIDE,10-Jun-2020,-54.00
PARKS & LEISURE SERVICES,Building-General,SCREWFIX DIRECT,10-Jun-2020,139.63
PARKS & LEISURE SERVICES,Building-Tools,WWW.SAFETYLIFTINGEAR.C,10-Jun-2020,488.98
PARKS & LEISURE SERVICES,Consultancy-Business,FORTRESS MASTER LOCKSMITH,10-Jun-2020,37.96
ASC SENIOR MANAGEMENT,Travel/Subsistence,TFL BUSINESS BOPS WEB,11-Jun-2020,11.50
CAMPAIGNS & COMMUNICATIONS,Facilities-Design & Photography,iStock.com,11-Jun-2020,900.00
FAMILY SUPPORT & CHILD PROTECTION,Accommodation,CASH ADVANCE FEE,11-Jun-2020,4.43
FAMILY SUPPORT & CHILD PROTECTION,Education-Other,FREEDOM PROGRAMME LIMITED,11-Jun-2020,12.00
HOUSING MANAGEMENT SERVICES,Financial Services,LAMBETH INTERNET PAYM,11-Jun-2020,11.00
NO RECOURSE TO PUBLIC FUNDS,Accommodation,CASH ADVANCE FEE,11-Jun-2020,2.95
PARKS & LEISURE SERVICES,Building-General,SCREWFIX DIRECT,11-Jun-2020,69.90
RESIDENT ENGAGEMENT,Books/Publications/Resources,WWW.INSIDEHOUSING.CO.U,11-Jun-2020,206.00
16+ INDEPENDENCE SERVICE (LEAVING CARE),Financial Services,LAMBETH INTERNET PAYM,12-Jun-2020,18.00
16+ INDEPENDENCE SERVICE (LEAVING CARE),Works-Construction,DISCOUNT CARPETS S,12-Jun-2020,764.00
ACCESS & ASSESSMENTS,Travel/Subsistence,OYSTER BUS AUTOLOAD,12-Jun-2020,20.00
BEREAVEMENT SERVICES,Domestic Goods-Other,ARGOS LTD,12-Jun-2020,179.99
FAMILY SUPPORT & CHILD PROTECTION,Facilities-Printing,Amazon.co.uk,12-Jun-2020,59.99
FAMILY SUPPORT & CHILD PROTECTION,Financial Services,ROYAL BANK UK /,12-Jun-2020,100.00
FAMILY SUPPORT & CHILD PROTECTION,Financial Services,ROYAL BANK UK /,12-Jun-2020,60.00
FAMILY SUPPORT & CHILD PROTECTION,Travel/Subsistence,OYSTER ONLINE,12-Jun-2020,20.00
FAMILY SUPPORT & CHILD PROTECTION,Travel/Subsistence,OYSTER BUS AUTOLOAD,12-Jun-2020,20.00
OP SERVICES,Catering Food & Drink,TESCO-STORES 6567,12-Jun-2020,27.36
PARKING OPERATIONS,Facilities-Printing,Amazon.co.uk,12-Jun-2020,20.00
PARKS & LEISURE SERVICES,Domestic Goods-Other,AMZNMktplace,12-Jun-2020,35.79
PARKS & LEISURE SERVICES,Financial Services,LAND REGISTRY,12-Jun-2020,6.00
PARKS & LEISURE SERVICES,Financial Services,LAND REGISTRY,12-Jun-2020,3.00
PARKS & LEISURE SERVICES,Financial Services,LAND REGISTRY,12-Jun-2020,6.00
PARKS & LEISURE SERVICES,Financial Services,LAND REGISTRY,12-Jun-2020,6.00
PARKS & LEISURE SERVICES,Financial Services,LAND REGISTRY,12-Jun-2020,6.00
PARKS & LEISURE SERVICES,Financial Services,LAND REGISTRY,12-Jun-2020,6.00
PARKS & LEISURE SERVICES,Financial Services,LAND REGISTRY,12-Jun-2020,6.00
PARKS & LEISURE SERVICES,Financial Services,LAND REGISTRY,12-Jun-2020,6.00
PARKS & LEISURE SERVICES,Financial Services,LAND REGISTRY,12-Jun-2020,6.00
PARKS & LEISURE SERVICES,Financial Services,LAND REGISTRY,12-Jun-2020,6.00
PARKS & LEISURE SERVICES,Financial Services,LAND REGISTRY,12-Jun-2020,6.00
PARKS & LEISURE SERVICES,Financial Services,LAND REGISTRY,12-Jun-2020,6.00
PARKS & LEISURE SERVICES,Financial Services,LAND REGISTRY,12-Jun-2020,6.00
PARKS & LEISURE SERVICES,Financial Services,LAND REGISTRY,12-Jun-2020,6.00
PARKS & LEISURE SERVICES,Financial Services,LAND REGISTRY,12-Jun-2020,6.00
QUALITY ASSURANCE AND PERFORMANCE,Domestic Goods-Other,AMZNMktplace,12-Jun-2020,40.98
ACCESS & ASSESSMENTS,Travel/Subsistence,OYSTER AUTO TOPUP,13-Jun-2020,20.00
ACCESS & ASSESSMENTS,Travel/Subsistence,OYSTER BUS AUTOLOAD,13-Jun-2020,20.00
BEREAVEMENT SERVICES,Catering Food & Drink,AMZNMKTPLACE AMAZON.CO.UK,13-Jun-2020,13.98
CHILDREN LOOKED AFTER,Travel/Subsistence,OYSTER AUTO TOPUP,13-Jun-2020,20.00
EMERGENCY PLANNING,Catering Food & Drink,TESCO STORE 2143,13-Jun-2020,50.39
FAMILY SUPPORT & CHILD PROTECTION,Travel/Subsistence,OYSTER AUTO TOPUP,13-Jun-2020,20.00
ACCESS & ASSESSMENTS,Travel/Subsistence,OYSTER BUS AUTOLOAD,14-Jun-2020,20.00
EMERGENCY PLANNING,Catering Food & Drink,TESCO STORE 2143,14-Jun-2020,57.58
RESIDENT ENGAGEMENT,Facilities-Market Research,ZOOM.GBP,14-Jun-2020,14.39
16+ INDEPENDENCE SERVICE (LEAVING CARE),Domestic Goods-Other,ARGOS LTD,15-Jun-2020,299.99
16+ INDEPENDENCE SERVICE (LEAVING CARE),Domestic Goods-Other,WWW.VOUCHEREXPRESS.CO.,15-Jun-2020,100.00
16+ INDEPENDENCE SERVICE (LEAVING CARE),Domestic Goods-Other,WWW.VOUCHEREXPRESS.CO.,15-Jun-2020,30.00
ASC SENIOR MANAGEMENT,Domestic Goods-Other,WWW.ALBERT-HARRISON.CO,15-Jun-2020,647.88
ASC SENIOR MANAGEMENT,Professional & Advisory Services,PAYPAL,15-Jun-2020,180.00
CSC SENIOR MANAGEMENT,Domestic Goods-Other,AMZNMktplace,15-Jun-2020,83.95
CSC SENIOR MANAGEMENT,Domestic Goods-Other,AMZNMktplace,15-Jun-2020,118.93
DSG EARLY YEARS BLOCK,Financial Services-Grants,PACEY COMMERCIAL SERVI,15-Jun-2020,82.40
DSG HIGH NEEDS BLOCK,Education-Supplies,Amazon.co.uk,15-Jun-2020,50.00
FAMILY SUPPORT & CHILD PROTECTION,Accommodation,CASH ADVANCE FEE,15-Jun-2020,2.95
FAMILY SUPPORT & CHILD PROTECTION,Accommodation,CASH ADVANCE FEE,15-Jun-2020,2.95
FAMILY SUPPORT & CHILD PROTECTION,Domestic Goods-Other,WWW.VOUCHEREXPRESS.CO.,15-Jun-2020,50.00
FAMILY SUPPORT & CHILD PROTECTION,Travel/Subsistence,OYSTER BUS AUTOLOAD,15-Jun-2020,20.00
FINANCIAL PLANNING AND MANAGEMENT,Professional & Advisory Services,WWW.DCBLTD.COM,15-Jun-2020,"20,131.41"
MH SERVICES,Legal Services-Other,HMCOURTS-SERVICE.G,15-Jun-2020,150.00
PARKS & LEISURE SERVICES,Building-Timber,WICKES BUILDING,15-Jun-2020,11.90
PARKS & LEISURE SERVICES,Domestic Goods-Other,CURRYS ONLINE,15-Jun-2020,109.99
PARKS & LEISURE SERVICES,Horticultural-Other,WWW.KEDEL.CO.UK,15-Jun-2020,341.07
QUALITY ASSURANCE AND PERFORMANCE,Facilities-Printing,Amazon.co.uk,15-Jun-2020,6.20
SCHOOL & EDUCATIONAL IMPROVEMENT SERVICE,Consultancy-Business,AWEBER COMMUNICATIONS,15-Jun-2020,8.21
SUBSTANCE MISUSE,Domestic Goods-Other,AMZNMktplace,15-Jun-2020,32.99
16+ INDEPENDENCE SERVICE (LEAVING CARE),Domestic Goods-Other,WWW.VOUCHEREXPRESS.CO.,16-Jun-2020,30.00
16+ INDEPENDENCE SERVICE (LEAVING CARE),Domestic Goods-Other,WWW.VOUCHEREXPRESS.CO.,16-Jun-2020,40.00
ACCESS & ASSESSMENTS,Financial Services,MFG STREATHAM,16-Jun-2020,100.00
ACCESS & ASSESSMENTS,Travel/Subsistence,OYSTER BUS AUTOLOAD,16-Jun-2020,20.00
ASC SENIOR MANAGEMENT,Domestic Goods-Other,WWW.ALBERT-HARRISON.CO,16-Jun-2020,-11.23
EARLY HELP,Domestic Goods-Other,AMZNMktplace,16-Jun-2020,24.64
FAMILY SUPPORT & CHILD PROTECTION,Financial Services,GEN REGISTER OFFICE,16-Jun-2020,76.00
FAMILY SUPPORT & CHILD PROTECTION,Financial Services,GEN REGISTER OFFICE,16-Jun-2020,-31.50
FAMILY SUPPORT & CHILD PROTECTION,Financial Services,MFG STREATHAM,16-Jun-2020,100.00
FAMILY SUPPORT & CHILD PROTECTION,Travel/Subsistence,OYSTER BUS AUTOLOAD,16-Jun-2020,20.00
FINANCIAL PLANNING AND MANAGEMENT,Domestic Goods-Other,ARGOS LTD,16-Jun-2020,597.43
LEGAL SERVICES,Letting Agents,FOXTONS,16-Jun-2020,"3,495.71"
PARKS & LEISURE SERVICES,Financial Services,LAND REGISTRY,16-Jun-2020,6.00
PARKS & LEISURE SERVICES,Financial Services,LAND REGISTRY,16-Jun-2020,6.00
PARKS & LEISURE SERVICES,Works-Construction/Materials,THE TRADE HUB,16-Jun-2020,105.96
16+ INDEPENDENCE SERVICE (LEAVING CARE),Domestic Goods-Other,WWW.VOUCHEREXPRESS.CO.,17-Jun-2020,115.00
ACCESS & ASSESSMENTS,Accommodation,CASH ADVANCE FEE,17-Jun-2020,2.95
ASC SENIOR MANAGEMENT,Travel/Subsistence,TFL BUSINESS BOPS WEB,17-Jun-2020,24.00
BEREAVEMENT SERVICES,Domestic Goods-Other,AMZNMktplace,17-Jun-2020,63.45
CAMPAIGNS & COMMUNICATIONS,Facilities-Design & Photography,CANVA* 02725-0580190,17-Jun-2020,10.66
CHILDREN LOOKED AFTER,Domestic Goods-Other,WWW.VOUCHEREXPRESS.CO.,17-Jun-2020,50.00
CHILDREN LOOKED AFTER,Domestic Goods-Other,WWW.VOUCHEREXPRESS.CO.,17-Jun-2020,100.00
FAMILY SUPPORT & CHILD PROTECTION,Accommodation,CASH ADVANCE FEE,17-Jun-2020,2.95
FAMILY SUPPORT & CHILD PROTECTION,Domestic Goods-Other,WWW.VOUCHEREXPRESS.CO.,17-Jun-2020,60.00
FAMILY SUPPORT & CHILD PROTECTION,Financial Services,NATWEST BANK  /,17-Jun-2020,30.00
FAMILY SUPPORT & CHILD PROTECTION,Travel/Subsistence,OYSTER BUS AUTOLOAD,17-Jun-2020,20.00
HOUSING OPTIONS - GF,Furniture-Domestic Furniture,IKEA LTD SHOP ONLINE,17-Jun-2020,459.00
PARKS & LEISURE SERVICES,Facilities-Advertising,WH SMITH,17-Jun-2020,18.24
SCHOOL & EDUCATIONAL IMPROVEMENT SERVICE,Facilities-Advertising,FACEBK LHSWZTWBE2,17-Jun-2020,453.54
SPECIALIST YOUTH,Travel/Subsistence,OYSTER AUTO TOPUP,17-Jun-2020,20.00
16+ INDEPENDENCE SERVICE (LEAVING CARE),Domestic Goods-Other,CURRYS ONLINE,18-Jun-2020,-109.99
16+ INDEPENDENCE SERVICE (LEAVING CARE),Domestic Goods-Other,CURRYS ONLINE,18-Jun-2020,109.99
16+ INDEPENDENCE SERVICE (LEAVING CARE),Domestic Goods-Other,WWW.VOUCHEREXPRESS.CO.,18-Jun-2020,30.00
16+ INDEPENDENCE SERVICE (LEAVING CARE),Domestic Goods-Other,ARGOS LTD,18-Jun-2020,198.93
16+ INDEPENDENCE SERVICE (LEAVING CARE),Furniture-Domestic Furniture,PAYPAL,18-Jun-2020,544.99
ACCESS & ASSESSMENTS,Travel/Subsistence,OYSTER BUS AUTOLOAD,18-Jun-2020,20.00
ASC SENIOR MANAGEMENT,Facilities-Design & Photography,CONTRADO-BAGS OF LOVE,18-Jun-2020,508.95
ASC SENIOR MANAGEMENT,Facilities-Printing,WWW.SOLOPRESS.COM,18-Jun-2020,25.85
CHILDREN LOOKED AFTER,Domestic Goods-Other,ARGOS LTD,18-Jun-2020,214.99
CHILDREN LOOKED AFTER,Furniture-Domestic Furniture,IKEA LTD SHOP ONLINE,18-Jun-2020,288.00
CHILDREN WITH DISABILITIES,Domestic Goods-Other,AO RETAIL LIMITED,18-Jun-2020,259.00
DEMOCRATIC SERVICES,Consultancy-Business,EB *SEMINAR REVIEWING,18-Jun-2020,-299.94
DSG EARLY YEARS BLOCK,Facilities-Market Research,ZOOM.GBP,18-Jun-2020,143.88
FAMILY SUPPORT & CHILD PROTECTION,Accommodation,CASH ADVANCE FEE,18-Jun-2020,2.95
FAMILY SUPPORT & CHILD PROTECTION,Travel/Subsistence,OYSTER AUTO TOPUP,18-Jun-2020,20.00
HOUSING MANAGEMENT SERVICES,Domestic Goods-Other,AMZNMktplace,18-Jun-2020,38.98
LOCAL SAFEGUARDING CHILDRENS BOARD (LSCB),Domestic Goods-Other,AMZNMktplace,18-Jun-2020,59.63
LOCAL SAFEGUARDING CHILDRENS BOARD (LSCB),IT Consumables,AOCPP,18-Jun-2020,164.00
LOCAL SAFEGUARDING CHILDRENS BOARD (LSCB),IT Software,POWTOON.COM,18-Jun-2020,346.70
MH SERVICES,Legal Services-Other,HMCOURTS-SERVICE.G,18-Jun-2020,150.00
PARKING OPERATIONS,Travel/Subsistence,J.B.W. GROUP LTD,18-Jun-2020,556.00
PARKS & LEISURE SERVICES,Building-General,HTTP://WWW.MULTIPOINTL,18-Jun-2020,315.90
PARKS & LEISURE SERVICES,Domestic Goods-Other,SAFETYSUPPL,18-Jun-2020,42.48
SCHOOL & EDUCATIONAL IMPROVEMENT SERVICE,Accommodation,GOOGLE  ADS3485321156,18-Jun-2020,324.87
SERVICE TRANSFORMATION - GF,Domestic Goods-Other,AMAZON.CO.UK,18-Jun-2020,50.00
SHELTERED HOUSING,Domestic Goods-Other,AMZNMktplace,18-Jun-2020,51.80
16+ INDEPENDENCE SERVICE (LEAVING CARE),Facilities-Storage,WWW.SAFESTORE.CO.UK,19-Jun-2020,151.42
16+ INDEPENDENCE SERVICE (LEAVING CARE),Financial Services,BT PHONE / ATM KIOSK,19-Jun-2020,75.99
16+ INDEPENDENCE SERVICE (LEAVING CARE),Travel/Subsistence,OYSTER BUS AUTOLOAD,19-Jun-2020,20.00
ASC SENIOR MANAGEMENT,Arts & Leisure Services,PAYPAL,19-Jun-2020,805.22
ASC SENIOR MANAGEMENT,Domestic Goods-Other,WWW.ALBERT-HARRISON.CO,19-Jun-2020,484.36
ASC SENIOR MANAGEMENT,Travel/Subsistence,TFL BUSINESS BOPS WEB,19-Jun-2020,14.00
CHILDREN LOOKED AFTER,Domestic Goods-Other,WWW.VOUCHEREXPRESS.CO.,19-Jun-2020,30.00
CHILDREN LOOKED AFTER,Travel/Subsistence,OYSTER BUS AUTOLOAD,19-Jun-2020,20.00
FAMILY SUPPORT & CHILD PROTECTION,Domestic Goods-Other,WWW.VOUCHEREXPRESS.CO.,19-Jun-2020,50.00
FAMILY SUPPORT & CHILD PROTECTION,Domestic Goods-Other,ARGOS LTD,19-Jun-2020,181.95
FAMILY SUPPORT & CHILD PROTECTION,Travel/Subsistence,OYSTER AUTO TOPUP,19-Jun-2020,20.00
HOUSING MANAGEMENT SERVICES,Travel/Subsistence,LUL TICKET MACHINE,19-Jun-2020,100.00
LAMBETH COUNTRY SHOW,Stationery,PAYPAL,19-Jun-2020,43.60
MH SERVICES,Consultancy-Business,POSTURITE LTD,19-Jun-2020,67.14
PARKS & LEISURE SERVICES,Building-Timber,TP NORWOOD 9014,19-Jun-2020,124.20
RESIDENT ENGAGEMENT,Domestic Goods-Other,ARGOS LTD,19-Jun-2020,389.98
RESIDENT ENGAGEMENT,Furniture-Domestic Furniture,WWW.STAC.CO.UK,19-Jun-2020,493.80
SERVICE TRANSFORMATION - GF,Domestic Goods-Other,AMAZON.CO.UK,19-Jun-2020,40.00
SPECIALIST YOUTH,Public Transport,OYSTER AUTO TOPUP,19-Jun-2020,20.00
CAMPAIGNS & COMMUNICATIONS,IT Software,ADOBE CREATIVE CLOUD,20-Jun-2020,212.40
EMERGENCY PLANNING,Catering Food & Drink,TESCO STORE 2143,21-Jun-2020,57.32
HOUSING MANAGEMENT SERVICES,Domestic Goods-Other,AMZNMktplace,21-Jun-2020,192.64
16+ INDEPENDENCE SERVICE (LEAVING CARE),Travel/Subsistence,OYSTER BUS AUTOLOAD,22-Jun-2020,20.00
ASC SENIOR MANAGEMENT,Facilities-Printing,SOLOPRESS.COM V/TERMINAL,22-Jun-2020,55.44
CHILDREN LOOKED AFTER,Travel/Subsistence,LNER WEB SALES,22-Jun-2020,86.50
EMERGENCY PLANNING,Catering Food & Drink,TESCO STORE 2143,22-Jun-2020,68.99
FACILITIES MANAGEMENT,Telecommunications,BT BILL PAYMENT 2,22-Jun-2020,67.12
FACILITIES MANAGEMENT,Telecommunications,BT BILL PAYMENT 2,22-Jun-2020,107.07
FACILITIES MANAGEMENT,Telecommunications,BT BILL PAYMENT 2,22-Jun-2020,241.21
FAMILY SUPPORT & CHILD PROTECTION,Accommodation,CASH ADVANCE FEE,22-Jun-2020,2.95
FAMILY SUPPORT & CHILD PROTECTION,Domestic Goods-Other,ARGOS LTD,22-Jun-2020,149.99
FAMILY SUPPORT & CHILD PROTECTION,Financial Services,GEN REGISTER OFFICE,22-Jun-2020,38.00
FAMILY SUPPORT & CHILD PROTECTION,Travel/Subsistence,OYSTER ONLINE,22-Jun-2020,30.00
FAMILY SUPPORT & CHILD PROTECTION,Travel/Subsistence,OYSTER BUS AUTOLOAD,22-Jun-2020,20.00
FINANCIAL PLANNING AND MANAGEMENT,Domestic Goods-Other,ARGOS LTD,22-Jun-2020,670.53
HOUSING MANAGEMENT SERVICES,Financial Services,LAMBETH INTERNET PAYM,22-Jun-2020,11.00
MH SERVICES,Legal Services-Other,HMCOURTS-SERVICE.G,22-Jun-2020,150.00
RESIDENT ENGAGEMENT,Furniture-Domestic Furniture,WWW.STAC.CO.UK,22-Jun-2020,439.80
16+ INDEPENDENCE SERVICE (LEAVING CARE),Domestic Goods-Other,ARGOS LTD,23-Jun-2020,-214.99
16+ INDEPENDENCE SERVICE (LEAVING CARE),Furniture-Domestic Furniture,WWW.DIVAN-BEDS.CO.UK,23-Jun-2020,395.00
ACCESS & ASSESSMENTS,Domestic Goods-Other,ARGOS LTD,23-Jun-2020,83.94
ACCESS & ASSESSMENTS,Travel/Subsistence,OYSTER BUS AUTOLOAD,23-Jun-2020,20.00
ASC SENIOR MANAGEMENT,Domestic Goods-Other,AMZNMktplace,23-Jun-2020,23.98
ASC SENIOR MANAGEMENT,Travel/Subsistence,TFL BUSINESS BOPS WEB,23-Jun-2020,15.00
CHILDREN LOOKED AFTER,Domestic Goods-Other,ARGOS LTD,23-Jun-2020,160.92
CHILDREN LOOKED AFTER,Domestic Goods-Other,ARGOS LTD,23-Jun-2020,248.62
CHILDREN LOOKED AFTER,Domestic Goods-Other,ARGOS LTD,23-Jun-2020,398.99
CHILDREN LOOKED AFTER,Domestic Goods-Other,CURRYS ONLINE,23-Jun-2020,383.99
CHILDREN LOOKED AFTER,Domestic Goods-Other,ARGOS LTD,23-Jun-2020,460.14
CHILDREN LOOKED AFTER,Domestic Goods-Other,CURRYS ONLINE,23-Jun-2020,559.96
CHILDREN LOOKED AFTER,Furniture-Domestic Furniture,WF* WAYFAIR 3081810214,23-Jun-2020,934.88
EARLY HELP,Domestic Goods-Other,AMZNMktplace,23-Jun-2020,12.99
EMERGENCY PLANNING,Catering Food & Drink,POUND PLUS,23-Jun-2020,7.50
HOUSING MANAGEMENT SERVICES,IT Software-Customised,INTELLISOFTWARE LTD,23-Jun-2020,52.80
OT SERVICES,Consultancy-Business,SECURITYSAFETYPRODUCTS,23-Jun-2020,107.70
PARKS & LEISURE SERVICES,Horticultural-Other,WWW.EVEREDGE.CO.UK,23-Jun-2020,495.60
PARKS & LEISURE SERVICES,Vehicle Parts,STOCKWELL MOTOR ACCES,23-Jun-2020,68.59
16+ INDEPENDENCE SERVICE (LEAVING CARE),Accommodation,HTTPS YOUGOTAGIFT COM,24-Jun-2020,55.52
16+ INDEPENDENCE SERVICE (LEAVING CARE),Building-Floors,CARPETS FOR LESS (HARL,24-Jun-2020,547.00
16+ INDEPENDENCE SERVICE (LEAVING CARE),Domestic Goods-Other,ARGOS LTD,24-Jun-2020,229.99
16+ INDEPENDENCE SERVICE (LEAVING CARE),Domestic Goods-Other,CURRYS ONLINE,24-Jun-2020,330.00
ASC SENIOR MANAGEMENT,Banquet & Catering,BFS GROUP,24-Jun-2020,"1,696.59"
ASC SENIOR MANAGEMENT,Domestic Goods-Other,AMZNMktplace,24-Jun-2020,38.30
ASC SENIOR MANAGEMENT,Facilities-Market Research,WWW.NISBETS.COM,24-Jun-2020,46.80
ASC SENIOR MANAGEMENT,IT Software-Customised,WWW.CATERKWIK.CO.UK,24-Jun-2020,779.99
ASC SENIOR MANAGEMENT,Travel/Subsistence,TFL BUSINESS BOPS WEB,24-Jun-2020,15.00
CHILDREN LOOKED AFTER,Domestic Goods-Other,AMZNMktplace,24-Jun-2020,54.99
DSG HIGH NEEDS BLOCK,Domestic Goods-Other,AMZNMktplace,24-Jun-2020,53.46
EARLY HELP,Taxi Fares,UBER TRIP HELP.UBER.COM,24-Jun-2020,22.97
FAMILY SUPPORT & CHILD PROTECTION,Accommodation,HTTPS YOUGOTAGIFT COM,24-Jun-2020,46.21
FAMILY SUPPORT & CHILD PROTECTION,Accommodation,HTTPS YOUGOTAGIFT COM,24-Jun-2020,45.84
FAMILY SUPPORT & CHILD PROTECTION,Financial Services,ROYAL BANK UK /,24-Jun-2020,60.00
FAMILY SUPPORT & CHILD PROTECTION,Financial Services,ROYAL BANK UK /,24-Jun-2020,90.00
FAMILY SUPPORT & CHILD PROTECTION,Travel/Subsistence,OYSTER AUTO TOPUP,24-Jun-2020,20.00
FAMILY SUPPORT & CHILD PROTECTION,Travel/Subsistence,OYSTER AUTO TOPUP,24-Jun-2020,20.00
FAMILY SUPPORT & CHILD PROTECTION,Travel/Subsistence,OYSTER ONLINE,24-Jun-2020,20.00
FOSTERING & PERMANENCY,Domestic Goods-Other,AMZNMktplace,24-Jun-2020,94.48
FOSTERING & PERMANENCY,Travel/Subsistence,OYSTER AUTO TOPUP,24-Jun-2020,20.00
HOUSING MANAGEMENT SERVICES,Financial Services,LAMBETH INTERNET PAYM,24-Jun-2020,11.00
MH SERVICES,Domestic Goods-Other,ARGOS LTD,24-Jun-2020,337.19
MH SERVICES,Domestic Goods-Other,ARGOS LTD,24-Jun-2020,117.95
MH SERVICES,Legal Services-Other,HMCOURTS-SERVICE.G,24-Jun-2020,150.00
16+ INDEPENDENCE SERVICE (LEAVING CARE),Domestic Goods-Other,ARGOS LTD,25-Jun-2020,132.89
16+ INDEPENDENCE SERVICE (LEAVING CARE),Furniture-Domestic Furniture,IKEA LTD SHOP ONLINE,25-Jun-2020,-288.00
16+ INDEPENDENCE SERVICE (LEAVING CARE),Travel/Subsistence,OYSTER BUS AUTOLOAD,25-Jun-2020,20.00
ACCESS & ASSESSMENTS,Travel/Subsistence,OYSTER BUS AUTOLOAD,25-Jun-2020,20.00
ASC SENIOR MANAGEMENT,Travel/Subsistence,TFL BUSINESS BOPS WEB,25-Jun-2020,15.00
CHILDREN LOOKED AFTER,Domestic Goods-Other,ARGOS LTD,25-Jun-2020,115.00
CHILDREN LOOKED AFTER,Domestic Goods-Other,CURRYS T/SALES,25-Jun-2020,194.99
CHILDREN LOOKED AFTER,Travel/Subsistence,OYSTER AUTO TOPUP,25-Jun-2020,20.00
CHILDREN LOOKED AFTER,Travel/Subsistence,OYSTER BUS AUTOLOAD,25-Jun-2020,20.00
FAMILY SUPPORT & CHILD PROTECTION,Accommodation,CASH ADVANCE FEE,25-Jun-2020,5.90
FAMILY SUPPORT & CHILD PROTECTION,Travel/Subsistence,OYSTER BUS AUTOLOAD,25-Jun-2020,20.00
PARKING OPERATIONS,Stationery,WWW.POSTOFFICESHOP.CO.UK,25-Jun-2020,60.49
PARKS & LEISURE SERVICES,Building-Paint,LEYLAND SDM,25-Jun-2020,48.23
PARKS & LEISURE SERVICES,Building-Timber,SELCO TRADING CTR,25-Jun-2020,73.77
PARKS & LEISURE SERVICES,IT Hardware,Selco Trade Centres Ltd,25-Jun-2020,149.06
PUBLIC HEALTH - ADULTS,Domestic Goods-Other,AMZNMktplace,25-Jun-2020,56.99
16+ INDEPENDENCE SERVICE (LEAVING CARE),Accommodation,HTTPS YOUGOTAGIFT COM,26-Jun-2020,203.68
16+ INDEPENDENCE SERVICE (LEAVING CARE),Accommodation,HTTPS YOUGOTAGIFT COM,26-Jun-2020,58.37
16+ INDEPENDENCE SERVICE (LEAVING CARE),Domestic Goods-Other,CURRYS ONLINE,26-Jun-2020,"1,556.98"
16+ INDEPENDENCE SERVICE (LEAVING CARE),Domestic Goods-Other,CURRYS ONLINE,26-Jun-2020,-568.99
16+ INDEPENDENCE SERVICE (LEAVING CARE),Domestic Goods-Other,WWW.VOUCHEREXPRESS.CO.,26-Jun-2020,50.00
16+ INDEPENDENCE SERVICE (LEAVING CARE),Domestic Goods-Other,WWW.VOUCHEREXPRESS.CO.,26-Jun-2020,50.00
16+ INDEPENDENCE SERVICE (LEAVING CARE),Financial Services,LAMBETH INTERNET PAYM,26-Jun-2020,18.00
16+ INDEPENDENCE SERVICE (LEAVING CARE),Haulage,HAPPY 2 MOVE LIMIT,26-Jun-2020,216.00
ACCESS & ASSESSMENTS,Accommodation,HTTPS YOUGOTAGIFT COM,26-Jun-2020,35.26
ACCESS & ASSESSMENTS,Travel/Subsistence,OYSTER BUS AUTOLOAD,26-Jun-2020,20.00
ACCESS & ASSESSMENTS,Travel/Subsistence,OYSTER AUTO TOPUP,26-Jun-2020,20.00
ASC SENIOR MANAGEMENT,Domestic Goods-Other,WWW.ALBERT-HARRISON.CO,26-Jun-2020,753.84
CHILDREN LOOKED AFTER,Domestic Goods-Other,ARGOS LTD,26-Jun-2020,256.94
CHILDREN LOOKED AFTER,Travel/Subsistence,OYSTER BUS AUTOLOAD,26-Jun-2020,20.00
CHILDREN WITH DISABILITIES,Travel/Subsistence,OYSTER BUS AUTOLOAD,26-Jun-2020,20.00
FAMILY SUPPORT & CHILD PROTECTION,Financial Services,Sainsburys Bank CASH,26-Jun-2020,190.00
FAMILY SUPPORT & CHILD PROTECTION,Travel/Subsistence,OYSTER BUS AUTOLOAD,26-Jun-2020,20.00
LOCAL SAFEGUARDING CHILDRENS BOARD (LSCB),Consultancy-Other,THE HUB EVENTS LTD,26-Jun-2020,336.00
LOCAL SAFEGUARDING CHILDRENS BOARD (LSCB),Domestic Goods-Other,AMZNMktplace,26-Jun-2020,65.42
PARKS & LEISURE SERVICES,Building-Others,JOHNSTON SWEEPERS,26-Jun-2020,15.71
PARKS & LEISURE SERVICES,Building-Paint,LEYLAND SDM,26-Jun-2020,64.45
16+ INDEPENDENCE SERVICE (LEAVING CARE),Domestic Goods-Other,ARGOS LTD,27-Jun-2020,208.73
ACCESS & ASSESSMENTS,Facilities-Market Research,Amazon Prime,27-Jun-2020,7.99
ASC SENIOR MANAGEMENT,Travel/Subsistence,TFL BUSINESS BOPS WEB,27-Jun-2020,15.00
EMERGENCY PLANNING,Catering Food & Drink,TESCO STORE 2143,27-Jun-2020,63.43
EVENTS & FILMING,Facilities-Advertising,FACEBK *B3ZBDUEJK2,27-Jun-2020,40.00
LIBRARIES & ARCHIVES,Facilities-Market Research,ZOOM.GBP,27-Jun-2020,48.00
SPECIALIST YOUTH,Public Transport,OYSTER AUTO TOPUP,27-Jun-2020,20.00
SPECIALIST YOUTH,Travel/Subsistence,OYSTER AUTO TOPUP,27-Jun-2020,20.00
ACCESS & ASSESSMENTS,Travel/Subsistence,OYSTER BUS AUTOLOAD,28-Jun-2020,20.00
ASC SENIOR MANAGEMENT,Professional & Advisory Services,PAYPAL,28-Jun-2020,400.00
EMERGENCY PLANNING,Catering Food & Drink,TESCO STORE 2143,28-Jun-2020,51.48
EVENTS & FILMING,Consultancy-Business,BLS*MONDAY.COM,28-Jun-2020,223.20
EVENTS & FILMING,Professional & Advisory Services,ALLSEATED SUBSCRIPTION,28-Jun-2020,74.42
FAMILY SUPPORT & CHILD PROTECTION,Travel/Subsistence,OYSTER BUS AUTOLOAD,28-Jun-2020,20.00
FAMILY SUPPORT & CHILD PROTECTION,Travel/Subsistence,OYSTER BUS AUTOLOAD,28-Jun-2020,20.00
OP SERVICES,Catering Food & Drink,TESCO-STORES 6567,28-Jun-2020,27.36
SPECIALIST YOUTH,Public Transport,OYSTER AUTO TOPUP,28-Jun-2020,20.00
SPECIALIST YOUTH,Travel/Subsistence,OYSTER AUTO TOPUP,28-Jun-2020,20.00
16+ INDEPENDENCE SERVICE (LEAVING CARE),Financial Services,BT PHONE / ATM KIOSK,29-Jun-2020,15.99
16+ INDEPENDENCE SERVICE (LEAVING CARE),Financial Services,LOYD - 18 ACRE LANE,29-Jun-2020,80.00
ASC SENIOR MANAGEMENT,Domestic Goods-Other,AMZNMktplace,29-Jun-2020,192.34
ASC SENIOR MANAGEMENT,Travel/Subsistence,TFL BUSINESS BOPS WEB,29-Jun-2020,15.00
CAMPAIGNS & COMMUNICATIONS,Facilities-Advertising,FACEBK 2WMNCU66M2,29-Jun-2020,60.00
CHILDREN LOOKED AFTER,Financial Services,LOYD - 18 ACRE LANE,29-Jun-2020,170.00
CSC SENIOR MANAGEMENT,Domestic Goods-Other,AMZNMktplace,29-Jun-2020,38.78
EVENTS & FILMING,Facilities-Advertising,FACEBK *DW9S4UJJK2,29-Jun-2020,40.00
FAMILY SUPPORT & CHILD PROTECTION,Accommodation,HTTPS YOUGOTAGIFT COM,29-Jun-2020,172.27
FAMILY SUPPORT & CHILD PROTECTION,Accommodation,CASH ADVANCE FEE,29-Jun-2020,7.38
FAMILY SUPPORT & CHILD PROTECTION,Domestic Goods-Other,ARGOS LTD,29-Jun-2020,53.94
FINANCIAL PLANNING AND MANAGEMENT,Domestic Goods-Other,ARGOS LTD,29-Jun-2020,-109.00
HOUSING MANAGEMENT SERVICES,Facilities-Printing,Amazon.co.uk,29-Jun-2020,45.00
MH SERVICES,Accommodation,PASHA HOTEL,29-Jun-2020,780.00
MH SERVICES,Legal Services-Other,HMCOURTS-SERVICE.G,29-Jun-2020,150.00
PARKS & LEISURE SERVICES,Building-General,SCREWFIX DIRECT,29-Jun-2020,39.92
PARKS & LEISURE SERVICES,Building-Roofing,TARA FABRICATIONS,29-Jun-2020,216.00
SERVICE TRANSFORMATION - GF,Education-Musical Instruments,Prime Video*NJ2I22BF5,29-Jun-2020,0.00
16+ INDEPENDENCE SERVICE (LEAVING CARE),Accommodation,HTTPS YOUGOTAGIFT COM,30-Jun-2020,35.41
16+ INDEPENDENCE SERVICE (LEAVING CARE),Domestic Goods-Other,ARGOS LTD,30-Jun-2020,863.96
16+ INDEPENDENCE SERVICE (LEAVING CARE),Domestic Goods-Other,AO RETAIL LIMITED,30-Jun-2020,239.00
16+ INDEPENDENCE SERVICE (LEAVING CARE),Furniture-Domestic Furniture,PAYPAL,30-Jun-2020,329.00
ACCESS & ASSESSMENTS,Financial Services,HSBC/BRIXTON RD E1,30-Jun-2020,60.00
ASC SENIOR MANAGEMENT,Facilities-Market Research,WWW.NISBETS.COM,30-Jun-2020,61.19
CAMPAIGNS & COMMUNICATIONS,IT Services,WINSERVE3040547,30-Jun-2020,11.99
CHILDREN LOOKED AFTER,Accommodation,CASH ADVANCE FEE,30-Jun-2020,3.25
CHILDREN WITH DISABILITIES,Domestic Goods-Other,ARGOS LTD,30-Jun-2020,119.99
EVENTS & FILMING,Facilities-Advertising,FACEBK *NHGT5UJJK2,30-Jun-2020,8.89
FAMILY SUPPORT & CHILD PROTECTION,Accommodation,CASH ADVANCE FEE,30-Jun-2020,2.95
FAMILY SUPPORT & CHILD PROTECTION,Accommodation,CASH ADVANCE FEE,30-Jun-2020,5.90
FAMILY SUPPORT & CHILD PROTECTION,Accommodation,HTTPS YOUGOTAGIFT COM,30-Jun-2020,146.67
FAMILY SUPPORT & CHILD PROTECTION,Accommodation,HTTPS YOUGOTAGIFT COM,30-Jun-2020,35.13
FAMILY SUPPORT & CHILD PROTECTION,Financial Services,HSBC/BRIXTON RD E2,30-Jun-2020,90.00
FAMILY SUPPORT & CHILD PROTECTION,Financial Services,HSBC/BRIXTON RD E1,30-Jun-2020,100.00
FAMILY SUPPORT & CHILD PROTECTION,Financial Services,HSBC/BRIXTON RD E2,30-Jun-2020,50.00
HOUSING MANAGEMENT SERVICES,Travel/Subsistence,LUL TICKET MACHINE,30-Jun-2020,50.00
HOUSING OPTIONS - GF,Furniture-Domestic Furniture,IKEA LTD SHOP ONLINE,30-Jun-2020,238.00
PARKING INVESTIGATIONS,Travel/Subsistence,OYSTER BUS AUTOLOAD,30-Jun-2020,40.00
16+ INDEPENDENCE SERVICE (LEAVING CARE),Accommodation,CASH ADVANCE FEE,01-Jul-2020,2.95
16+ INDEPENDENCE SERVICE (LEAVING CARE),Domestic Goods-Other,WWW.VOUCHEREXPRESS.CO.,01-Jul-2020,20.00
16+ INDEPENDENCE SERVICE (LEAVING CARE),Domestic Goods-Other,ARGOS LTD,01-Jul-2020,153.45
16+ INDEPENDENCE SERVICE (LEAVING CARE),Domestic Goods-Other,ARGOS LTD,01-Jul-2020,211.95
16+ INDEPENDENCE SERVICE (LEAVING CARE),Financial Services,LOYD - 18 ACRE LANE,01-Jul-2020,140.00
16+ INDEPENDENCE SERVICE (LEAVING CARE),Furniture-Domestic Furniture,WAYFAIR #3067752754,01-Jul-2020,741.96
16+ INDEPENDENCE SERVICE (LEAVING CARE),Travel/Subsistence,OYSTER AUTO TOPUP,01-Jul-2020,20.00
ASC SENIOR MANAGEMENT,Domestic Goods-Other,AMAZON.CO.UK,01-Jul-2020,57.79
ASC SENIOR MANAGEMENT,Financial Services,LBL PARKING PHONE IVR,01-Jul-2020,130.00
ASC SENIOR MANAGEMENT,Professional & Advisory Services,PAYPAL,01-Jul-2020,127.68
ASC SENIOR MANAGEMENT,Travel/Subsistence,TFL BUSINESS BOPS WEB,01-Jul-2020,45.00
CAMPAIGNS & COMMUNICATIONS,IT Services,GOOGLE *GSUITE_lambeth,01-Jul-2020,20.70
CHILDREN LOOKED AFTER,Travel/Subsistence,OYSTER ONLINE,01-Jul-2020,20.00
CHILDREN WITH DISABILITIES,Travel/Subsistence,OYSTER BUS AUTOLOAD,01-Jul-2020,20.00
CLIENT,IT Software-Customised,MSFT *<E0700BFU24>,01-Jul-2020,1.73
CONTRACT MANAGEMENT,Building-General,B & Q 1037,01-Jul-2020,219.52
CSC SENIOR MANAGEMENT,Financial Services,BT PHONE / ATM KIOSK,01-Jul-2020,10.99
FAMILY SUPPORT & CHILD PROTECTION,Accommodation,CASH ADVANCE FEE,01-Jul-2020,2.95
FAMILY SUPPORT & CHILD PROTECTION,Accommodation,CASH ADVANCE FEE,01-Jul-2020,2.95
FAMILY SUPPORT & CHILD PROTECTION,Accommodation,CASH ADVANCE FEE,01-Jul-2020,2.95
FAMILY SUPPORT & CHILD PROTECTION,Domestic Goods-Other,ARGOS LTD,01-Jul-2020,87.98
FAMILY SUPPORT & CHILD PROTECTION,Financial Services,LOYD - 18 ACRE LANE,01-Jul-2020,150.00
FAMILY SUPPORT & CHILD PROTECTION,Financial Services,LOYD - 18 ACRE LANE,01-Jul-2020,350.00
FAMILY SUPPORT & CHILD PROTECTION,Financial Services,BT PHONE / ATM KIOSK,01-Jul-2020,15.99
FAMILY SUPPORT & CHILD PROTECTION,Travel/Subsistence,OYSTER BUS AUTOLOAD,01-Jul-2020,20.00
FAMILY SUPPORT & CHILD PROTECTION,Travel/Subsistence,OYSTER ONLINE,01-Jul-2020,-20.00
FOSTERING & PERMANENCY,Utilities,EDFENERGY.COM,01-Jul-2020,"1,521.19"
PARKS & LEISURE SERVICES,Consultancy-Business,FORTRESS MASTER LOCKSMITH,01-Jul-2020,39.25
PARKS & LEISURE SERVICES,Furniture-Domestic Furniture,PAYPAL,01-Jul-2020,11.99
SERVICE TRANSFORMATION - GF,Education-Musical Instruments,Prime Video*SG22C7DG5,01-Jul-2020,0.00
SPECIALIST YOUTH,Domestic Goods-Other,ARGOS LTD,01-Jul-2020,41.48
SPECIALIST YOUTH,Public Transport,OYSTER AUTO TOPUP,01-Jul-2020,20.00
16+ INDEPENDENCE SERVICE (LEAVING CARE),Accommodation,HTTPS YOUGOTAGIFT COM,02-Jul-2020,34.90
16+ INDEPENDENCE SERVICE (LEAVING CARE),Accommodation,CASH ADVANCE FEE,02-Jul-2020,5.90
16+ INDEPENDENCE SERVICE (LEAVING CARE),Domestic Goods-Other,ARGOS LTD,02-Jul-2020,263.94
16+ INDEPENDENCE SERVICE (LEAVING CARE),Financial Services,LOYD - 18 ACRE LANE,02-Jul-2020,40.00
ACCESS & ASSESSMENTS,Travel/Subsistence,OYSTER BUS AUTOLOAD,02-Jul-2020,20.00
ALD SERVICES,Domestic Goods-Other,STEVENAGE PACKAGING,02-Jul-2020,243.50
ASC SENIOR MANAGEMENT,Professional & Advisory Services,PAYPAL,02-Jul-2020,93.96
ASC SENIOR MANAGEMENT,Travel/Subsistence,TFL BUSINESS BOPS WEB,02-Jul-2020,15.00
CAMPAIGNS & COMMUNICATIONS,IT Services,NATIONBUILDER,02-Jul-2020,181.04
CONTRACT MANAGEMENT,Building-General,B & Q 1051,02-Jul-2020,200.00
CONTRACT MANAGEMENT,Building-General,B & Q 1009,02-Jul-2020,-200.00
EARLY YEARS SERVICES,Consultancy-Other,CIRCLE OF SECURITY INT,02-Jul-2020,"2,479.92"
EVENTS & FILMING,Facilities-Advertising,FACEBK *SKQHST6KK2,02-Jul-2020,40.00
FAMILY SUPPORT & CHILD PROTECTION,Accommodation,CASH ADVANCE FEE,02-Jul-2020,10.33
FAMILY SUPPORT & CHILD PROTECTION,Accommodation,CASH ADVANCE FEE,02-Jul-2020,14.75
FAMILY SUPPORT & CHILD PROTECTION,Financial Services,LOYD - 18 ACRE LANE,02-Jul-2020,150.00
FAMILY SUPPORT & CHILD PROTECTION,Financial Services,BT PHONE / ATM KIOSK,02-Jul-2020,30.99
FAMILY SUPPORT & CHILD PROTECTION,Travel/Subsistence,OYSTER ONLINE,02-Jul-2020,25.00
FOSTERING & PERMANENCY,Travel/Subsistence,OYSTER BUS AUTOLOAD,02-Jul-2020,20.00
MH SERVICES,Legal Services-Other,HMCOURTS-SERVICE.G,02-Jul-2020,75.00
PARKING INVESTIGATIONS,Travel/Subsistence,OYSTER AUTO TOPUP,02-Jul-2020,40.00
SPECIALIST YOUTH,Stationery,Amazon.co.uk,02-Jul-2020,17.48
SUBSTANCE MISUSE,Works-Construction,DISCOUNT CARPETS S,02-Jul-2020,243.00
16+ INDEPENDENCE SERVICE (LEAVING CARE),Accommodation,HTTPS YOUGOTAGIFT COM,03-Jul-2020,22.88
16+ INDEPENDENCE SERVICE (LEAVING CARE),Accommodation,BW PLUS WEMBLEY,03-Jul-2020,65.95
16+ INDEPENDENCE SERVICE (LEAVING CARE),Accommodation,CASH ADVANCE FEE,03-Jul-2020,8.85
16+ INDEPENDENCE SERVICE (LEAVING CARE),Accommodation,HTTPS YOUGOTAGIFT COM,03-Jul-2020,29.48
16+ INDEPENDENCE SERVICE (LEAVING CARE),Domestic Goods-Other,ARGOS LTD,03-Jul-2020,"1,146.81"
16+ INDEPENDENCE SERVICE (LEAVING CARE),Domestic Goods-Other,ARGOS LTD,03-Jul-2020,-13.33
16+ INDEPENDENCE SERVICE (LEAVING CARE),Financial Services,BT PHONE / ATM KIOSK,03-Jul-2020,15.99
16+ INDEPENDENCE SERVICE (LEAVING CARE),Financial Services,LOYD - 18 ACRE LANE,03-Jul-2020,30.00
16+ INDEPENDENCE SERVICE (LEAVING CARE),Furniture-Domestic Furniture,WWW.MATTRESSMAN.CO.UK,03-Jul-2020,309.00
16+ INDEPENDENCE SERVICE (LEAVING CARE),Furniture-Domestic Furniture,IKEA LTD SHOP ONLINE,03-Jul-2020,156.25
16+ INDEPENDENCE SERVICE (LEAVING CARE),Haulage,HAPPY 2 MOVE LIMIT,03-Jul-2020,180.00
16+ INDEPENDENCE SERVICE (LEAVING CARE),Haulage,www.anyvan.com,03-Jul-2020,60.00
ACCESS & ASSESSMENTS,Accommodation,CASH ADVANCE FEE,03-Jul-2020,5.90
ACCESS & ASSESSMENTS,Travel/Subsistence,OYSTER BUS AUTOLOAD,03-Jul-2020,40.00
ASC SENIOR MANAGEMENT,Building-Tools,WWW.YAHIRE.COM,03-Jul-2020,"1,332.24"
ASC SENIOR MANAGEMENT,Consultancy-Business,PRO-MOTION HIRE LTD,03-Jul-2020,834.80
ASC SENIOR MANAGEMENT,Domestic Goods-Other,WWW.ALBERT-HARRISON.CO,03-Jul-2020,221.90
CHILDREN LOOKED AFTER,Domestic Goods-Other,WWW.VOUCHEREXPRESS.CO.,03-Jul-2020,20.00
CORPORATE COMPLAINTS,IT Services,AWS EMEA,03-Jul-2020,141.68
EMERGENCY PLANNING,Catering Food & Drink,TESCO STORE 2143,03-Jul-2020,57.18
FAMILY SUPPORT & CHILD PROTECTION,Accommodation,HTTPS YOUGOTAGIFT COM,03-Jul-2020,45.75
FAMILY SUPPORT & CHILD PROTECTION,Travel/Subsistence,OYSTER BUS AUTOLOAD,03-Jul-2020,20.00
MH SERVICES,Legal Services-Other,HMCOURTS-SERVICE.G,03-Jul-2020,150.00
PARKS & LEISURE SERVICES,Building-Timber,TOOLSTATION LTD,03-Jul-2020,7.14
SERVICE TRANSFORMATION - GF,Accommodation,HIGHSTREET VOUCHERS,03-Jul-2020,80.00
16+ INDEPENDENCE SERVICE (LEAVING CARE),Accommodation,BW PLUS WEMBLEY,04-Jul-2020,183.05
CAMPAIGNS & COMMUNICATIONS,IT Services,BUZZSUMO.COM PRO,04-Jul-2020,98.35
CAMPAIGNS & COMMUNICATIONS,IT Services,NATIONBUILDER,04-Jul-2020,98.51
EMERGENCY PLANNING,Catering Food & Drink,TESCO STORE 2143,04-Jul-2020,64.62
FAMILY SUPPORT & CHILD PROTECTION,Travel/Subsistence,OYSTER AUTO TOPUP,04-Jul-2020,20.00
HOUSING MANAGEMENT SERVICES,Domestic Goods-Other,AMZNMktplace,04-Jul-2020,39.99
LAMBETH COUNTRY SHOW,IT Software,"RESTREAM, INC.",04-Jul-2020,81.96
RESIDENT ENGAGEMENT,IT Consumables,Amazon.co.uk,04-Jul-2020,43.02
SPECIALIST YOUTH,Travel/Subsistence,OYSTER AUTO TOPUP,04-Jul-2020,20.00
EVENTS & FILMING,Facilities-Advertising,FACEBK *7TPE2U2KK2,05-Jul-2020,60.00
FAMILY SUPPORT & CHILD PROTECTION,Travel/Subsistence,OYSTER AUTO TOPUP,05-Jul-2020,20.00
16+ INDEPENDENCE SERVICE (LEAVING CARE),Domestic Goods-Other,AMZNMktplace,06-Jul-2020,868.00
16+ INDEPENDENCE SERVICE (LEAVING CARE),Domestic Goods-Other,AO RETAIL LIMITED,06-Jul-2020,514.00
16+ INDEPENDENCE SERVICE (LEAVING CARE),Furniture-Domestic Furniture,WF* WAYFAIR 3364154484,06-Jul-2020,419.99
ACCESS & ASSESSMENTS,Accommodation,CASH ADVANCE FEE,06-Jul-2020,2.95
ALD SERVICES,Domestic Goods-Other,AMZNMKTPLACE AMAZON.CO.UK,06-Jul-2020,241.47
ALD SERVICES,Domestic Goods-Other,AMZNMKTPLACE AMAZON.CO.UK,06-Jul-2020,-0.75
ASC SENIOR MANAGEMENT,Facilities-Printing,Amazon.co.uk,06-Jul-2020,36.00
ASC SENIOR MANAGEMENT,Professional & Advisory Services,PAYPAL,06-Jul-2020,133.49
ASC SENIOR MANAGEMENT,Travel/Subsistence,TFL BUSINESS BOPS WEB,06-Jul-2020,15.00
"BUSINESS, CULTURE & INWARD INVESTMENT",Education-Other,POLYBAGS LTD,06-Jul-2020,496.89
CAMPAIGNS & COMMUNICATIONS,Facilities-Advertising,FACEBK 2GNDVUA6M2,06-Jul-2020,2.57
FACILITIES MANAGEMENT,Financial Services-Accountancy,IPF,06-Jul-2020,210.00
FACILITIES MANAGEMENT,Telecommunications,BT BILL PAYMENT 2,06-Jul-2020,107.07
FAMILY SUPPORT & CHILD PROTECTION,Accommodation,CASH ADVANCE FEE,06-Jul-2020,2.95
FAMILY SUPPORT & CHILD PROTECTION,Facilities-Market Research,AMAZON PRIME,06-Jul-2020,7.99
FAMILY SUPPORT & CHILD PROTECTION,Financial Services,HSBC/BRIXTON RD E1,06-Jul-2020,230.00
FAMILY SUPPORT & CHILD PROTECTION,Financial Services,LOYD - 18 ACRE LANE,06-Jul-2020,100.00
HOUSING MANAGEMENT SERVICES,Facilities-Market Research,Amazon Prime,06-Jul-2020,7.99
INTERNAL AUDIT,Financial Services,L B SOUTHWARK - INT,06-Jul-2020,11.00
LIBRARIES & ARCHIVES,Education-Other,CENTRAL SOURCE LTD,06-Jul-2020,"2,534.40"
MH SERVICES,Legal Services-Other,HMCOURTS-SERVICE.G,06-Jul-2020,150.00
PARKS & LEISURE SERVICES,Building-General,SCREWFIX DIRECT,06-Jul-2020,168.39
SUBSTANCE MISUSE,Domestic Goods-Other,AMZNMktplace,06-Jul-2020,4.99
16+ INDEPENDENCE SERVICE (LEAVING CARE),Accommodation,HTTPS YOUGOTAGIFT COM,07-Jul-2020,69.68
16+ INDEPENDENCE SERVICE (LEAVING CARE),Accommodation,BW PLUS WEMBLEY,07-Jul-2020,68.35
16+ INDEPENDENCE SERVICE (LEAVING CARE),Domestic Goods-Other,CURRYS ONLINE,07-Jul-2020,435.00
16+ INDEPENDENCE SERVICE (LEAVING CARE),Domestic Goods-Other,AO RETAIL LIMITED,07-Jul-2020,"1,117.00"
16+ INDEPENDENCE SERVICE (LEAVING CARE),Domestic Goods-Other,AMZNMktplace,07-Jul-2020,"1,027.99"
16+ INDEPENDENCE SERVICE (LEAVING CARE),Domestic Goods-Other,WWW.VOUCHEREXPRESS.CO.,07-Jul-2020,50.00
16+ INDEPENDENCE SERVICE (LEAVING CARE),Domestic Goods-Other,ARGOS LTD,07-Jul-2020,786.89
ASC SENIOR MANAGEMENT,Professional & Advisory Services,PAYPAL,07-Jul-2020,6.99
ASC SENIOR MANAGEMENT,Travel/Subsistence,TFL BUSINESS BOPS WEB,07-Jul-2020,15.00
CONTRACT MANAGEMENT,Domestic Goods-Other,SumUp  *Hendon DIY,07-Jul-2020,30.00
EMERGENCY PLANNING,Catering Food & Drink,TESCO STORE 2143,07-Jul-2020,53.69
FAMILY SUPPORT & CHILD PROTECTION,Accommodation,CASH ADVANCE FEE,07-Jul-2020,2.95
FAMILY SUPPORT & CHILD PROTECTION,Accommodation,CASH ADVANCE FEE,07-Jul-2020,6.79
HOUSING MANAGEMENT SERVICES,Financial Services,LAMBETH INTERNET PAYM,07-Jul-2020,11.00
PARKS & LEISURE SERVICES,Building-General,LOCKSTATION,07-Jul-2020,17.27
PARKS & LEISURE SERVICES,Clothing-Footwear,GREENHAM TRADING LTD,07-Jul-2020,35.05
PARKS & LEISURE SERVICES,Cycles Purchase,HALFORDS 0716,07-Jul-2020,104.40
QUALITY ASSURANCE AND PERFORMANCE,Consultancy-Business,POSTURITE LTD,07-Jul-2020,114.00
SCHOOLS HR,Consultancy-Business,WWW.LOCAL.GOV.UK,07-Jul-2020,60.00
16+ INDEPENDENCE SERVICE (LEAVING CARE),Domestic Goods-Other,AO RETAIL LIMITED,08-Jul-2020,60.00
16+ INDEPENDENCE SERVICE (LEAVING CARE),Domestic Goods-Other,WWW.VOUCHEREXPRESS.CO.,08-Jul-2020,50.00
16+ INDEPENDENCE SERVICE (LEAVING CARE),Financial Services,LAMBETH INTERNET PAYM,08-Jul-2020,18.00
ACCESS & ASSESSMENTS,Travel/Subsistence,OYSTER BUS AUTOLOAD,08-Jul-2020,20.00
ACCESS & ASSESSMENTS,Travel/Subsistence,OYSTER AUTO TOPUP,08-Jul-2020,20.00
ASC SENIOR MANAGEMENT,Banquet & Catering,BFS GROUP,08-Jul-2020,"2,035.92"
ASC SENIOR MANAGEMENT,Domestic Goods-Other,AMAZON.CO.UK,08-Jul-2020,18.70
CHILDREN LOOKED AFTER,Financial Services,LOYD - 18 ACRE LANE,08-Jul-2020,60.00
CHILDREN LOOKED AFTER,Travel/Subsistence,OYSTER BUS AUTOLOAD,08-Jul-2020,20.00
CHILDREN LOOKED AFTER,Travel/Subsistence,OYSTER ONLINE,08-Jul-2020,-20.00
CONTRACT MANAGEMENT,Building-Paint,LEYLAND SDM,08-Jul-2020,20.46
CSC SENIOR MANAGEMENT,Facilities-Market Research,Amazon Prime,08-Jul-2020,7.99
FAMILY SUPPORT & CHILD PROTECTION,Domestic Goods-Other,ARGOS LTD,08-Jul-2020,87.88
FAMILY SUPPORT & CHILD PROTECTION,Financial Services,LAMBETH INTERNET PAYM,08-Jul-2020,36.00
FAMILY SUPPORT & CHILD PROTECTION,Financial Services,LOYD - 18 ACRE LANE,08-Jul-2020,160.00
FAMILY SUPPORT & CHILD PROTECTION,Travel/Subsistence,OYSTER BUS AUTOLOAD,08-Jul-2020,40.00
HOUSING MANAGEMENT SERVICES,Domestic Goods-Other,CLAPHAM HOME CARE LTD,08-Jul-2020,7.98
HOUSING OPTIONS - GF,Books/Publications/Resources,WHICH,08-Jul-2020,11.75
SPECIALIST YOUTH,Mail Services-Postage,POST OFFICE COUNTER,08-Jul-2020,2.06
SPECIALIST YOUTH,Public Transport,OYSTER AUTO TOPUP,08-Jul-2020,20.00
SPECIALIST YOUTH,Public Transport,B/MORALFOOD & WINE,08-Jul-2020,50.00
16+ INDEPENDENCE SERVICE (LEAVING CARE),Accommodation,HTTPS YOUGOTAGIFT COM,09-Jul-2020,80.16
16+ INDEPENDENCE SERVICE (LEAVING CARE),Accommodation,HTTPS YOUGOTAGIFT COM,09-Jul-2020,22.94
16+ INDEPENDENCE SERVICE (LEAVING CARE),Accommodation,HTTPS YOUGOTAGIFT COM,09-Jul-2020,186.21
16+ INDEPENDENCE SERVICE (LEAVING CARE),Furniture-Office Furniture,PAYPAL,09-Jul-2020,391.98
16+ INDEPENDENCE SERVICE (LEAVING CARE),Travel/Subsistence,OYSTER BUS AUTOLOAD,09-Jul-2020,20.00
ACCESS & ASSESSMENTS,Travel/Subsistence,OYSTER AUTO TOPUP,09-Jul-2020,20.00
ACCESS & ASSESSMENTS,Travel/Subsistence,thetrainline.com,09-Jul-2020,83.70
ASC SENIOR MANAGEMENT,Domestic Goods-Other,WWW.ALBERT-HARRISON.CO,09-Jul-2020,620.54
ASC SENIOR MANAGEMENT,Facilities-Market Research,ZOOM.GBP,09-Jul-2020,14.39
ASC SENIOR MANAGEMENT,Financial Services,LBL PARKING PHONE IVR,09-Jul-2020,260.00
ASC SENIOR MANAGEMENT,Travel/Subsistence,TFL BUSINESS BOPS WEB,09-Jul-2020,15.00
CHILDREN LOOKED AFTER,Travel/Subsistence,OYSTER AUTO TOPUP,09-Jul-2020,20.00
DSG HIGH NEEDS BLOCK,Consultancy-Business,EB *STARTING OUT CONFE,09-Jul-2020,100.00
EVENTS & FILMING,IT Services,123 REG LTD,09-Jul-2020,105.53
FAMILY SUPPORT & CHILD PROTECTION,Accommodation,HTTPS YOUGOTAGIFT COM,09-Jul-2020,103.41
FAMILY SUPPORT & CHILD PROTECTION,Accommodation,HTTPS YOUGOTAGIFT COM,09-Jul-2020,35.06
FAMILY SUPPORT & CHILD PROTECTION,Accommodation,CASH ADVANCE FEE,09-Jul-2020,7.67
FAMILY SUPPORT & CHILD PROTECTION,Financial Services,LOYD - 18 ACRE LANE,09-Jul-2020,230.00
FAMILY SUPPORT & CHILD PROTECTION,Financial Services,BT PHONE / ATM KIOSK,09-Jul-2020,35.99
FAMILY SUPPORT & CHILD PROTECTION,Financial Services,PO BRIXTON HILL 2011,09-Jul-2020,60.00
FAMILY SUPPORT & CHILD PROTECTION,Financial Services,PO BRIXTON HILL 2011,09-Jul-2020,300.00
FAMILY SUPPORT & CHILD PROTECTION,Travel/Subsistence,OYSTER AUTO TOPUP,09-Jul-2020,20.00
FAMILY SUPPORT & CHILD PROTECTION,Travel/Subsistence,OYSTER BUS AUTOLOAD,09-Jul-2020,40.00
FAMILY SUPPORT & CHILD PROTECTION,Travel/Subsistence,OYSTER BUS AUTOLOAD,09-Jul-2020,20.00
HOUSING MANAGEMENT SERVICES,Financial Services,LAMBETH INTERNET PAYM,09-Jul-2020,36.00
LIBRARIES & ARCHIVES,Domestic Goods-Other,AMAZON.CO.UK,09-Jul-2020,32.26
LIBRARIES & ARCHIVES,Education-Other,AMZNMktplace,09-Jul-2020,244.91
MH SERVICES,Legal Services-Other,HMCOURTS-SERVICE.G,09-Jul-2020,150.00
PARKING INVESTIGATIONS,Travel/Subsistence,OYSTER AUTO TOPUP,09-Jul-2020,40.00
16+ INDEPENDENCE SERVICE (LEAVING CARE),Accommodation,HTTPS YOUGOTAGIFT COM,10-Jul-2020,114.95
16+ INDEPENDENCE SERVICE (LEAVING CARE),Accommodation,HTTPS YOUGOTAGIFT COM,10-Jul-2020,45.97
16+ INDEPENDENCE SERVICE (LEAVING CARE),Domestic Goods-Other,ARGOS LTD,10-Jul-2020,18.95
16+ INDEPENDENCE SERVICE (LEAVING CARE),Financial Services,ROYAL BANK UK /,10-Jul-2020,180.00
ACCESS & ASSESSMENTS,Furniture-Domestic Furniture,WAYFAIR #3044861234,10-Jul-2020,113.99
ACCESS & ASSESSMENTS,Furniture-Domestic Furniture,WAYFAIR #3044861234,10-Jul-2020,-109.00
ACCESS & ASSESSMENTS,Travel/Subsistence,OYSTER AUTO TOPUP,10-Jul-2020,40.00
ASC SENIOR MANAGEMENT,Professional & Advisory Services,PAYPAL,10-Jul-2020,75.00
ASC SENIOR MANAGEMENT,Travel/Subsistence,TFL BUSINESS BOPS WEB,10-Jul-2020,15.00
EARLY HELP,Consultancy-Business,CS* TESCO STORES GC,10-Jul-2020,"1,000.00"
EARLY HELP,Domestic Goods-Other,ARGOS LTD,10-Jul-2020,82.99
EMERGENCY PLANNING,Catering Food & Drink,TESCO STORE 2143,10-Jul-2020,58.18
FAMILY SUPPORT & CHILD PROTECTION,Accommodation,CASH ADVANCE FEE,10-Jul-2020,5.90
FAMILY SUPPORT & CHILD PROTECTION,Accommodation,CASH ADVANCE FEE,10-Jul-2020,8.85
FAMILY SUPPORT & CHILD PROTECTION,Accommodation,CASH ADVANCE FEE,10-Jul-2020,6.79
FAMILY SUPPORT & CHILD PROTECTION,Financial Services,ROYAL BANK UK /,10-Jul-2020,100.00
FAMILY SUPPORT & CHILD PROTECTION,Financial Services,LOYD - 18 ACRE LANE,10-Jul-2020,100.00
FAMILY SUPPORT & CHILD PROTECTION,IT Software,SP * JAQUES OF LONDON,10-Jul-2020,17.94
FAMILY SUPPORT & CHILD PROTECTION,Telecommunications,VODAFONE LTD,10-Jul-2020,20.00
FAMILY SUPPORT & CHILD PROTECTION,Travel/Subsistence,OYSTER BUS AUTOLOAD,10-Jul-2020,20.00
NO RECOURSE TO PUBLIC FUNDS,Financial Services,ROYAL BANK UK /,10-Jul-2020,170.00
SCHOOL & EDUCATIONAL IMPROVEMENT SERVICE,Facilities-Advertising,FACEBK AURX3UECE2,10-Jul-2020,700.00
SHELTERED HOUSING,Domestic Goods-Other,AMZ*shoe asylum,10-Jul-2020,-51.80
16+ INDEPENDENCE SERVICE (LEAVING CARE),Travel/Subsistence,OYSTER BUS AUTOLOAD,11-Jul-2020,20.00
ACCESS & ASSESSMENTS,Travel/Subsistence,OYSTER BUS AUTOLOAD,11-Jul-2020,20.00
ACCESS & ASSESSMENTS,Travel/Subsistence,OYSTER AUTO TOPUP,11-Jul-2020,60.00
FAMILY SUPPORT & CHILD PROTECTION,Travel/Subsistence,OYSTER BUS AUTOLOAD,11-Jul-2020,20.00
FAMILY SUPPORT & CHILD PROTECTION,Travel/Subsistence,OYSTER BUS AUTOLOAD,11-Jul-2020,20.00
FAMILY SUPPORT & CHILD PROTECTION,Travel/Subsistence,OYSTER AUTO TOPUP,11-Jul-2020,20.00
PUBLIC HEALTH - ADULTS,IT Services,Dropbox,11-Jul-2020,95.88
16+ INDEPENDENCE SERVICE (LEAVING CARE),Travel/Subsistence,OYSTER BUS AUTOLOAD,12-Jul-2020,20.00
ASC SENIOR MANAGEMENT,Domestic Goods-Other,AMZNMKTPLACE AMAZON.CO.UK,12-Jul-2020,368.76
CHILDREN LOOKED AFTER,Travel/Subsistence,OYSTER AUTO TOPUP,12-Jul-2020,20.00
CHILDREN WITH DISABILITIES,Travel/Subsistence,OYSTER BUS AUTOLOAD,12-Jul-2020,20.00
CONTRACT MANAGEMENT,Domestic Goods-Other,AMZNMktplace,12-Jul-2020,13.80
FAMILY SUPPORT & CHILD PROTECTION,Travel/Subsistence,OYSTER AUTO TOPUP,12-Jul-2020,20.00
FAMILY SUPPORT & CHILD PROTECTION,Travel/Subsistence,OYSTER BUS AUTOLOAD,12-Jul-2020,20.00
LIBRARIES & ARCHIVES,Domestic Goods-Other,AMZNMktplace,12-Jul-2020,50.47
REGISTRAR SERVICES,Domestic Goods-Other,AMZNMktplace,12-Jul-2020,28.98
16+ INDEPENDENCE SERVICE (LEAVING CARE),Accommodation,HTTPS YOUGOTAGIFT COM,13-Jul-2020,23.02
16+ INDEPENDENCE SERVICE (LEAVING CARE),Accommodation,CASH ADVANCE FEE,13-Jul-2020,5.31
16+ INDEPENDENCE SERVICE (LEAVING CARE),Domestic Goods-Other,ARGOS LTD,13-Jul-2020,99.95
16+ INDEPENDENCE SERVICE (LEAVING CARE),Domestic Goods-Other,CURRYS ONLINE,13-Jul-2020,696.27
16+ INDEPENDENCE SERVICE (LEAVING CARE),Domestic Goods-Other,CURRYS ONLINE,13-Jul-2020,738.98
16+ INDEPENDENCE SERVICE (LEAVING CARE),Domestic Goods-Other,CURRYS ONLINE,13-Jul-2020,-110.00
16+ INDEPENDENCE SERVICE (LEAVING CARE),Financial Services,GEN REGISTER OFFICE,13-Jul-2020,14.00
16+ INDEPENDENCE SERVICE (LEAVING CARE),Works-Construction,DISCOUNT CARPETS S,13-Jul-2020,650.00
ACCESS & ASSESSMENTS,Accommodation,CASH ADVANCE FEE,13-Jul-2020,2.95
ACCESS & ASSESSMENTS,Domestic Goods-Other,ARGOS LTD,13-Jul-2020,28.94
ACCESS & ASSESSMENTS,Furniture-Domestic Furniture,WAYFAIR #3373550644,13-Jul-2020,152.99
ACCESS & ASSESSMENTS,Stationery,CARTRIDGE SAVE,13-Jul-2020,62.10
ADOPTIONS,Accommodation,EASYJET,13-Jul-2020,304.92
ASC SENIOR MANAGEMENT,Professional & Advisory Services,PAYPAL,13-Jul-2020,153.64
ASC SENIOR MANAGEMENT,Travel/Subsistence,TFL BUSINESS BOPS WEB,13-Jul-2020,30.00
BEREAVEMENT SERVICES,Cemetery & Crematorium,AMZNMktplace,13-Jul-2020,78.43
CHILDREN WITH DISABILITIES,Accommodation,CASH ADVANCE FEE,13-Jul-2020,2.95
EMERGENCY PLANNING,Catering Food & Drink,TESCO STORE 2143,13-Jul-2020,62.38
FAMILY SUPPORT & CHILD PROTECTION,Accommodation,CASH ADVANCE FEE,13-Jul-2020,2.95
FAMILY SUPPORT & CHILD PROTECTION,Accommodation,CASH ADVANCE FEE,13-Jul-2020,5.90
FAMILY SUPPORT & CHILD PROTECTION,Financial Services,ROYAL BANK UK /,13-Jul-2020,50.00
FAMILY SUPPORT & CHILD PROTECTION,Financial Services,LAMBETH INTERNET PAYM,13-Jul-2020,18.00
FAMILY SUPPORT & CHILD PROTECTION,Telecommunications,Ding 62075649,13-Jul-2020,11.49
FOSTERING & PERMANENCY,Travel/Subsistence,OYSTER BUS AUTOLOAD,13-Jul-2020,20.00
PARKS & LEISURE SERVICES,Building-Timber,SELCO TRADING CTR,13-Jul-2020,198.48
PARKS & LEISURE SERVICES,Building-Timber,SELCO TRADING CTR,13-Jul-2020,234.00
PARKS & LEISURE SERVICES,Financial Services,DVLA VEHICLE TAX,13-Jul-2020,267.50
QUALITY ASSURANCE AND PERFORMANCE,Facilities-Market Research,Amazon Prime,13-Jul-2020,-7.99
RESIDENT ENGAGEMENT,Building-General,SCREWFIX DIRECT,13-Jul-2020,559.80
SUSTAINABLE DEVELOPMENT AND CLIMATE CHANGE RESPONSE,Travel/Subsistence,ZIPCAR,13-Jul-2020,99.00
16+ INDEPENDENCE SERVICE (LEAVING CARE),Domestic Goods-Other,ARGOS LTD,14-Jul-2020,179.99
16+ INDEPENDENCE SERVICE (LEAVING CARE),Domestic Goods-Other,ARGOS LTD,14-Jul-2020,318.95
16+ INDEPENDENCE SERVICE (LEAVING CARE),Domestic Goods-Other,ARGOS LTD,14-Jul-2020,154.93
ACCESS & ASSESSMENTS,Financial Services,Sainsburys Bank CASH,14-Jul-2020,100.00
ACCESS & ASSESSMENTS,Financial Services,LOYD - 18 ACRE LANE,14-Jul-2020,20.00
ASC SENIOR MANAGEMENT,Consultancy-Business,PRO-MOTION HIRE LTD,14-Jul-2020,-500.00
ASC SENIOR MANAGEMENT,Travel/Subsistence,TFL BUSINESS BOPS WEB,14-Jul-2020,27.50
CHILDREN WITH DISABILITIES,Accommodation,CASH ADVANCE FEE,14-Jul-2020,2.95
FAMILY SUPPORT & CHILD PROTECTION,Financial Services,LOYD - 18 ACRE LANE,14-Jul-2020,20.00
FAMILY SUPPORT & CHILD PROTECTION,Financial Services,Sainsburys Bank CASH,14-Jul-2020,40.00
FAMILY SUPPORT & CHILD PROTECTION,Furniture-Domestic Furniture,IKEA LTD SHOP ONLINE,14-Jul-2020,749.00
HOUSING MANAGEMENT SERVICES,Domestic Goods-Other,AMZNMktplace,14-Jul-2020,26.69
LIBRARIES & ARCHIVES,Books/Publications/Resources,WAITROSE 212,14-Jul-2020,17.25
LIBRARIES & ARCHIVES,Domestic Goods-Other,AMZNMktplace,14-Jul-2020,8.90
LIBRARIES & ARCHIVES,Domestic Goods-Other,AMAZON.CO.UK,14-Jul-2020,33.57
LIBRARIES & ARCHIVES,Domestic Goods-Other,Amazon.co.uk,14-Jul-2020,11.19
LIBRARIES & ARCHIVES,Domestic Goods-Other,AMZNMktplace,14-Jul-2020,22.25
MH SERVICES,Legal Services-Other,HMCOURTS-SERVICE.G,14-Jul-2020,150.00
MH SERVICES,Legal Services-Other,HMCOURTS-SERVICE.G,14-Jul-2020,150.00
16+ INDEPENDENCE SERVICE (LEAVING CARE),Accommodation,HTTPS YOUGOTAGIFT COM,15-Jul-2020,35.13
16+ INDEPENDENCE SERVICE (LEAVING CARE),Accommodation,HTTPS YOUGOTAGIFT COM,15-Jul-2020,55.80
16+ INDEPENDENCE SERVICE (LEAVING CARE),Domestic Goods-Other,ARGOS LTD,15-Jul-2020,189.99
16+ INDEPENDENCE SERVICE (LEAVING CARE),Domestic Goods-Other,WWW.VOUCHEREXPRESS.CO.,15-Jul-2020,40.00
ACCESS & ASSESSMENTS,Accommodation,CASH ADVANCE FEE,15-Jul-2020,8.85
ACCESS & ASSESSMENTS,Travel/Subsistence,OYSTER BUS AUTOLOAD,15-Jul-2020,20.00
ACCESS & ASSESSMENTS,Travel/Subsistence,OYSTER AUTO TOPUP,15-Jul-2020,20.00
ASC SENIOR MANAGEMENT,Banquet & Catering,BFS GROUP,15-Jul-2020,556.77
ASC SENIOR MANAGEMENT,Couriers,MYPARCELDELIVERY.COM LTD,15-Jul-2020,10.47
CONTRACT MANAGEMENT,Works-Construction/Materials,MEGALINK (UK) LTD,15-Jul-2020,40.00
FAMILY SUPPORT & CHILD PROTECTION,Accommodation,HTTPS YOUGOTAGIFT COM,15-Jul-2020,46.05
FAMILY SUPPORT & CHILD PROTECTION,Accommodation,HTTPS YOUGOTAGIFT COM,15-Jul-2020,69.07
FAMILY SUPPORT & CHILD PROTECTION,Accommodation,CASH ADVANCE FEE,15-Jul-2020,5.90
FAMILY SUPPORT & CHILD PROTECTION,Financial Services,ROYAL BANK UK /,15-Jul-2020,150.00
FAMILY SUPPORT & CHILD PROTECTION,Financial Services,ROYAL BANK UK /,15-Jul-2020,150.00
FAMILY SUPPORT & CHILD PROTECTION,Financial Services,BT PHONE / ATM KIOSK,15-Jul-2020,35.99
FAMILY SUPPORT & CHILD PROTECTION,Travel/Subsistence,OYSTER AUTO TOPUP,15-Jul-2020,20.00
FAMILY SUPPORT & CHILD PROTECTION,Travel/Subsistence,OYSTER BUS AUTOLOAD,15-Jul-2020,20.00
FAMILY SUPPORT & CHILD PROTECTION,Travel/Subsistence,OYSTER BUS AUTOLOAD,15-Jul-2020,20.00
FAMILY SUPPORT & CHILD PROTECTION,Travel/Subsistence,OYSTER BUS AUTOLOAD,15-Jul-2020,20.00
HOUSING MANAGEMENT SERVICES,Mail Services-Postage,POST OFFICE COUNTER,15-Jul-2020,13.40
LIBRARIES & ARCHIVES,Education-Toys,SMYTHSTOYS.COM,15-Jul-2020,231.83
LIBRARIES & ARCHIVES,Healthcare Equipment,SAINSBURYS S/MKTS,15-Jul-2020,222.50
PARKS & LEISURE SERVICES,Clothing-Children/Adults,SP * FORUM SAFETY,15-Jul-2020,45.00
SCHOOL & EDUCATIONAL IMPROVEMENT SERVICE,Consultancy-Business,AWEBER COMMUNICATIONS,15-Jul-2020,8.23
SPECIALIST YOUTH,Public Transport,OYSTER AUTO TOPUP,15-Jul-2020,20.00
SUBSTANCE MISUSE,Facilities-Market Research,AMAZON PRIME,15-Jul-2020,7.99
16+ INDEPENDENCE SERVICE (LEAVING CARE),Domestic Goods-Other,ARGOS LTD,16-Jul-2020,"1,080.92"
16+ INDEPENDENCE SERVICE (LEAVING CARE),Domestic Goods-Other,WWW.VOUCHEREXPRESS.CO.,16-Jul-2020,30.00
16+ INDEPENDENCE SERVICE (LEAVING CARE),Domestic Goods-Other,ARGOS LTD,16-Jul-2020,19.69
16+ INDEPENDENCE SERVICE (LEAVING CARE),Travel/Subsistence,OYSTER BUS AUTOLOAD,16-Jul-2020,20.00
ACCESS & ASSESSMENTS,Travel/Subsistence,OYSTER AUTO TOPUP,16-Jul-2020,40.00
ACCESS & ASSESSMENTS,Travel/Subsistence,OYSTER BUS AUTOLOAD,16-Jul-2020,20.00
ASC SENIOR MANAGEMENT,Travel/Subsistence,TFL BUSINESS BOPS WEB,16-Jul-2020,15.00
CHILDREN LOOKED AFTER,Travel/Subsistence,OYSTER BUS AUTOLOAD,16-Jul-2020,20.00
CHILDREN LOOKED AFTER,Travel/Subsistence,OYSTER AUTO TOPUP,16-Jul-2020,20.00
CHILDREN LOOKED AFTER,Travel/Subsistence,thetrainline.com,16-Jul-2020,34.73
CHILDREN WITH DISABILITIES,Financial Services,GEN REGISTER OFFICE,16-Jul-2020,38.00
EMERGENCY PLANNING,Catering Food & Drink,TESCO STORE 2143,16-Jul-2020,44.59
FAMILY SUPPORT & CHILD PROTECTION,Accommodation,CASH ADVANCE FEE,16-Jul-2020,2.95
LIBRARIES & ARCHIVES,Education-Toys,AMZNMktplace,16-Jul-2020,21.46
MH SERVICES,Legal Services-Other,HMCOURTS-SERVICE.G,16-Jul-2020,150.00
NO RECOURSE TO PUBLIC FUNDS,Accommodation,CASH ADVANCE FEE,16-Jul-2020,8.86
NO RECOURSE TO PUBLIC FUNDS,Financial Services,ROYAL BANK UK /,16-Jul-2020,360.00
OT SERVICES,Healthcare Equipment,COMPLETE CARE SHOP,16-Jul-2020,67.78
PARKS & LEISURE SERVICES,Consultancy-Business,FORTRESS MASTER LOCKSMITH,16-Jul-2020,95.70
RESIDENT ENGAGEMENT,Travel/Subsistence,OYSTER BUS AUTOLOAD,16-Jul-2020,40.00
SERVICE TRANSFORMATION - GF,Arts & Leisure Services,HIGHSTREET VOUCHERS,16-Jul-2020,30.00
16+ INDEPENDENCE SERVICE (LEAVING CARE),Accommodation,HTTPS YOUGOTAGIFT COM,17-Jul-2020,35.22
16+ INDEPENDENCE SERVICE (LEAVING CARE),Financial Services,L B SOUTHWARK - INT,17-Jul-2020,22.00
16+ INDEPENDENCE SERVICE (LEAVING CARE),Financial Services,PO BRIXTON HILL 2011,17-Jul-2020,60.00
ACCESS & ASSESSMENTS,Travel/Subsistence,OYSTER AUTO TOPUP,17-Jul-2020,20.00
ADOPTIONS,Domestic Goods-Other,AMZNMktplace,17-Jul-2020,318.99
ASC SENIOR MANAGEMENT,Professional & Advisory Services,PAYPAL,17-Jul-2020,100.00
BEREAVEMENT SERVICES,Cemetery & Crematorium,AMZNMktplace,17-Jul-2020,73.49
BEREAVEMENT SERVICES,Stationery,SECURE A FIELD,17-Jul-2020,83.08
CAMPAIGNS & COMMUNICATIONS,Facilities-Design & Photography,CANVA* 02755-0465656,17-Jul-2020,10.66
CHILDREN LOOKED AFTER,Financial Services,PO BRIXTON HILL 2011,17-Jul-2020,30.00
CONTRACT MANAGEMENT,Works-Construction/Materials,MEGALINK (UK) LTD,17-Jul-2020,80.00
FAMILY SUPPORT & CHILD PROTECTION,Accommodation,HTTPS YOUGOTAGIFT COM,17-Jul-2020,140.88
FAMILY SUPPORT & CHILD PROTECTION,Accommodation,CASH ADVANCE FEE,17-Jul-2020,2.95
FAMILY SUPPORT & CHILD PROTECTION,Financial Services,LOYD - 18 ACRE LANE,17-Jul-2020,60.00
FAMILY SUPPORT & CHILD PROTECTION,Financial Services,PO BRIXTON HILL 2011,17-Jul-2020,150.00
FAMILY SUPPORT & CHILD PROTECTION,Financial Services,PO BRIXTON HILL 2011,17-Jul-2020,80.00
FAMILY SUPPORT & CHILD PROTECTION,Travel/Subsistence,OYSTER BUS AUTOLOAD,17-Jul-2020,20.00
LAMBETH COUNTRY SHOW,IT Software-Customised,RESTREAM,17-Jul-2020,81.47
NO RECOURSE TO PUBLIC FUNDS,Accommodation,CASH ADVANCE FEE,17-Jul-2020,8.85
PARKING INVESTIGATIONS,Travel/Subsistence,OYSTER AUTO TOPUP,17-Jul-2020,40.00
SCHOOL & EDUCATIONAL IMPROVEMENT SERVICE,Facilities-Advertising,FACEBK C5LVJU2CE2,17-Jul-2020,295.50
SERVICE TRANSFORMATION - GF,Arts & Leisure Services,HIGHSTREET VOUCHERS,17-Jul-2020,30.00
SPECIALIST YOUTH,Travel/Subsistence,OYSTER AUTO TOPUP,17-Jul-2020,20.00
16+ INDEPENDENCE SERVICE (LEAVING CARE),Travel/Subsistence,OYSTER AUTO TOPUP,18-Jul-2020,20.00
CHILDREN LOOKED AFTER,Travel/Subsistence,OYSTER BUS AUTOLOAD,18-Jul-2020,20.00
FAMILY SUPPORT & CHILD PROTECTION,Travel/Subsistence,OYSTER BUS AUTOLOAD,18-Jul-2020,40.00
FAMILY SUPPORT & CHILD PROTECTION,Travel/Subsistence,OYSTER AUTO TOPUP,18-Jul-2020,20.00
FAMILY SUPPORT & CHILD PROTECTION,Travel/Subsistence,OYSTER AUTO TOPUP,18-Jul-2020,20.00
HOUSING MANAGEMENT SERVICES,Domestic Goods-Other,AMZNMktplace,18-Jul-2020,9.49
LIBRARIES & ARCHIVES,Domestic Goods-Other,AMZNMKTPLACE AMAZON.CO.UK,18-Jul-2020,7.99
SCHOOL & EDUCATIONAL IMPROVEMENT SERVICE,Accommodation,GOOGLE *ADS3485321156,18-Jul-2020,227.54
ACCESS & ASSESSMENTS,Travel/Subsistence,OYSTER BUS AUTOLOAD,19-Jul-2020,20.00
CHILDREN LOOKED AFTER,Travel/Subsistence,OYSTER BUS AUTOLOAD,19-Jul-2020,20.00
CHILDREN WITH DISABILITIES,Travel/Subsistence,OYSTER BUS AUTOLOAD,19-Jul-2020,20.00
EMERGENCY PLANNING,Catering Food & Drink,TESCO STORE 2143,19-Jul-2020,46.89
FAMILY SUPPORT & CHILD PROTECTION,Travel/Subsistence,OYSTER BUS AUTOLOAD,19-Jul-2020,20.00
LIBRARIES & ARCHIVES,Education-Other,AMZNMKTPLACE AMAZON.CO.UK,19-Jul-2020,114.63
SPECIALIST YOUTH,Healthcare Equipment,AMZNMktplace,19-Jul-2020,200.98
16+ INDEPENDENCE SERVICE (LEAVING CARE),Accommodation,HTTPS YOUGOTAGIFT COM,20-Jul-2020,29.72
16+ INDEPENDENCE SERVICE (LEAVING CARE),Accommodation,CASH ADVANCE FEE,20-Jul-2020,2.95
16+ INDEPENDENCE SERVICE (LEAVING CARE),Domestic Goods-Other,ARGOS LTD,20-Jul-2020,-339.98
16+ INDEPENDENCE SERVICE (LEAVING CARE),Domestic Goods-Other,CURRYS ONLINE,20-Jul-2020,364.00
16+ INDEPENDENCE SERVICE (LEAVING CARE),Domestic Goods-Other,CURRYS ONLINE,20-Jul-2020,-364.00
ACCESS & ASSESSMENTS,Facilities-Printing,Amazon.co.uk,20-Jul-2020,44.40
ASC SENIOR MANAGEMENT,Travel/Subsistence,TFL BUSINESS BOPS WEB,20-Jul-2020,15.00
CAMPAIGNS & COMMUNICATIONS,IT Software,ADOBE CREATIVE CLOUD,20-Jul-2020,212.40
CHILDREN LOOKED AFTER,Financial Services,GEN REGISTER OFFICE,20-Jul-2020,25.00
CHILDREN LOOKED AFTER,Healthcare Services,STOCKWELL DENTAL PRACT,20-Jul-2020,22.70
CSC SENIOR MANAGEMENT,Financial Services,RB KEN&CHELSEA,20-Jul-2020,24.00
CSC SENIOR MANAGEMENT,Financial Services,LAMBETH INTERNET PAYM,20-Jul-2020,25.00
CSC SENIOR MANAGEMENT,Haulage,HAPPY 2 MOVE LIMIT,20-Jul-2020,216.00
FAMILY SUPPORT & CHILD PROTECTION,Accommodation,CASH ADVANCE FEE,20-Jul-2020,5.90
FAMILY SUPPORT & CHILD PROTECTION,Accommodation,CASH ADVANCE FEE,20-Jul-2020,2.95
FAMILY SUPPORT & CHILD PROTECTION,Accommodation,CASH ADVANCE FEE,20-Jul-2020,8.85
FAMILY SUPPORT & CHILD PROTECTION,Domestic Goods-Other,AMZNMktplace,20-Jul-2020,26.99
FAMILY SUPPORT & CHILD PROTECTION,Travel/Subsistence,OYSTER ONLINE,20-Jul-2020,30.00
MH SERVICES,Legal Services-Other,HMCOURTS-SERVICE.G,20-Jul-2020,75.00
PARKS & LEISURE SERVICES,Building-General,SCREWFIX DIRECT,20-Jul-2020,22.98
PARKS & LEISURE SERVICES,Building-Timber,TOOLSTATION LTD,20-Jul-2020,114.44
PARKS & LEISURE SERVICES,IT Hardware,Selco Trade Centres Ltd,20-Jul-2020,518.61
16+ INDEPENDENCE SERVICE (LEAVING CARE),Accommodation,HTTPS YOUGOTAGIFT COM,21-Jul-2020,29.41
16+ INDEPENDENCE SERVICE (LEAVING CARE),Accommodation,HTTPS YOUGOTAGIFT COM,21-Jul-2020,34.83
16+ INDEPENDENCE SERVICE (LEAVING CARE),Domestic Goods-Other,AO RETAIL LIMITED,21-Jul-2020,449.00
16+ INDEPENDENCE SERVICE (LEAVING CARE),Domestic Goods-Other,ARGOS LTD,21-Jul-2020,243.94
ASC SENIOR MANAGEMENT,Travel/Subsistence,TFL BUSINESS BOPS WEB,21-Jul-2020,15.00
CHILDREN WITH DISABILITIES,Financial Services,GEN REGISTER OFFICE,21-Jul-2020,38.00
CHILDREN WITH DISABILITIES,Furniture-Domestic Furniture,IKEA LTD SHOP ONLINE,21-Jul-2020,399.00
CONTRACT MANAGEMENT,Building-Timber,WICKES BUILDING,21-Jul-2020,72.00
FAMILY SUPPORT & CHILD PROTECTION,Clothing-Children/Adults,ERIC,21-Jul-2020,119.39
FAMILY SUPPORT & CHILD PROTECTION,Domestic Goods-Other,WWW.VOUCHEREXPRESS.CO.,21-Jul-2020,60.00
FAMILY SUPPORT & CHILD PROTECTION,Financial Services,ROYAL BANK UK /,21-Jul-2020,70.00
FAMILY SUPPORT & CHILD PROTECTION,Financial Services,ROYAL BANK UK /,21-Jul-2020,60.00
FAMILY SUPPORT & CHILD PROTECTION,Travel/Subsistence,OYSTER BUS AUTOLOAD,21-Jul-2020,20.00
LAMBETH COUNTRY SHOW,Arts & Leisure Services,HIGHSTREETVOUCHERS,21-Jul-2020,100.00
LEGAL SERVICES,Letting Agents,FOXTONS,21-Jul-2020,495.00
LIBRARIES & ARCHIVES,Books/Publications/Resources,AMZNMktplace,21-Jul-2020,19.99
MH SERVICES,Legal Services-Other,HMCOURTS-SERVICE.G,21-Jul-2020,-150.00
NO RECOURSE TO PUBLIC FUNDS,Financial Services,ROYAL BANK UK /,21-Jul-2020,730.00
PARKING INVESTIGATIONS,Travel/Subsistence,OYSTER BUS AUTOLOAD,21-Jul-2020,40.00
SERVICE TRANSFORMATION - GF,Arts & Leisure Services,HIGHSTREET VOUCHERS,21-Jul-2020,10.00
16+ INDEPENDENCE SERVICE (LEAVING CARE),Accommodation,HTTPS YOUGOTAGIFT COM,22-Jul-2020,34.85
16+ INDEPENDENCE SERVICE (LEAVING CARE),Catering Food & Drink,TESCO GIFT CARD,22-Jul-2020,30.00
ACCESS & ASSESSMENTS,Accommodation,CASH ADVANCE FEE,22-Jul-2020,2.95
ACCESS & ASSESSMENTS,Financial Services,ROYAL BANK UK /,22-Jul-2020,120.00
ACCESS & ASSESSMENTS,Travel/Subsistence,OYSTER BUS AUTOLOAD,22-Jul-2020,20.00
ASC SENIOR MANAGEMENT,Professional & Advisory Services,PAYPAL,22-Jul-2020,90.85
CHILDREN LOOKED AFTER,Travel/Subsistence,OYSTER AUTO TOPUP,22-Jul-2020,20.00
FAMILY SUPPORT & CHILD PROTECTION,Accommodation,CASH ADVANCE FEE,22-Jul-2020,2.95
FAMILY SUPPORT & CHILD PROTECTION,Financial Services,BT PHONE / ATM KIOSK,22-Jul-2020,15.99
FAMILY SUPPORT & CHILD PROTECTION,Financial Services,ROYAL BANK UK /,22-Jul-2020,50.00
FAMILY SUPPORT & CHILD PROTECTION,Travel/Subsistence,OYSTER BUS AUTOLOAD,22-Jul-2020,20.00
FAMILY SUPPORT & CHILD PROTECTION,Travel/Subsistence,OYSTER AUTO TOPUP,22-Jul-2020,20.00
MH SERVICES,Legal Services-Other,HMCOURTS-SERVICE.G,22-Jul-2020,75.00
NO RECOURSE TO PUBLIC FUNDS,Accommodation,CASH ADVANCE FEE,22-Jul-2020,21.54
OP SERVICES,Domestic Goods-Other,A2Z HOUSEWARES LTD,22-Jul-2020,127.81
OP SERVICES,Domestic Goods-Other,ECO UK MERCHANT LTD,22-Jul-2020,100.31
PARKS & LEISURE SERVICES,Building-Timber,SELCO TRADING CTR,22-Jul-2020,131.14
PARKS & LEISURE SERVICES,Building-Timber,SELCO TRADING CTR,22-Jul-2020,24.70
RESIDENT ENGAGEMENT,Domestic Goods-Other,ARGOS LTD,22-Jul-2020,86.44
16+ INDEPENDENCE SERVICE (LEAVING CARE),Accommodation,HTTPS YOUGOTAGIFT COM,23-Jul-2020,112.80
16+ INDEPENDENCE SERVICE (LEAVING CARE),Catering Food & Drink,TESCO GIFT CARD,23-Jul-2020,20.00
16+ INDEPENDENCE SERVICE (LEAVING CARE),Facilities-Storage,WWW.SAFESTORE.CO.UK,23-Jul-2020,151.42
16+ INDEPENDENCE SERVICE (LEAVING CARE),Financial Services,LOYD - 18 ACRE LANE,23-Jul-2020,30.00
16+ INDEPENDENCE SERVICE (LEAVING CARE),Furniture-Domestic Furniture,WAYFAIR #3369946504,23-Jul-2020,704.96
16+ INDEPENDENCE SERVICE (LEAVING CARE),Travel/Subsistence,TRAINLINE,23-Jul-2020,89.90
16+ INDEPENDENCE SERVICE (LEAVING CARE),Works-Construction,DISCOUNT CARPETS S,23-Jul-2020,840.00
ACCESS & ASSESSMENTS,Accommodation,CASH ADVANCE FEE,23-Jul-2020,2.95
ACCESS & ASSESSMENTS,Travel/Subsistence,OYSTER AUTO TOPUP,23-Jul-2020,20.00
ACCESS & ASSESSMENTS,Travel/Subsistence,OYSTER BUS AUTOLOAD,23-Jul-2020,20.00
ASC SENIOR MANAGEMENT,Professional & Advisory Services,PAYPAL,23-Jul-2020,-180.00
ASC SENIOR MANAGEMENT,Travel/Subsistence,TFL BUSINESS BOPS WEB,23-Jul-2020,32.50
CSC SENIOR MANAGEMENT,Financial Services,BT PHONE / ATM KIOSK,23-Jul-2020,25.99
FAMILY SUPPORT & CHILD PROTECTION,Accommodation,CASH ADVANCE FEE,23-Jul-2020,2.95
FAMILY SUPPORT & CHILD PROTECTION,Domestic Goods-Other,ARGOS LTD,23-Jul-2020,387.95
FAMILY SUPPORT & CHILD PROTECTION,Financial Services,SANTANDER PLC (UK),23-Jul-2020,520.00
FAMILY SUPPORT & CHILD PROTECTION,Financial Services,SANTANDER PLC (UK),23-Jul-2020,40.00
NO RECOURSE TO PUBLIC FUNDS,Accommodation,CASH ADVANCE FEE,23-Jul-2020,5.90
PARKS & LEISURE SERVICES,Building-General,SCREWFIX DIRECT,23-Jul-2020,54.93
PARKS & LEISURE SERVICES,Financial Services,DVLA VEHICLE TAX,23-Jul-2020,267.50
16+ INDEPENDENCE SERVICE (LEAVING CARE),Accommodation,CASH ADVANCE FEE,24-Jul-2020,5.90
16+ INDEPENDENCE SERVICE (LEAVING CARE),Domestic Goods-Other,AO RETAIL LIMITED,24-Jul-2020,499.00
16+ INDEPENDENCE SERVICE (LEAVING CARE),Domestic Goods-Other,ARGOS LTD,24-Jul-2020,373.01
16+ INDEPENDENCE SERVICE (LEAVING CARE),Financial Services,LOYD - 18 ACRE LANE,24-Jul-2020,100.00
16+ INDEPENDENCE SERVICE (LEAVING CARE),Financial Services,BT PHONE / ATM KIOSK,24-Jul-2020,15.99
16+ INDEPENDENCE SERVICE (LEAVING CARE),Travel/Subsistence,OYSTER BUS AUTOLOAD,24-Jul-2020,20.00
ASC SENIOR MANAGEMENT,Professional & Advisory Services,PAYPAL,24-Jul-2020,90.50
CHILDREN LOOKED AFTER,Domestic Goods-Other,AO RETAIL LIMITED,24-Jul-2020,508.00
CHILDREN LOOKED AFTER,Domestic Goods-Other,ARGOS LTD,24-Jul-2020,492.55
EMERGENCY PLANNING,Catering Food & Drink,POUND PLUS,24-Jul-2020,5.00
FAMILY SUPPORT & CHILD PROTECTION,Accommodation,CASH ADVANCE FEE,24-Jul-2020,17.11
FAMILY SUPPORT & CHILD PROTECTION,Accommodation,HTTPS YOUGOTAGIFT COM,24-Jul-2020,66.98
FAMILY SUPPORT & CHILD PROTECTION,Accommodation,CASH ADVANCE FEE,24-Jul-2020,2.95
FAMILY SUPPORT & CHILD PROTECTION,Domestic Goods-Other,AMZNMktplace,24-Jul-2020,98.85
FAMILY SUPPORT & CHILD PROTECTION,Financial Services,LAMBETH INTERNET PAYM,24-Jul-2020,54.00
FAMILY SUPPORT & CHILD PROTECTION,Travel/Subsistence,OYSTER BUS AUTOLOAD,24-Jul-2020,20.00
FAMILY SUPPORT & CHILD PROTECTION,Travel/Subsistence,OYSTER AUTO TOPUP,24-Jul-2020,20.00
FAMILY SUPPORT & CHILD PROTECTION,Travel/Subsistence,OYSTER BUS AUTOLOAD,24-Jul-2020,20.00
HOUSING MANAGEMENT SERVICES,Catering Food & Drink,WWW.PAPAJOHNS.CO.UK,24-Jul-2020,30.27
HOUSING MANAGEMENT SERVICES,Financial Services,LAMBETH INTERNET PAYM,24-Jul-2020,18.00
LIBRARIES & ARCHIVES,Education-Toys,SMYTHSTOYS.COM,24-Jul-2020,108.96
MH SERVICES,Legal Services-Other,HMCOURTS-SERVICE.G,24-Jul-2020,150.00
SPECIALIST YOUTH,Public Transport,OYSTER AUTO TOPUP,24-Jul-2020,20.00
SUBSTANCE MISUSE,Facilities-Market Research,AMAZON PRIME AMZN.CO.UK/P,24-Jul-2020,-7.99
ACCESS & ASSESSMENTS,Travel/Subsistence,OYSTER BUS AUTOLOAD,25-Jul-2020,20.00
ACCESS & ASSESSMENTS,Travel/Subsistence,OYSTER AUTO TOPUP,25-Jul-2020,20.00
CHILDREN LOOKED AFTER,Travel/Subsistence,OYSTER AUTO TOPUP,25-Jul-2020,20.00
ACCESS & ASSESSMENTS,Travel/Subsistence,OYSTER AUTO TOPUP,26-Jul-2020,20.00
CHILDREN LOOKED AFTER,Travel/Subsistence,OYSTER AUTO TOPUP,26-Jul-2020,20.00
CHILDREN LOOKED AFTER,Travel/Subsistence,OYSTER AUTO TOPUP,26-Jul-2020,20.00
CHILDREN LOOKED AFTER,Travel/Subsistence,OYSTER AUTO TOPUP,26-Jul-2020,20.00
FAMILY SUPPORT & CHILD PROTECTION,Travel/Subsistence,OYSTER AUTO TOPUP,26-Jul-2020,20.00
FAMILY SUPPORT & CHILD PROTECTION,Travel/Subsistence,OYSTER BUS AUTOLOAD,26-Jul-2020,20.00
SPECIALIST YOUTH,Public Transport,OYSTER AUTO TOPUP,26-Jul-2020,20.00
16+ INDEPENDENCE SERVICE (LEAVING CARE),Accommodation,CASH ADVANCE FEE,27-Jul-2020,2.95
16+ INDEPENDENCE SERVICE (LEAVING CARE),Catering Food & Drink,ASDA,27-Jul-2020,50.00
16+ INDEPENDENCE SERVICE (LEAVING CARE),Domestic Goods-Other,ARGOS LTD,27-Jul-2020,403.93
16+ INDEPENDENCE SERVICE (LEAVING CARE),Furniture-Domestic Furniture,IKEA LTD SHOP ONLINE,27-Jul-2020,803.00
ACCESS & ASSESSMENTS,Facilities-Market Research,Amazon Prime,27-Jul-2020,7.99
ASC SENIOR MANAGEMENT,Banquet & Catering,BFS GROUP,27-Jul-2020,243.20
ASC SENIOR MANAGEMENT,Travel/Subsistence,TFL BUSINESS BOPS WEB,27-Jul-2020,27.50
BEREAVEMENT SERVICES,Vehicle Maintenance,WWW.WITHAMGROUP.CO.UK,27-Jul-2020,138.24
CHILDREN WITH DISABILITIES,Haulage,www.anyvan.com,27-Jul-2020,31.00
FAMILY SUPPORT & CHILD PROTECTION,Accommodation,CASH ADVANCE FEE,27-Jul-2020,2.95
FAMILY SUPPORT & CHILD PROTECTION,Travel/Subsistence,OYSTER AUTO TOPUP,27-Jul-2020,20.00
LAMBETH COUNTRY SHOW,Mail Services-Postage,POST OFFICE COUNTER,27-Jul-2020,27.08
LIBRARIES & ARCHIVES,Education-Library Books,WHICH?,27-Jul-2020,99.00
LIBRARIES & ARCHIVES,Facilities-Market Research,ZOOM.GBP,27-Jul-2020,48.00
16+ INDEPENDENCE SERVICE (LEAVING CARE),Building-Floors,TOOTING CARPETS,28-Jul-2020,700.00
16+ INDEPENDENCE SERVICE (LEAVING CARE),Domestic Goods-Other,ARGOS LTD,28-Jul-2020,380.94
16+ INDEPENDENCE SERVICE (LEAVING CARE),Domestic Goods-Other,ARGOS LTD,28-Jul-2020,285.95
16+ INDEPENDENCE SERVICE (LEAVING CARE),Furniture-Domestic Furniture,WWW.THERANGE.CO.UK,28-Jul-2020,94.98
ACCESS & ASSESSMENTS,Financial Services,LOYD - 18 ACRE LANE,28-Jul-2020,60.00
ACCESS & ASSESSMENTS,Travel/Subsistence,OYSTER BUS AUTOLOAD,28-Jul-2020,20.00
ALD SERVICES,Domestic Goods-Other,AMZNMktplace,28-Jul-2020,98.41
ASC SENIOR MANAGEMENT,Travel/Subsistence,TFL BUSINESS BOPS WEB,28-Jul-2020,27.50
CHILDREN WITH DISABILITIES,Domestic Goods-Other,ARGOS LTD,28-Jul-2020,339.95
EVENTS & FILMING,Consultancy-Business,BLS*MONDAY.COM,28-Jul-2020,223.20
EVENTS & FILMING,Professional & Advisory Services,ALLSEATED SUBSCRIPTION,28-Jul-2020,71.39
FAMILY SUPPORT & CHILD PROTECTION,Financial Services,LOYD - 18 ACRE LANE,28-Jul-2020,320.00
FAMILY SUPPORT & CHILD PROTECTION,Travel/Subsistence,OYSTER AUTO TOPUP,28-Jul-2020,20.00
FOSTERING & PERMANENCY,Travel/Subsistence,OYSTER BUS AUTOLOAD,28-Jul-2020,20.00
MH SERVICES,Legal Services-Other,HMCOURTS-SERVICE.G,28-Jul-2020,75.00
NO RECOURSE TO PUBLIC FUNDS,Financial Services,LOYD - 18 ACRE LANE,28-Jul-2020,320.00
OP SERVICES,Catering Food & Drink,TESCO-STORES 6567,28-Jul-2020,15.62
PARKS & LEISURE SERVICES,Building-Plumbing,WOLSELEY UK,28-Jul-2020,61.20
PARKS & LEISURE SERVICES,Building-Timber,TOOLSTATION LTD,28-Jul-2020,47.96
SCHOOL & EDUCATIONAL IMPROVEMENT SERVICE,Facilities-Advertising,FACEBK UKCAHUECE2,28-Jul-2020,700.00
SPECIALIST YOUTH,Public Transport,OYSTER BUS AUTOLOAD,28-Jul-2020,20.00
16+ INDEPENDENCE SERVICE (LEAVING CARE),Accommodation,HTTPS YOUGOTAGIFT COM,29-Jul-2020,108.83
16+ INDEPENDENCE SERVICE (LEAVING CARE),Accommodation,CASH ADVANCE FEE,29-Jul-2020,5.90
16+ INDEPENDENCE SERVICE (LEAVING CARE),Building-General,B&Q DIRECT,29-Jul-2020,43.05
16+ INDEPENDENCE SERVICE (LEAVING CARE),Domestic Goods-Other,ARGOS LTD,29-Jul-2020,126.95
16+ INDEPENDENCE SERVICE (LEAVING CARE),Domestic Goods-Other,ARGOS LTD,29-Jul-2020,93.95
ACCESS & ASSESSMENTS,Travel/Subsistence,OYSTER BUS AUTOLOAD,29-Jul-2020,20.00
ASC SENIOR MANAGEMENT,Travel/Subsistence,TFL BUSINESS BOPS WEB,29-Jul-2020,15.00
CHILDREN LOOKED AFTER,Travel/Subsistence,OYSTER ONLINE,29-Jul-2020,20.00
CSC SENIOR MANAGEMENT,Building-General,B & Q 1037,29-Jul-2020,-31.25
EARLY HELP,Furniture-Domestic Furniture,WAYFAIR #3375198844,29-Jul-2020,747.91
FAMILY SUPPORT & CHILD PROTECTION,Accommodation,CASH ADVANCE FEE,29-Jul-2020,11.80
FAMILY SUPPORT & CHILD PROTECTION,Financial Services,ROYAL BANK UK /,29-Jul-2020,60.00
FAMILY SUPPORT & CHILD PROTECTION,Travel/Subsistence,OYSTER ONLINE,29-Jul-2020,30.00
FAMILY SUPPORT & CHILD PROTECTION,Travel/Subsistence,OYSTER BUS AUTOLOAD,29-Jul-2020,20.00
LAMBETH COUNTRY SHOW,Mail Services-Postage,POST OFFICE COUNTER,29-Jul-2020,7.94
MH SERVICES,Accommodation,PASHA HOTEL,29-Jul-2020,910.00
NO RECOURSE TO PUBLIC FUNDS,Accommodation,CASH ADVANCE FEE,29-Jul-2020,6.49
PARKS & LEISURE SERVICES,Cycles Purchase,HALFORDS 0716,29-Jul-2020,93.00
PARKS & LEISURE SERVICES,Travel/Subsistence,TFL BUSINESS BOPS WEB,29-Jul-2020,27.50
SPECIALIST YOUTH,Travel/Subsistence,OYSTER BUS AUTOLOAD,29-Jul-2020,20.00
ALD SERVICES,Domestic Goods-Other,AMZNMktplace,30-Jul-2020,24.45
ASC SENIOR MANAGEMENT,Travel/Subsistence,TFL BUSINESS BOPS WEB,30-Jul-2020,15.00
CHILDREN LOOKED AFTER,Travel/Subsistence,OYSTER ONLINE,30-Jul-2020,20.00
CHILDREN WITH DISABILITIES,Travel/Subsistence,OYSTER BUS AUTOLOAD,30-Jul-2020,20.00
FAMILY SUPPORT & CHILD PROTECTION,Financial Services,HSBC/BRIXTON RD E1,30-Jul-2020,180.00
FAMILY SUPPORT & CHILD PROTECTION,Travel/Subsistence,OYSTER AUTO TOPUP,30-Jul-2020,20.00
FAMILY SUPPORT & CHILD PROTECTION,Travel/Subsistence,thetrainline.com,30-Jul-2020,18.56
LIBRARIES & ARCHIVES,Education-Toys,SMYTHSTOYS.COM,30-Jul-2020,365.76
PUBLIC HEALTH - ADULTS,Mail Services-Postage,POST OFFICE COUNTER,30-Jul-2020,9.12
SPECIALIST YOUTH,Healthcare Equipment,AMZ*Amazon.co.uk,30-Jul-2020,-116.50
16+ INDEPENDENCE SERVICE (LEAVING CARE),Catering Food & Drink,TESCO GIFT CARD,31-Jul-2020,30.00
16+ INDEPENDENCE SERVICE (LEAVING CARE),Catering Food & Drink,TESCO GIFT CARD,31-Jul-2020,40.00
16+ INDEPENDENCE SERVICE (LEAVING CARE),Catering Food & Drink,TESCO GIFT CARD,31-Jul-2020,-40.00
16+ INDEPENDENCE SERVICE (LEAVING CARE),Catering Food & Drink,TESCO GIFT CARD,31-Jul-2020,-30.00
16+ INDEPENDENCE SERVICE (LEAVING CARE),Catering Food & Drink,TESCO GIFT CARD,31-Jul-2020,30.00
16+ INDEPENDENCE SERVICE (LEAVING CARE),Domestic Goods-Other,AMZNMktplace,31-Jul-2020,89.85
16+ INDEPENDENCE SERVICE (LEAVING CARE),Domestic Goods-Other,ARGOS LTD,31-Jul-2020,0.00
16+ INDEPENDENCE SERVICE (LEAVING CARE),Domestic Goods-Other,WWW.VOUCHEREXPRESS.CO.,31-Jul-2020,20.00
ACCESS & ASSESSMENTS,Travel/Subsistence,OYSTER BUS AUTOLOAD,31-Jul-2020,20.00
ASC SENIOR MANAGEMENT,Domestic Goods-Other,AMZNMktplace,31-Jul-2020,79.50
ASC SENIOR MANAGEMENT,Professional & Advisory Services,PAYPAL,31-Jul-2020,86.00
ASC SENIOR MANAGEMENT,Travel/Subsistence,TFL BUSINESS BOPS WEB,31-Jul-2020,15.00
CAMPAIGNS & COMMUNICATIONS,IT Services,WINSERVE3089279,31-Jul-2020,11.99
CHILDREN LOOKED AFTER,Accommodation,HTTPS YOUGOTAGIFT COM,31-Jul-2020,53.56
CHILDREN LOOKED AFTER,Travel/Subsistence,OYSTER BUS AUTOLOAD,31-Jul-2020,20.00
CHILDREN LOOKED AFTER,Travel/Subsistence,SOUTHERN RAILWAY WEB,31-Jul-2020,32.40
CSC SENIOR MANAGEMENT,Healthcare Services,STOCKWELL DENTAL PRACT,31-Jul-2020,39.40
EMERGENCY PLANNING,Catering Food & Drink,TESCO STORE 2143,31-Jul-2020,10.00
EVENTS & FILMING,Facilities-Advertising,FACEBK *9WQYHU6KK2,31-Jul-2020,11.11
FAMILY SUPPORT & CHILD PROTECTION,Accommodation,CASH ADVANCE FEE,31-Jul-2020,2.95
FAMILY SUPPORT & CHILD PROTECTION,Accommodation,CASH ADVANCE FEE,31-Jul-2020,5.90
FAMILY SUPPORT & CHILD PROTECTION,Domestic Goods-Other,EVAQ8,31-Jul-2020,132.58
FAMILY SUPPORT & CHILD PROTECTION,Financial Services,HSBC/BRIXTON RD E2,31-Jul-2020,330.00
FAMILY SUPPORT & CHILD PROTECTION,Travel/Subsistence,OYSTER BUS AUTOLOAD,31-Jul-2020,20.00
FAMILY SUPPORT & CHILD PROTECTION,Travel/Subsistence,OYSTER BUS AUTOLOAD,31-Jul-2020,20.00
FAMILY SUPPORT & CHILD PROTECTION,Travel/Subsistence,OYSTER BUS AUTOLOAD,31-Jul-2020,20.00
FAMILY SUPPORT & CHILD PROTECTION,Travel/Subsistence,OYSTER BUS AUTOLOAD,31-Jul-2020,20.00
HOUSING OPTIONS - GF,Travel/Subsistence,TRAINLINE,31-Jul-2020,123.77
LEGAL SERVICES,Books/Publications/Resources,WWW.CORAM.ORG.UK,31-Jul-2020,18.95
LIBRARIES & ARCHIVES,Education-Toys,SMYTHSTOYS.COM,31-Jul-2020,173.88
MH SERVICES,Legal Services-Other,HMCOURTS-SERVICE.G,31-Jul-2020,75.00
PARKS & LEISURE SERVICES,Domestic Goods-Other,TERRYS ALL LOCKS,31-Jul-2020,82.00
16+ INDEPENDENCE SERVICE (LEAVING CARE),Travel/Subsistence,OYSTER BUS AUTOLOAD,01-Aug-2020,20.00
ACCESS & ASSESSMENTS,Travel/Subsistence,OYSTER BUS AUTOLOAD,01-Aug-2020,20.00
ACCESS & ASSESSMENTS,Travel/Subsistence,OYSTER AUTO TOPUP,01-Aug-2020,20.00
ALD SERVICES,Domestic Goods-Other,THE RANGE,01-Aug-2020,31.94
CAMPAIGNS & COMMUNICATIONS,IT Services,GOOGLE *GSUITE_lambeth,01-Aug-2020,20.70
CHILDREN LOOKED AFTER,Travel/Subsistence,OYSTER BUS AUTOLOAD,01-Aug-2020,20.00
CHILDREN LOOKED AFTER,Travel/Subsistence,OYSTER AUTO TOPUP,01-Aug-2020,20.00
CLIENT,IT Software-Customised,MSFT * E0700BPQA5,01-Aug-2020,24.24
PARKING INVESTIGATIONS,Travel/Subsistence,OYSTER BUS AUTOLOAD,01-Aug-2020,40.00
SUBSTANCE MISUSE,Domestic Goods-Other,AMZNMktplace,01-Aug-2020,43.47
16+ INDEPENDENCE SERVICE (LEAVING CARE),Domestic Goods-Other,AMZNMktplace,02-Aug-2020,68.99
16+ INDEPENDENCE SERVICE (LEAVING CARE),Travel/Subsistence,OYSTER BUS AUTOLOAD,02-Aug-2020,20.00
16+ INDEPENDENCE SERVICE (LEAVING CARE),Travel/Subsistence,OYSTER BUS AUTOLOAD,02-Aug-2020,20.00
CAMPAIGNS & COMMUNICATIONS,IT Services,NATIONBUILDER,02-Aug-2020,172.52
FAMILY SUPPORT & CHILD PROTECTION,Travel/Subsistence,OYSTER BUS AUTOLOAD,02-Aug-2020,40.00
LIBRARIES & ARCHIVES,Education-Other,AMZNMKTPLACE AMAZON.CO.UK,02-Aug-2020,149.04
16+ INDEPENDENCE SERVICE (LEAVING CARE),Catering Food & Drink,TESCO GIFT CARD,03-Aug-2020,50.00
16+ INDEPENDENCE SERVICE (LEAVING CARE),Domestic Goods-Other,ARGOS LTD,03-Aug-2020,370.93
ADOPTIONS,Accommodation,PREMIER INN44513065,03-Aug-2020,274.00
ADOPTIONS,Accommodation,EASYJET,03-Aug-2020,206.44
ASC SENIOR MANAGEMENT,Facilities-Design & Photography,CONTRADO-BAGS OF LOVE,03-Aug-2020,505.75
CORPORATE COMPLAINTS,IT Services,AWS EMEA,03-Aug-2020,144.09
FAMILY SUPPORT & CHILD PROTECTION,Accommodation,CASH ADVANCE FEE,03-Aug-2020,12.25
FAMILY SUPPORT & CHILD PROTECTION,Catering Food & Drink,TESCO GIFT CARD,03-Aug-2020,50.00
FAMILY SUPPORT & CHILD PROTECTION,Domestic Goods-Other,ARGOS LTD,03-Aug-2020,48.94
FAMILY SUPPORT & CHILD PROTECTION,Travel/Subsistence,OYSTER BUS AUTOLOAD,03-Aug-2020,20.00
FINANCIAL PLANNING AND MANAGEMENT,Financial Services-Accountancy,PWC SHOP DIGITAL,03-Aug-2020,240.00
HOUSING MANAGEMENT SERVICES,Catering Food & Drink,TESCO STORES 4342,03-Aug-2020,300.00
MH SERVICES,Legal Services-Other,HMCOURTS-SERVICE.G,03-Aug-2020,75.00
PARKS & LEISURE SERVICES,Building-General,SCREWFIX DIRECT,03-Aug-2020,134.15
PARKS & LEISURE SERVICES,Building-Timber,TOOLSTATION LTD,03-Aug-2020,34.78
PARKS & LEISURE SERVICES,Domestic Goods-Commercial,FIRE DETECTION SHOP,03-Aug-2020,16.38
SUBSTANCE MISUSE,Domestic Goods-Other,AMZNMktplace,03-Aug-2020,274.94
16+ INDEPENDENCE SERVICE (LEAVING CARE),Domestic Goods-Other,ARGOS LTD,04-Aug-2020,103.90
ACCESS & ASSESSMENTS,Domestic Goods-Other,AMZ*Amazon.co.uk,04-Aug-2020,-22.79
ALD SERVICES,Domestic Goods-Other,AMZNMKTPLACE AMAZON.CO.UK,04-Aug-2020,210.29
ALD SERVICES,Environmental-Pest Control,WWW.FARMANDCOUNTRYDIRE,04-Aug-2020,157.80
ASC SENIOR MANAGEMENT,Professional & Advisory Services,PAYPAL,04-Aug-2020,113.00
CAMPAIGNS & COMMUNICATIONS,IT Services,NATIONBUILDER,04-Aug-2020,94.39
CAMPAIGNS & COMMUNICATIONS,IT Services,BUZZSUMO.COM PRO,04-Aug-2020,47.12
CHILDREN LOOKED AFTER,Catering Food & Drink,TESCO GIFT CARD,04-Aug-2020,40.00
CHILDREN LOOKED AFTER,Financial Services,BT PHONE / ATM KIOSK,04-Aug-2020,115.99
FAMILY SUPPORT & CHILD PROTECTION,Travel/Subsistence,thetrainline.com,04-Aug-2020,-17.50
HOUSING MANAGEMENT SERVICES,IT Software-Customised,INTELLISOFTWARE LTD,04-Aug-2020,120.00
MH SERVICES,Legal Services-Other,HMCOURTS-SERVICE.G,04-Aug-2020,150.00
REGISTRAR SERVICES,Domestic Goods-Other,PAPER BAG CO,04-Aug-2020,194.40
SUBSTANCE MISUSE,Catering Food & Drink,TESCO STORE 2821,04-Aug-2020,16.92
16+ INDEPENDENCE SERVICE (LEAVING CARE),Catering Food & Drink,TESCO GIFT CARD,05-Aug-2020,30.00
16+ INDEPENDENCE SERVICE (LEAVING CARE),Catering Food & Drink,TESCO GIFT CARD,05-Aug-2020,40.00
16+ INDEPENDENCE SERVICE (LEAVING CARE),Domestic Goods-Other,ARGOS LTD,05-Aug-2020,18.00
16+ INDEPENDENCE SERVICE (LEAVING CARE),Domestic Goods-Other,ARGOS LTD,05-Aug-2020,326.95
16+ INDEPENDENCE SERVICE (LEAVING CARE),Domestic Goods-Other,AO RETAIL LIMITED,05-Aug-2020,648.00
ACCESS & ASSESSMENTS,Financial Services,ROYAL BANK UK /,05-Aug-2020,220.00
ALD SERVICES,Environmental-Pest Control,WWW.FARMANDCOUNTRYDIRE,05-Aug-2020,57.06
CAMPAIGNS & COMMUNICATIONS,Financial Services,WWW.INSIDEHG.CO.UK R/T,05-Aug-2020,169.00
CHILDREN LOOKED AFTER,Accommodation,CASH ADVANCE FEE,05-Aug-2020,3.42
FAMILY SUPPORT & CHILD PROTECTION,Domestic Goods-Other,ARGOS LTD,05-Aug-2020,89.99
FAMILY SUPPORT & CHILD PROTECTION,Financial Services,LOYD - 18 ACRE LANE,05-Aug-2020,60.00
FAMILY SUPPORT & CHILD PROTECTION,Financial Services,ROYAL BANK UK /,05-Aug-2020,140.00
FAMILY SUPPORT & CHILD PROTECTION,Financial Services,ROYAL BANK UK /,05-Aug-2020,100.00
FAMILY SUPPORT & CHILD PROTECTION,Financial Services,ROYAL BANK UK /,05-Aug-2020,250.00
FAMILY SUPPORT & CHILD PROTECTION,Financial Services,ROYAL BANK UK /,05-Aug-2020,100.00
FAMILY SUPPORT & CHILD PROTECTION,Travel/Subsistence,OYSTER AUTO TOPUP,05-Aug-2020,20.00
FAMILY SUPPORT & CHILD PROTECTION,Travel/Subsistence,OYSTER BUS AUTOLOAD,05-Aug-2020,20.00
HOUSING MANAGEMENT SERVICES,Building-General,B & Q 1009,05-Aug-2020,17.52
INTERNAL AUDIT,Domestic Goods-Other,AMZNMktplace,05-Aug-2020,20.85
LIBRARIES & ARCHIVES,Education-Library Books,PAYPAL,05-Aug-2020,360.00
LIBRARIES & ARCHIVES,Healthcare Equipment,AMZNMktplace,05-Aug-2020,158.31
LIBRARIES & ARCHIVES,Healthcare Equipment,AMZNMktplace,05-Aug-2020,323.37
LOCAL SAFEGUARDING CHILDRENS BOARD (LSCB),Domestic Goods-Other,AMZNMKTPLACE AMAZON.CO.UK,05-Aug-2020,46.65
MH SERVICES,Accommodation,PASHA HOTEL,05-Aug-2020,"1,105.00"
PARKING OPERATIONS,Facilities-Printing,PLANET NUMBERS,05-Aug-2020,360.00
PARKS & LEISURE SERVICES,Building-General,MACKAYS HARDWARE,05-Aug-2020,52.00
PARKS & LEISURE SERVICES,Building-Plumbing,FRASER & ELLIS LTD,05-Aug-2020,86.73
PARKS & LEISURE SERVICES,Building-Plumbing,FRASER & ELLIS LTD,05-Aug-2020,243.34
PARKS & LEISURE SERVICES,Building-Timber,TOOLSTATION LTD,05-Aug-2020,9.13
PARKS & LEISURE SERVICES,Building-Timber,SELCO TRADING CTR,05-Aug-2020,249.98
SUBSTANCE MISUSE,Domestic Goods-Other,ARGOS LTD,05-Aug-2020,124.95
16+ INDEPENDENCE SERVICE (LEAVING CARE),Domestic Goods-Other,CURRYS ONLINE,06-Aug-2020,474.00
16+ INDEPENDENCE SERVICE (LEAVING CARE),Domestic Goods-Other,AO RETAIL LIMITED,06-Aug-2020,508.00
16+ INDEPENDENCE SERVICE (LEAVING CARE),Facilities-Market Research,AMAZON PRIME,06-Aug-2020,7.99
16+ INDEPENDENCE SERVICE (LEAVING CARE),Furniture-Domestic Furniture,WAYFAIR #3383771354,06-Aug-2020,59.99
16+ INDEPENDENCE SERVICE (LEAVING CARE),Travel/Subsistence,OYSTER AUTO TOPUP,06-Aug-2020,20.00
ACCESS & ASSESSMENTS,Accommodation,PAYPAL,06-Aug-2020,616.97
ACCESS & ASSESSMENTS,Accommodation,CASH ADVANCE FEE,06-Aug-2020,5.90
ASC SENIOR MANAGEMENT,Facilities-Design & Photography,CONTRADO-BAGS OF LOVE,06-Aug-2020,265.75
CHILDREN LOOKED AFTER,Domestic Goods-Other,ARGOS LTD,06-Aug-2020,406.95
FAMILY SUPPORT & CHILD PROTECTION,Accommodation,CASH ADVANCE FEE,06-Aug-2020,6.49
FAMILY SUPPORT & CHILD PROTECTION,Accommodation,CASH ADVANCE FEE,06-Aug-2020,11.80
FAMILY SUPPORT & CHILD PROTECTION,Catering Food & Drink,TESCO GIFT CARD,06-Aug-2020,40.00
FAMILY SUPPORT & CHILD PROTECTION,Financial Services,LOYD - 18 ACRE LANE,06-Aug-2020,30.00
FAMILY SUPPORT & CHILD PROTECTION,Financial Services,HM PASSPORT OFFICE,06-Aug-2020,54.00
FAMILY SUPPORT & CHILD PROTECTION,Travel/Subsistence,OYSTER AUTO TOPUP,06-Aug-2020,20.00
FAMILY SUPPORT & CHILD PROTECTION,Travel/Subsistence,OYSTER BUS AUTOLOAD,06-Aug-2020,20.00
FAMILY SUPPORT & CHILD PROTECTION,Works-Construction,SQ *COMPARE THE MAN AND V,06-Aug-2020,124.81
HOUSING MANAGEMENT SERVICES,Facilities-Market Research,Amazon Prime,06-Aug-2020,7.99
NO RECOURSE TO PUBLIC FUNDS,Accommodation,CASH ADVANCE FEE,06-Aug-2020,7.38
PARKING INVESTIGATIONS,Travel/Subsistence,OYSTER BUS AUTOLOAD,06-Aug-2020,40.00
PARKS & LEISURE SERVICES,Building-Timber,PREMIER SHEDS,06-Aug-2020,66.00
PARKS & LEISURE SERVICES,Stationery,RYMAN 1134,06-Aug-2020,229.99
16+ INDEPENDENCE SERVICE (LEAVING CARE),Catering Food & Drink,TESCO GIFT CARD,07-Aug-2020,30.00
16+ INDEPENDENCE SERVICE (LEAVING CARE),Furniture-Domestic Furniture,IKEA LTD SHOP ONLINE,07-Aug-2020,782.50
ACCESS & ASSESSMENTS,Financial Services,ROYAL BANK UK /,07-Aug-2020,100.00
CHILDREN LOOKED AFTER,Travel/Subsistence,NX WEBSITE,07-Aug-2020,60.40
FAMILY SUPPORT & CHILD PROTECTION,Accommodation,CASH ADVANCE FEE,07-Aug-2020,2.95
FAMILY SUPPORT & CHILD PROTECTION,Catering Food & Drink,TESCO GIFT CARD,07-Aug-2020,30.00
FAMILY SUPPORT & CHILD PROTECTION,Financial Services,ROYAL BANK UK /,07-Aug-2020,440.00
FAMILY SUPPORT & CHILD PROTECTION,Travel/Subsistence,OYSTER BUS AUTOLOAD,07-Aug-2020,20.00
FAMILY SUPPORT & CHILD PROTECTION,Travel/Subsistence,OYSTER AUTO TOPUP,07-Aug-2020,20.00
FAMILY SUPPORT & CHILD PROTECTION,Travel/Subsistence,OYSTER BUS AUTOLOAD,07-Aug-2020,20.00
FAMILY SUPPORT & CHILD PROTECTION,Travel/Subsistence,OYSTER BUS AUTOLOAD,07-Aug-2020,20.00
FOSTERING & PERMANENCY,Travel/Subsistence,OYSTER AUTO TOPUP,07-Aug-2020,20.00
HOUSING OPTIONS - GF,Domestic Goods-Other,AMZNMktplace,07-Aug-2020,109.98
LIBRARIES & ARCHIVES,Domestic Goods-Other,AMZNMKTPLACE AMAZON.CO.UK,07-Aug-2020,-0.83
LIBRARIES & ARCHIVES,Domestic Goods-Other,AMZNMKTPLACE AMAZON.CO.UK,07-Aug-2020,-4.16
LIBRARIES & ARCHIVES,Healthcare Equipment,AMZNMKTPLACE AMAZON.CO.UK,07-Aug-2020,464.66
MH SERVICES,Legal Services-Other,HMCOURTS-SERVICE.G,07-Aug-2020,75.00
PARKS & LEISURE SERVICES,IT Hardware,HIRE 4 LOWER,07-Aug-2020,138.20
PARKS & LEISURE SERVICES,Telecommunications,VIRGINMEDIA.COM,07-Aug-2020,222.30
16+ INDEPENDENCE SERVICE (LEAVING CARE),Domestic Goods-Other,CURRYS ONLINE,08-Aug-2020,-299.99
16+ INDEPENDENCE SERVICE (LEAVING CARE),Domestic Goods-Other,CURRYS ONLINE,08-Aug-2020,299.99
16+ INDEPENDENCE SERVICE (LEAVING CARE),Furniture-Domestic Furniture,BEDSLAND UK,08-Aug-2020,399.00
ACCESS & ASSESSMENTS,Travel/Subsistence,OYSTER BUS AUTOLOAD,08-Aug-2020,20.00
CHILDREN LOOKED AFTER,Travel/Subsistence,OYSTER BUS AUTOLOAD,08-Aug-2020,40.00
CSC SENIOR MANAGEMENT,Domestic Goods-Other,ARGOS LTD,08-Aug-2020,469.98
HOUSING OPTIONS - GF,Books/Publications/Resources,WHICH,08-Aug-2020,11.75
16+ INDEPENDENCE SERVICE (LEAVING CARE),Domestic Goods-Other,AMZNMktplace,09-Aug-2020,8.99
16+ INDEPENDENCE SERVICE (LEAVING CARE),Domestic Goods-Other,ARGOS LTD,09-Aug-2020,"1,688.78"
16+ INDEPENDENCE SERVICE (LEAVING CARE),Domestic Goods-Other,CURRYS ONLINE,09-Aug-2020,374.99
16+ INDEPENDENCE SERVICE (LEAVING CARE),Domestic Goods-Other,AMZNMKTPLACE AMAZON.CO.UK,09-Aug-2020,26.97
ACCESS & ASSESSMENTS,Travel/Subsistence,OYSTER BUS AUTOLOAD,09-Aug-2020,20.00
ACCESS & ASSESSMENTS,Travel/Subsistence,OYSTER AUTO TOPUP,09-Aug-2020,20.00
ASC SENIOR MANAGEMENT,Facilities-Market Research,ZOOM.GBP,09-Aug-2020,14.39
FAMILY SUPPORT & CHILD PROTECTION,Travel/Subsistence,OYSTER BUS AUTOLOAD,09-Aug-2020,20.00
LIBRARIES & ARCHIVES,Healthcare Equipment,AMZNMktplace,09-Aug-2020,27.45
16+ INDEPENDENCE SERVICE (LEAVING CARE),Catering Food & Drink,TESCO GIFT CARD,10-Aug-2020,25.00
16+ INDEPENDENCE SERVICE (LEAVING CARE),Catering Food & Drink,TESCO GIFT CARD,10-Aug-2020,30.00
16+ INDEPENDENCE SERVICE (LEAVING CARE),Catering Food & Drink,TESCO GIFT CARD,10-Aug-2020,40.00
16+ INDEPENDENCE SERVICE (LEAVING CARE),Domestic Goods-Other,ARGOS LTD,10-Aug-2020,103.90
16+ INDEPENDENCE SERVICE (LEAVING CARE),Domestic Goods-Other,CURRYS ONLINE,10-Aug-2020,334.00
16+ INDEPENDENCE SERVICE (LEAVING CARE),Domestic Goods-Other,ARGOS LTD,10-Aug-2020,-994.91
16+ INDEPENDENCE SERVICE (LEAVING CARE),Domestic Goods-Other,AMZNMktplace,10-Aug-2020,61.96
16+ INDEPENDENCE SERVICE (LEAVING CARE),Domestic Goods-Other,WWW.VOUCHEREXPRESS.CO.,10-Aug-2020,50.00
16+ INDEPENDENCE SERVICE (LEAVING CARE),Facilities-Market Research,AMAZON PRIME AMZN.CO.UK/P,10-Aug-2020,-23.97
DSG CENTRAL SCHOOL SERVICES BLOCK,Mail Services-Postage,POST OFFICE COUNTER,10-Aug-2020,2.94
FACILITIES MANAGEMENT,Telecommunications,BT BILL PAYMENT 2,10-Aug-2020,223.74
FAMILY SUPPORT & CHILD PROTECTION,Accommodation,CASH ADVANCE FEE,10-Aug-2020,20.65
FAMILY SUPPORT & CHILD PROTECTION,Travel/Subsistence,OYSTER ONLINE,10-Aug-2020,30.00
FAMILY SUPPORT & CHILD PROTECTION,Travel/Subsistence,OYSTER BUS AUTOLOAD,10-Aug-2020,20.00
FAMILY SUPPORT & CHILD PROTECTION,Travel/Subsistence,TRAINLINE,10-Aug-2020,38.00
HOUSING MANAGEMENT SERVICES,Building-General,B & Q 1346,10-Aug-2020,6.34
HOUSING MANAGEMENT SERVICES,Building-Timber,TOOLSTATION LTD,10-Aug-2020,306.07
LEARNING & DEVELOPMENT,Conference Expenses,BUSINESS FORUMS INTERN,10-Aug-2020,300.00
LIBRARIES & ARCHIVES,Education-Other,AMZNMktplace,10-Aug-2020,117.34
LIBRARIES & ARCHIVES,Education-Other,AMZNMKTPLACE AMAZON.CO.UK,10-Aug-2020,-4.50
LIBRARIES & ARCHIVES,Education-Other,AMZNMKTPLACE AMAZON.CO.UK,10-Aug-2020,-9.99
LIBRARIES & ARCHIVES,Education-Other,AMZNMKTPLACE AMAZON.CO.UK,10-Aug-2020,-3.95
REGISTRAR SERVICES,Domestic Goods-Other,AMZNMktplace,10-Aug-2020,18.30
16+ INDEPENDENCE SERVICE (LEAVING CARE),Catering Food & Drink,TESCO GIFT CARD,11-Aug-2020,30.00
16+ INDEPENDENCE SERVICE (LEAVING CARE),Domestic Goods-Other,WWW.VOUCHEREXPRESS.CO.,11-Aug-2020,20.00
16+ INDEPENDENCE SERVICE (LEAVING CARE),Domestic Goods-Other,CURRYS ONLINE,11-Aug-2020,354.98
16+ INDEPENDENCE SERVICE (LEAVING CARE),Domestic Goods-Other,ARGOS LTD,11-Aug-2020,"1,190.88"
16+ INDEPENDENCE SERVICE (LEAVING CARE),Domestic Goods-Other,ARGOS LTD,11-Aug-2020,"1,135.92"
16+ INDEPENDENCE SERVICE (LEAVING CARE),Domestic Goods-Other,ARGOS LTD,11-Aug-2020,199.99
16+ INDEPENDENCE SERVICE (LEAVING CARE),Domestic Goods-Other,WWW.VOUCHEREXPRESS.CO.,11-Aug-2020,30.00
16+ INDEPENDENCE SERVICE (LEAVING CARE),Domestic Goods-Other,WWW.VOUCHEREXPRESS.CO.,11-Aug-2020,110.00
16+ INDEPENDENCE SERVICE (LEAVING CARE),Domestic Goods-Other,ARGOS LTD,11-Aug-2020,212.94
16+ INDEPENDENCE SERVICE (LEAVING CARE),Financial Services,LOYD - 18 ACRE LANE,11-Aug-2020,90.00
ACCESS & ASSESSMENTS,Facilities-Advertising,EXPRESS NEWS,11-Aug-2020,20.00
ACCESS & ASSESSMENTS,Travel/Subsistence,OYSTER ONLINE,11-Aug-2020,60.00
ASC SENIOR MANAGEMENT,Arts & Leisure Services,PAYPAL,11-Aug-2020,361.80
ASC SENIOR MANAGEMENT,Healthcare Services,SOUTH EAST EMPLOYERS,11-Aug-2020,478.80
CHILDREN LOOKED AFTER,Travel/Subsistence,OYSTER ONLINE,11-Aug-2020,20.00
CHILDREN WITH DISABILITIES,Travel/Subsistence,OYSTER BUS AUTOLOAD,11-Aug-2020,20.00
CONTRACT SERVICES,Education-Other,WWW.CIPS.ORG,11-Aug-2020,137.00
CSC SENIOR MANAGEMENT,Domestic Goods-Other,ARGOS LTD,11-Aug-2020,197.99
FAMILY SUPPORT & CHILD PROTECTION,Domestic Goods-Other,notonthehighstreet.com,11-Aug-2020,21.00
FAMILY SUPPORT & CHILD PROTECTION,Domestic Goods-Other,FLAMINGO GIFTS LTD,11-Aug-2020,21.50
FAMILY SUPPORT & CHILD PROTECTION,Domestic Goods-Other,ARGOS LTD,11-Aug-2020,43.94
FAMILY SUPPORT & CHILD PROTECTION,Travel/Subsistence,OYSTER BUS AUTOLOAD,11-Aug-2020,20.00
LIBRARIES & ARCHIVES,Books/Publications/Resources,BUDGENS WESTOW HILL,11-Aug-2020,58.10
LIBRARIES & ARCHIVES,Education-Toys,SMYTHSTOYS.COM,11-Aug-2020,254.82
MH SERVICES,Legal Services-Other,HMCOURTS-SERVICE.G,11-Aug-2020,75.00
SPECIALIST YOUTH,Domestic Goods-Other,AMZNMKTPLACE AMAZON.CO.UK,11-Aug-2020,27.99
SUBSTANCE MISUSE,Domestic Goods-Other,ARGOS LTD,11-Aug-2020,61.94
16+ INDEPENDENCE SERVICE (LEAVING CARE),Catering Food & Drink,TESCO GIFT CARD,12-Aug-2020,30.00
16+ INDEPENDENCE SERVICE (LEAVING CARE),Domestic Goods-Other,ARGOS LTD,12-Aug-2020,-212.94
16+ INDEPENDENCE SERVICE (LEAVING CARE),Horticultural-Other,WWW.PRESTIGEFLOWERS.CO.U,12-Aug-2020,370.18
ACCESS & ASSESSMENTS,Accommodation,CASH ADVANCE FEE,12-Aug-2020,2.95
ACCESS & ASSESSMENTS,Domestic Goods-Other,AMZNMktplace,12-Aug-2020,49.63
ACCESS & ASSESSMENTS,Travel/Subsistence,OYSTER BUS AUTOLOAD,12-Aug-2020,20.00
ASC SENIOR MANAGEMENT,Domestic Goods-Other,AMZNMKTPLACE AMAZON.CO.UK,12-Aug-2020,11.99
BEREAVEMENT SERVICES,Domestic Goods-Other,AMZNMktplace,12-Aug-2020,51.24
CHILDREN LOOKED AFTER,Arts & Leisure Services,JOHN NIKE LEISURE,12-Aug-2020,13.00
CHILDREN LOOKED AFTER,Catering Food & Drink,TESCO GIFT CARD,12-Aug-2020,50.00
CHILDREN LOOKED AFTER,Travel/Subsistence,OYSTER BUS AUTOLOAD,12-Aug-2020,20.00
CHILDREN LOOKED AFTER,Travel/Subsistence,TRAINLINE,12-Aug-2020,22.95
DEMOCRATIC SERVICES,Travel/Subsistence,TFL ROAD CHG-PENALTY WEB,12-Aug-2020,65.00
FAMILY SUPPORT & CHILD PROTECTION,Catering Food & Drink,MARKS&SPENCER PLC,12-Aug-2020,25.00
FAMILY SUPPORT & CHILD PROTECTION,Catering Food & Drink,TESCO GIFT CARD,12-Aug-2020,40.00
FAMILY SUPPORT & CHILD PROTECTION,Travel/Subsistence,OYSTER AUTO TOPUP,12-Aug-2020,20.00
FAMILY SUPPORT & CHILD PROTECTION,Travel/Subsistence,OYSTER BUS AUTOLOAD,12-Aug-2020,20.00
FOSTERING & PERMANENCY,Domestic Goods-Other,ARGOS LTD,12-Aug-2020,54.93
HOUSING MANAGEMENT SERVICES,Travel/Subsistence,NEW SOUTHERN RAILW,12-Aug-2020,148.49
HOUSING OPTIONS - GF,Domestic Goods-Other,AMZNMktplace,12-Aug-2020,409.94
MH SERVICES,Legal Services-Other,HMCOURTS-SERVICE.G,12-Aug-2020,-75.00
PARKS & LEISURE SERVICES,Building-Paint,LEYLAND SDM,12-Aug-2020,29.63
16+ INDEPENDENCE SERVICE (LEAVING CARE),Catering Food & Drink,TESCO GIFT CARD,13-Aug-2020,30.00
16+ INDEPENDENCE SERVICE (LEAVING CARE),Catering Food & Drink,ASDA,13-Aug-2020,30.00
16+ INDEPENDENCE SERVICE (LEAVING CARE),Domestic Goods-Other,ARGOS LTD,13-Aug-2020,225.95
16+ INDEPENDENCE SERVICE (LEAVING CARE),Domestic Goods-Other,BUYATAB - ALDI,13-Aug-2020,20.00
16+ INDEPENDENCE SERVICE (LEAVING CARE),Furniture-Office Furniture,PAYPAL,13-Aug-2020,-195.99
ACCESS & ASSESSMENTS,Travel/Subsistence,OYSTER BUS AUTOLOAD,13-Aug-2020,40.00
ASC SENIOR MANAGEMENT,Domestic Goods-Other,AMZNMktplace,13-Aug-2020,35.98
CHILDREN LOOKED AFTER,Travel/Subsistence,OYSTER AUTO TOPUP,13-Aug-2020,20.00
CHILDREN WITH DISABILITIES,Financial Services,ROYAL BANK UK /,13-Aug-2020,300.00
CONTRACT MANAGEMENT,Building-General,PENNY SAVERS,13-Aug-2020,111.90
CSC SENIOR MANAGEMENT,Domestic Goods-Other,ARGOS LTD,13-Aug-2020,-27.99
DEMOCRATIC SERVICES,Catering Food & Drink,NANDOS,13-Aug-2020,205.70
DEMOCRATIC SERVICES,Catering Food & Drink,NANDOS CAMBERWELL,13-Aug-2020,31.45
FAMILY SUPPORT & CHILD PROTECTION,Financial Services,ROYAL BANK UK /,13-Aug-2020,200.00
FAMILY SUPPORT & CHILD PROTECTION,Financial Services,ROYAL BANK UK /,13-Aug-2020,100.00
FAMILY SUPPORT & CHILD PROTECTION,Travel/Subsistence,OYSTER AUTO TOPUP,13-Aug-2020,20.00
FAMILY SUPPORT & CHILD PROTECTION,Travel/Subsistence,OYSTER AUTO TOPUP,13-Aug-2020,20.00
HOUSING OPTIONS - GF,Domestic Goods-Other,AMZNMktplace,13-Aug-2020,29.98
INTERNAL AUDIT,Domestic Goods-Other,AMAZON.CO.UK,13-Aug-2020,18.98
MH SERVICES,Legal Services-Other,HMCOURTS-SERVICE.G,13-Aug-2020,75.00
SPECIALIST YOUTH,Public Transport,OYSTER BUS AUTOLOAD,13-Aug-2020,20.00
16+ INDEPENDENCE SERVICE (LEAVING CARE),Travel/Subsistence,OYSTER BUS AUTOLOAD,14-Aug-2020,20.00
ACCESS & ASSESSMENTS,Accommodation,CASH ADVANCE FEE,14-Aug-2020,2.95
ACCESS & ASSESSMENTS,Financial Services,ROYAL BANK UK /,14-Aug-2020,40.00
ADOPTIONS,Accommodation,PREMIER INN44014610,14-Aug-2020,76.00
CHILDREN WITH DISABILITIES,Accommodation,CASH ADVANCE FEE,14-Aug-2020,8.85
CSC SENIOR MANAGEMENT,Facilities-Printing,Amazon.co.uk,14-Aug-2020,104.99
EARLY HELP,Domestic Goods-Other,AMZNMktplace,14-Aug-2020,87.13
EARLY HELP,Education-Other,OPEN UNIVERSITY MOTO,14-Aug-2020,"1,500.00"
EDUCATION STRATEGY,Domestic Goods-Other,AMZNMKTPLACE AMAZON.CO.UK,14-Aug-2020,114.87
FAMILY SUPPORT & CHILD PROTECTION,Accommodation,CASH ADVANCE FEE,14-Aug-2020,8.85
FAMILY SUPPORT & CHILD PROTECTION,Domestic Goods-Other,CURRYS ONLINE,14-Aug-2020,-44.99
FAMILY SUPPORT & CHILD PROTECTION,Domestic Goods-Other,CURRYS ONLINE,14-Aug-2020,232.47
FAMILY SUPPORT & CHILD PROTECTION,Financial Services,ROYAL BANK UK /,14-Aug-2020,210.00
FAMILY SUPPORT & CHILD PROTECTION,Travel/Subsistence,OYSTER BUS AUTOLOAD,14-Aug-2020,20.00
FAMILY SUPPORT & CHILD PROTECTION,Travel/Subsistence,OYSTER BUS AUTOLOAD,14-Aug-2020,20.00
FAMILY SUPPORT & CHILD PROTECTION,Travel/Subsistence,OYSTER AUTO TOPUP,14-Aug-2020,20.00
FAMILY SUPPORT & CHILD PROTECTION,Travel/Subsistence,OYSTER BUS AUTOLOAD,14-Aug-2020,20.00
LIBRARIES & ARCHIVES,Education-Library Books,Amazon Prime,14-Aug-2020,79.00
LIBRARIES & ARCHIVES,Education-Toys,SMYTHSTOYS.COM,14-Aug-2020,403.26
PARKING INVESTIGATIONS,Travel/Subsistence,OYSTER BUS AUTOLOAD,14-Aug-2020,40.00
PARKS & LEISURE SERVICES,Building-Timber,SCREWFIX DIRECT,14-Aug-2020,19.99
PARKS & LEISURE SERVICES,IT Hardware,Selco Trade Centres Ltd,14-Aug-2020,106.32
SPECIALIST YOUTH,Furniture-Other,AMZNMktplace,14-Aug-2020,59.99
SPECIALIST YOUTH,Public Transport,OYSTER BUS AUTOLOAD,14-Aug-2020,20.00
16+ INDEPENDENCE SERVICE (LEAVING CARE),Travel/Subsistence,OYSTER AUTO TOPUP,15-Aug-2020,20.00
16+ INDEPENDENCE SERVICE (LEAVING CARE),Travel/Subsistence,OYSTER BUS AUTOLOAD,15-Aug-2020,20.00
16+ INDEPENDENCE SERVICE (LEAVING CARE),Travel/Subsistence,OYSTER AUTO TOPUP,15-Aug-2020,20.00
ACCESS & ASSESSMENTS,Travel/Subsistence,OYSTER AUTO TOPUP,15-Aug-2020,20.00
CHILDREN LOOKED AFTER,Travel/Subsistence,OYSTER BUS AUTOLOAD,15-Aug-2020,20.00
CSC SENIOR MANAGEMENT,Domestic Goods-Other,AMZNMKTPLACE AMAZON.CO.UK,15-Aug-2020,73.14
FAMILY SUPPORT & CHILD PROTECTION,Travel/Subsistence,OYSTER BUS AUTOLOAD,15-Aug-2020,20.00
SCHOOL & EDUCATIONAL IMPROVEMENT SERVICE,Consultancy-Business,AWEBER COMMUNICATIONS,15-Aug-2020,7.90
16+ INDEPENDENCE SERVICE (LEAVING CARE),Furniture-Domestic Furniture,WAYFAIR #3390392204,16-Aug-2020,22.98
16+ INDEPENDENCE SERVICE (LEAVING CARE),Furniture-Domestic Furniture,DUNELM,16-Aug-2020,17.95
CHILDREN LOOKED AFTER,Travel/Subsistence,OYSTER AUTO TOPUP,16-Aug-2020,40.00
FAMILY SUPPORT & CHILD PROTECTION,Travel/Subsistence,OYSTER BUS AUTOLOAD,16-Aug-2020,20.00
FAMILY SUPPORT & CHILD PROTECTION,Travel/Subsistence,OYSTER AUTO TOPUP,16-Aug-2020,20.00
HOUSING OPTIONS - GF,Domestic Goods-Other,AMZNMktplace,16-Aug-2020,64.16
LIBRARIES & ARCHIVES,Education-Other,AMZNMKTPLACE AMAZON.CO.UK,16-Aug-2020,226.63
16+ INDEPENDENCE SERVICE (LEAVING CARE),Catering Food & Drink,TESCO GIFT CARD,17-Aug-2020,30.00
ACCESS & ASSESSMENTS,Travel/Subsistence,OYSTER BUS AUTOLOAD,17-Aug-2020,20.00
ASC SENIOR MANAGEMENT,Healthcare Equipment,ISHOP,17-Aug-2020,164.25
CAMPAIGNS & COMMUNICATIONS,Facilities-Design & Photography,CANVA* 02786-0771201,17-Aug-2020,10.20
EVENTS & FILMING,IT Services,123 REG LTD,17-Aug-2020,235.04
EVENTS & FILMING,IT Software-Customised,RESTREAM,17-Aug-2020,77.96
FAMILY SUPPORT & CHILD PROTECTION,Accommodation,CASH ADVANCE FEE,17-Aug-2020,11.80
FAMILY SUPPORT & CHILD PROTECTION,Accommodation,CASH ADVANCE FEE,17-Aug-2020,2.95
FAMILY SUPPORT & CHILD PROTECTION,Catering Food & Drink,TESCO GIFT CARD,17-Aug-2020,30.00
FAMILY SUPPORT & CHILD PROTECTION,Travel/Subsistence,OYSTER BUS AUTOLOAD,17-Aug-2020,20.00
FAMILY SUPPORT & CHILD PROTECTION,Travel/Subsistence,OYSTER BUS AUTOLOAD,17-Aug-2020,20.00
FAMILY SUPPORT & CHILD PROTECTION,Travel/Subsistence,OYSTER ONLINE,17-Aug-2020,-30.00
MH SERVICES,Legal Services-Other,HMCOURTS-SERVICE.G,17-Aug-2020,75.00
PARKS & LEISURE SERVICES,Building-General,HOMEBASE LTD 313,17-Aug-2020,81.05
PARKS & LEISURE SERVICES,Building-Timber,TP VAUXHALL,17-Aug-2020,155.14
PARKS & LEISURE SERVICES,Building-Timber,SELCO OLD KENT ROA,17-Aug-2020,-5.11
PARKS & LEISURE SERVICES,Building-Timber,TOOLSTATION LTD,17-Aug-2020,39.11
PARKS & LEISURE SERVICES,Healthcare Services,THE PARTNERSHIP OF HEN,17-Aug-2020,167.00
PARKS & LEISURE SERVICES,IT Hardware,Selco Trade Centres Ltd,17-Aug-2020,24.17
SCHOOL & EDUCATIONAL IMPROVEMENT SERVICE,Facilities-Advertising,FACEBK TVJ4CV2CE2,17-Aug-2020,565.44
SCHOOL & EDUCATIONAL IMPROVEMENT SERVICE,Facilities-Advertising,GOOGLE  ADS3485321156,17-Aug-2020,226.81
TECHNICAL SERVICES,Legal Services-Other,HMCOURTS-SERVICE.G,17-Aug-2020,500.00
TECHNICAL SERVICES,Legal Services-Other,HMCOURTS-SERVICE.G,17-Aug-2020,500.00
16+ INDEPENDENCE SERVICE (LEAVING CARE),Facilities-Printing,Amazon.co.uk,18-Aug-2020,20.00
ASC SENIOR MANAGEMENT,Travel/Subsistence,TFL ROAD CHG-PENALTY WEB,18-Aug-2020,203.00
BEREAVEMENT SERVICES,Cemetery & Crematorium,AMZNMKTPLACE AMAZON.CO.UK,18-Aug-2020,32.45
CONTRACT MANAGEMENT,Works-Construction/Materials,MEGALINK (UK) LTD,18-Aug-2020,58.00
CSC SENIOR MANAGEMENT,Domestic Goods-Other,AMZNMktplace,18-Aug-2020,16.99
EARLY HELP,Domestic Goods-Other,AMZNMktplace,18-Aug-2020,86.72
FAMILY SUPPORT & CHILD PROTECTION,Accommodation,PREMIER INN44529460,18-Aug-2020,100.00
FAMILY SUPPORT & CHILD PROTECTION,Facilities-Printing,Amazon.co.uk,18-Aug-2020,20.87
FAMILY SUPPORT & CHILD PROTECTION,Travel/Subsistence,OYSTER BUS AUTOLOAD,18-Aug-2020,20.00
HOUSING MANAGEMENT SERVICES,Domestic Goods-Other,AMZNMktplace,18-Aug-2020,47.50
HOUSING OPTIONS - GF,Domestic Goods-Other,AMZNMktplace,18-Aug-2020,580.92
LIBRARIES & ARCHIVES,Education-Other,SP * WEARABOUTSONLINE,18-Aug-2020,154.33
LIBRARIES & ARCHIVES,Education-Toys,SMYTHSTOYS.COM,18-Aug-2020,62.97
PARKS & LEISURE SERVICES,Building-Timber,TP NORWOOD 9014,18-Aug-2020,166.14
PARKS & LEISURE SERVICES,Building-Timber,TP NORWOOD 9014,18-Aug-2020,199.00
PARKS & LEISURE SERVICES,Building-Timber,TOOLSTATION LTD,18-Aug-2020,15.29
SPECIALIST YOUTH,Domestic Goods-Other,Amazon.co.uk,18-Aug-2020,45.98
SUBSTANCE MISUSE,Domestic Goods-Other,AMZNMktplace,18-Aug-2020,44.48
16+ INDEPENDENCE SERVICE (LEAVING CARE),Catering Food & Drink,TESCO GIFT CARD,19-Aug-2020,30.00
16+ INDEPENDENCE SERVICE (LEAVING CARE),Domestic Goods-Other,ARGOS LTD,19-Aug-2020,-199.99
16+ INDEPENDENCE SERVICE (LEAVING CARE),Domestic Goods-Other,ARGOS LTD,19-Aug-2020,199.99
16+ INDEPENDENCE SERVICE (LEAVING CARE),Domestic Goods-Other,WWW.VOUCHEREXPRESS.CO.,19-Aug-2020,100.00
16+ INDEPENDENCE SERVICE (LEAVING CARE),Domestic Goods-Other,ARGOS LTD,19-Aug-2020,253.93
16+ INDEPENDENCE SERVICE (LEAVING CARE),Facilities-Printing,Amazon.co.uk,19-Aug-2020,40.00
16+ INDEPENDENCE SERVICE (LEAVING CARE),Travel/Subsistence,thetrainline.com,19-Aug-2020,178.28
ACCESS & ASSESSMENTS,Travel/Subsistence,OYSTER AUTO TOPUP,19-Aug-2020,20.00
ASC SENIOR MANAGEMENT,Healthcare Equipment,ISHOP,19-Aug-2020,-81.04
CHILDREN WITH DISABILITIES,Travel/Subsistence,thetrainline.com,19-Aug-2020,72.72
CONTRACT MANAGEMENT,Travel/Subsistence,DISCOVER HOLIDAYS LTD,19-Aug-2020,968.05
FAMILY SUPPORT & CHILD PROTECTION,Catering Food & Drink,TESCO GIFT CARD,19-Aug-2020,50.00
FAMILY SUPPORT & CHILD PROTECTION,Financial Services,BT PHONE / ATM KIOSK,19-Aug-2020,75.99
FAMILY SUPPORT & CHILD PROTECTION,Travel/Subsistence,OYSTER BUS AUTOLOAD,19-Aug-2020,20.00
FAMILY SUPPORT & CHILD PROTECTION,Travel/Subsistence,OYSTER AUTO TOPUP,19-Aug-2020,20.00
FAMILY SUPPORT & CHILD PROTECTION,Travel/Subsistence,OYSTER BUS AUTOLOAD,19-Aug-2020,20.00
FOSTERING & PERMANENCY,Travel/Subsistence,OYSTER BUS AUTOLOAD,19-Aug-2020,20.00
HOUSING MANAGEMENT SERVICES,Domestic Goods-Other,LANYARDS TOMORROW,19-Aug-2020,63.99
HOUSING OPTIONS - GF,Domestic Goods-Other,AMZNMktplace,19-Aug-2020,201.98
HOUSING OPTIONS - GF,Domestic Goods-Other,AMZNMktplace,19-Aug-2020,29.99
MH SERVICES,Taxi Fares,WWW.ADDISONLEE.COM,19-Aug-2020,70.54
NO RECOURSE TO PUBLIC FUNDS,Domestic Goods-Other,AMZNMktplace,19-Aug-2020,23.35
PARKS & LEISURE SERVICES,Building-Paint,S LONDON DECORTORS,19-Aug-2020,205.02
SPECIALIST YOUTH,Public Transport,OYSTER BUS AUTOLOAD,19-Aug-2020,20.00
SUBSTANCE MISUSE,Couriers,UPS LTD,19-Aug-2020,2.40
16+ INDEPENDENCE SERVICE (LEAVING CARE),Catering Food & Drink,TESCO GIFT CARD,20-Aug-2020,30.00
16+ INDEPENDENCE SERVICE (LEAVING CARE),Domestic Goods-Other,ARGOS LTD,20-Aug-2020,499.00
16+ INDEPENDENCE SERVICE (LEAVING CARE),Domestic Goods-Other,ARGOS LTD,20-Aug-2020,69.95
16+ INDEPENDENCE SERVICE (LEAVING CARE),Domestic Goods-Other,WWW.VOUCHEREXPRESS.CO.,20-Aug-2020,30.00
16+ INDEPENDENCE SERVICE (LEAVING CARE),Facilities-Market Research,Amazon Prime,20-Aug-2020,0.49
ACCESS & ASSESSMENTS,Travel/Subsistence,OYSTER AUTO TOPUP,20-Aug-2020,20.00
ACCESS & ASSESSMENTS,Travel/Subsistence,OYSTER BUS AUTOLOAD,20-Aug-2020,20.00
ASC SENIOR MANAGEMENT,Domestic Goods-Other,AMZNMKTPLACE AMAZON.CO.UK,20-Aug-2020,209.70
ASC SENIOR MANAGEMENT,Domestic Goods-Other,AMZNMktplace,20-Aug-2020,474.60
ASC SENIOR MANAGEMENT,Facilities-Printing,Amazon.co.uk,20-Aug-2020,389.80
BEREAVEMENT SERVICES,Catering Food & Drink,AMZNMKTPLACE AMAZON.CO.UK,20-Aug-2020,23.96
CAMPAIGNS & COMMUNICATIONS,IT Software,ADOBE CREATIVE CLOUD,20-Aug-2020,212.40
CHILDREN LOOKED AFTER,Travel/Subsistence,OYSTER AUTO TOPUP,20-Aug-2020,20.00
EARLY HELP,Domestic Goods-Other,MOONPIG,20-Aug-2020,37.28
EARLY HELP,Taxi Fares,UBER   *TRIP,20-Aug-2020,12.89
FAMILY SUPPORT & CHILD PROTECTION,Accommodation,PREMIER INN44529460,20-Aug-2020,145.50
FAMILY SUPPORT & CHILD PROTECTION,Accommodation,CASH ADVANCE FEE,20-Aug-2020,2.95
FAMILY SUPPORT & CHILD PROTECTION,Clothing-Children/Adults,SCHOOLU-FORMDIRECT,20-Aug-2020,81.17
FAMILY SUPPORT & CHILD PROTECTION,Financial Services,LOYD - 18 ACRE LANE,20-Aug-2020,160.00
FAMILY SUPPORT & CHILD PROTECTION,Travel/Subsistence,OYSTER AUTO TOPUP,20-Aug-2020,20.00
FOSTERING & PERMANENCY,Financial Services,LOYD - 18 ACRE LANE,20-Aug-2020,250.00
HOUSING OPTIONS - GF,Domestic Goods-Other,AMZNMktplace,20-Aug-2020,35.40
HOUSING OPTIONS - GF,Domestic Goods-Other,AMZNMktplace,20-Aug-2020,80.99
HOUSING OPTIONS - GF,Domestic Goods-Other,AMZNMktplace,20-Aug-2020,105.98
HOUSING OPTIONS - GF,Domestic Goods-Other,AMZNMktplace,20-Aug-2020,28.99
HOUSING OPTIONS - GF,Domestic Goods-Other,AMZNMktplace,20-Aug-2020,35.99
HOUSING OPTIONS - GF,Domestic Goods-Other,AMZNMktplace,20-Aug-2020,99.99
HOUSING OPTIONS - GF,Domestic Goods-Other,AMZNMktplace,20-Aug-2020,54.95
HOUSING OPTIONS - GF,Domestic Goods-Other,AMZNMktplace,20-Aug-2020,84.99
HOUSING OPTIONS - GF,Furniture-Other,Amazon.co.uk,20-Aug-2020,26.84
LIBRARIES & ARCHIVES,Education-Library Books,Amazon.co.uk,20-Aug-2020,9.99
LIBRARIES & ARCHIVES,Education-Other,AMZNMktplace,20-Aug-2020,408.07
PARKING INVESTIGATIONS,Travel/Subsistence,OYSTER AUTO TOPUP,20-Aug-2020,40.00
PARKS & LEISURE SERVICES,Horticultural-Other,WWW.KEDEL.CO.UK,20-Aug-2020,176.32
SPECIALIST YOUTH,Domestic Goods-Other,AMZNMktplace,20-Aug-2020,46.98
16+ INDEPENDENCE SERVICE (LEAVING CARE),Catering Food & Drink,ASDA,21-Aug-2020,30.00
16+ INDEPENDENCE SERVICE (LEAVING CARE),Domestic Goods-Other,ARGOS LTD,21-Aug-2020,95.00
16+ INDEPENDENCE SERVICE (LEAVING CARE),Domestic Goods-Other,ARGOS LTD,21-Aug-2020,"1,345.91"
16+ INDEPENDENCE SERVICE (LEAVING CARE),Domestic Goods-Other,ARGOS LTD,21-Aug-2020,284.00
16+ INDEPENDENCE SERVICE (LEAVING CARE),Domestic Goods-Other,AMZNMktplace,21-Aug-2020,79.99
16+ INDEPENDENCE SERVICE (LEAVING CARE),Travel/Subsistence,OYSTER AUTO TOPUP,21-Aug-2020,20.00
ACCESS & ASSESSMENTS,Travel/Subsistence,OYSTER AUTO TOPUP,21-Aug-2020,40.00
ALD SERVICES,Domestic Goods-Other,AMZNMktplace,21-Aug-2020,39.99
CHILDREN LOOKED AFTER,Catering Food & Drink,ASDA,21-Aug-2020,60.00
CHILDREN LOOKED AFTER,Financial Services,NATWEST BANK  /,21-Aug-2020,120.00
CONTRACT MANAGEMENT,Travel/Subsistence,DISCOVER HOLIDAYS LTD,21-Aug-2020,458.55
EARLY HELP,Financial Services,ROYAL BANK UK /,21-Aug-2020,100.00
FAMILY SUPPORT & CHILD PROTECTION,Accommodation,CASH ADVANCE FEE,21-Aug-2020,8.85
FAMILY SUPPORT & CHILD PROTECTION,Catering Food & Drink,TESCO GIFT CARD,21-Aug-2020,60.00
FAMILY SUPPORT & CHILD PROTECTION,Domestic Goods-Other,AMZNMktplace,21-Aug-2020,36.99
FAMILY SUPPORT & CHILD PROTECTION,Financial Services,NATWEST BANK  /,21-Aug-2020,50.00
FAMILY SUPPORT & CHILD PROTECTION,Financial Services,LOYD - 18 ACRE LANE,21-Aug-2020,120.00
FAMILY SUPPORT & CHILD PROTECTION,Travel/Subsistence,TRAINLINE,21-Aug-2020,97.05
FOSTERING & PERMANENCY,Accommodation,CASH ADVANCE FEE,21-Aug-2020,7.38
LIBRARIES & ARCHIVES,Education-Other,POUNDLAND LTD 1203,21-Aug-2020,2.00
LIBRARIES & ARCHIVES,Education-Other,POUND PLUS,21-Aug-2020,1.99
LIBRARIES & ARCHIVES,Education-Other,POUND PLUS,21-Aug-2020,16.46
LIBRARIES & ARCHIVES,Education-Toys,SMYTHSTOYS.COM,21-Aug-2020,209.88
PARKS & LEISURE SERVICES,Building-Paint,LEYLAND SDM,21-Aug-2020,34.97
PARKS & LEISURE SERVICES,Facilities-Advertising,PAYPAL,21-Aug-2020,160.00
SPECIALIST YOUTH,Travel/Subsistence,OYSTER AUTO TOPUP,21-Aug-2020,20.00
ASC SENIOR MANAGEMENT,Facilities-Printing,Amazon.co.uk,22-Aug-2020,97.50
CHILDREN LOOKED AFTER,Travel/Subsistence,OYSTER BUS AUTOLOAD,22-Aug-2020,20.00
CHILDREN LOOKED AFTER,Travel/Subsistence,OYSTER AUTO TOPUP,22-Aug-2020,20.00
FAMILY SUPPORT & CHILD PROTECTION,Travel/Subsistence,OYSTER BUS AUTOLOAD,22-Aug-2020,40.00
16+ INDEPENDENCE SERVICE (LEAVING CARE),Travel/Subsistence,OYSTER AUTO TOPUP,23-Aug-2020,20.00
ACCESS & ASSESSMENTS,Travel/Subsistence,OYSTER BUS AUTOLOAD,23-Aug-2020,20.00
ACCESS & ASSESSMENTS,Travel/Subsistence,OYSTER AUTO TOPUP,23-Aug-2020,20.00
BEREAVEMENT SERVICES,Cemetery & Crematorium,AMZNMktplace,23-Aug-2020,17.00
CHILDREN LOOKED AFTER,Travel/Subsistence,OYSTER BUS AUTOLOAD,23-Aug-2020,20.00
FAMILY SUPPORT & CHILD PROTECTION,Travel/Subsistence,OYSTER BUS AUTOLOAD,23-Aug-2020,20.00
FAMILY SUPPORT & CHILD PROTECTION,Travel/Subsistence,OYSTER BUS AUTOLOAD,23-Aug-2020,20.00
FAMILY SUPPORT & CHILD PROTECTION,Travel/Subsistence,OYSTER BUS AUTOLOAD,23-Aug-2020,20.00
LIBRARIES & ARCHIVES,Facilities-Market Research,ZOOM.GBP,23-Aug-2020,85.15
16+ INDEPENDENCE SERVICE (LEAVING CARE),Catering Food & Drink,TESCO GIFT CARD,24-Aug-2020,25.00
16+ INDEPENDENCE SERVICE (LEAVING CARE),Domestic Goods-Other,ARGOS LTD,24-Aug-2020,248.93
16+ INDEPENDENCE SERVICE (LEAVING CARE),Facilities-Printing,Amazon.co.uk,24-Aug-2020,50.00
16+ INDEPENDENCE SERVICE (LEAVING CARE),Works-Construction,DISCOUNT CARPETS S,24-Aug-2020,385.00
ASC SENIOR MANAGEMENT,Domestic Goods-Other,AMAZON.CO.UK,24-Aug-2020,97.50
ASC SENIOR MANAGEMENT,Domestic Goods-Other,AMAZON.CO.UK,24-Aug-2020,97.50
ASC SENIOR MANAGEMENT,Facilities-Printing,Amazon.co.uk,24-Aug-2020,97.50
CHILDREN LOOKED AFTER,Accommodation,CASH ADVANCE FEE,24-Aug-2020,3.54
CHILDREN WITH DISABILITIES,Travel/Subsistence,SOUTHERN RAILWAY WEB,24-Aug-2020,46.00
CHILDREN WITH DISABILITIES,Travel/Subsistence,OYSTER BUS AUTOLOAD,24-Aug-2020,20.00
EARLY HELP,Accommodation,CASH ADVANCE FEE,24-Aug-2020,2.95
EARLY HELP,Taxi Fares,UBER   *TRIP,24-Aug-2020,39.96
FAMILY SUPPORT & CHILD PROTECTION,Accommodation,CASH ADVANCE FEE,24-Aug-2020,6.49
FAMILY SUPPORT & CHILD PROTECTION,Domestic Goods-Other,AMZNMKTPLACE AMAZON.CO.UK,24-Aug-2020,137.99
FAMILY SUPPORT & CHILD PROTECTION,Domestic Goods-Other,ARGOS LTD,24-Aug-2020,39.99
LEARNING & DEVELOPMENT,Financial Services,C2E754200034J UKVI,24-Aug-2020,"3,199.00"
LEARNING & DEVELOPMENT,Financial Services,C2E754200036K UKVI,24-Aug-2020,"3,199.00"
LEARNING & DEVELOPMENT,Financial Services,C2E754200031T UKVI,24-Aug-2020,"3,199.00"
LIBRARIES & ARCHIVES,Education-Library Books,Amazon.co.uk,24-Aug-2020,8.78
LIBRARIES & ARCHIVES,Education-Toys,AMZNMktplace,24-Aug-2020,461.33
MH SERVICES,Legal Services-Other,HMCOURTS-SERVICE.G,24-Aug-2020,150.00
PARKS & LEISURE SERVICES,Building-Timber,SCREWFIX DIRECT,24-Aug-2020,26.95
PARKS & LEISURE SERVICES,Building-Timber,SELCO BUILDERS WAR,24-Aug-2020,245.94
PARKS & LEISURE SERVICES,Horticultural-Other,WWW.KEDEL.CO.UK,24-Aug-2020,109.75
REGISTRAR SERVICES,Domestic Goods-Other,AMZNMktplace,24-Aug-2020,29.98
16+ INDEPENDENCE SERVICE (LEAVING CARE),Accommodation,PREMIER INN44529460,25-Aug-2020,38.00
16+ INDEPENDENCE SERVICE (LEAVING CARE),Catering Food & Drink,TESCO GIFT CARD,25-Aug-2020,40.00
16+ INDEPENDENCE SERVICE (LEAVING CARE),Domestic Goods-Other,AMAZON.CO.UK,25-Aug-2020,20.00
16+ INDEPENDENCE SERVICE (LEAVING CARE),Facilities-Printing,Amazon.co.uk,25-Aug-2020,60.00
ASC SENIOR MANAGEMENT,Domestic Goods-Other,AMAZON.CO.UK,25-Aug-2020,195.00
ASC SENIOR MANAGEMENT,Facilities-Printing,Amazon.co.uk,25-Aug-2020,195.00
CONTRACT MANAGEMENT,Building-General,PENNY SAVERS,25-Aug-2020,-8.02
CONTRACT MANAGEMENT,Works-Construction/Materials,MEGALINK (UK) LTD,25-Aug-2020,60.00
EARLY HELP,Clothing-Children/Adults,Marks and Spencer PLC,25-Aug-2020,21.45
FAMILY SUPPORT & CHILD PROTECTION,Domestic Goods-Other,ARGOS LTD,25-Aug-2020,113.93
FAMILY SUPPORT & CHILD PROTECTION,Travel/Subsistence,thetrainline.com,25-Aug-2020,34.83
INTERNAL AUDIT,Travel/Subsistence,TFL BUSINESS BOPS WEB,25-Aug-2020,15.00
PARKING INVESTIGATIONS,Travel/Subsistence,OYSTER BUS AUTOLOAD,25-Aug-2020,40.00
PARKS & LEISURE SERVICES,Building-Electrical,ARC COMPONENTS LTD,25-Aug-2020,16.45
PARKS & LEISURE SERVICES,Environmental-Pest Control,PESTHELP,25-Aug-2020,48.94
16+ INDEPENDENCE SERVICE (LEAVING CARE),Facilities-Printing,Amazon.co.uk,26-Aug-2020,20.00
16+ INDEPENDENCE SERVICE (LEAVING CARE),Financial Services,ROYAL BANK UK /,26-Aug-2020,120.00
ACCESS & ASSESSMENTS,Travel/Subsistence,OYSTER BUS AUTOLOAD,26-Aug-2020,60.00
ALD SERVICES,Domestic Goods-Other,AMZNMktplace,26-Aug-2020,119.00
CONTRACT MANAGEMENT,Building-General,B & Q 1037,26-Aug-2020,54.19
CSC SENIOR MANAGEMENT,Domestic Goods-Other,AMAZON.CO.UK,26-Aug-2020,20.00
EVENTS & FILMING,IT Software,GRAMMARLY COMNXAVJL,26-Aug-2020,109.86
FAMILY SUPPORT & CHILD PROTECTION,Catering Food & Drink,TESCO GIFT CARD,26-Aug-2020,30.00
FAMILY SUPPORT & CHILD PROTECTION,Financial Services,HM PASSPORT OFFICE,26-Aug-2020,80.50
FAMILY SUPPORT & CHILD PROTECTION,Travel/Subsistence,OYSTER BUS AUTOLOAD,26-Aug-2020,20.00
HIGHWAYS,Facilities-Printing,BRIGHTON PRINT CENTRE,26-Aug-2020,88.00
HIGHWAYS,Vehicle Hire,Zipcar UK Limited,26-Aug-2020,84.00
HOUSING OPTIONS - GF,Furniture-Domestic Furniture,IKEA LTD SHOP ONLINE,26-Aug-2020,722.50
MH SERVICES,Taxi Fares,WWW.ADDISONLEE.COM,26-Aug-2020,42.48
PARKING OPERATIONS,Domestic Goods-Other,AMAZON.CO.UK,26-Aug-2020,90.19
FAMILY SUPPORT & CHILD PROTECTION,Accommodation,CASH ADVANCE FEE,27-Aug-2020,3.54
FAMILY SUPPORT & CHILD PROTECTION,Accommodation,PREMIER INN44529460,27-Aug-2020,38.00
HIGHWAYS,Domestic Goods-Other,SAFE LOCKS,27-Aug-2020,25.80
LIBRARIES & ARCHIVES,Education-Library Books,AMZNMKTPLACE AMAZON.CO.UK,27-Aug-2020,13.04
16+ INDEPENDENCE SERVICE (LEAVING CARE),Catering Food & Drink,ASDA,28-Aug-2020,130.00
16+ INDEPENDENCE SERVICE (LEAVING CARE),Catering Food & Drink,TESCO GIFT CARD,28-Aug-2020,30.00
16+ INDEPENDENCE SERVICE (LEAVING CARE),Financial Services,ROYAL BANK UK /,28-Aug-2020,100.00
16+ INDEPENDENCE SERVICE (LEAVING CARE),Travel/Subsistence,OYSTER BUS AUTOLOAD,28-Aug-2020,20.00
16+ INDEPENDENCE SERVICE (LEAVING CARE),Travel/Subsistence,OYSTER AUTO TOPUP,28-Aug-2020,20.00
ADOPTIONS,Financial Services,ROYAL BANK UK /,28-Aug-2020,240.00
ADOPTIONS,Financial Services,Sainsburys Bank CASH,28-Aug-2020,10.00
CHILDREN LOOKED AFTER,Travel/Subsistence,OYSTER AUTO TOPUP,28-Aug-2020,40.00
EVENTS & FILMING,Professional & Advisory Services,ALLSEATED SUBSCRIPTION,28-Aug-2020,69.50
FAMILY SUPPORT & CHILD PROTECTION,Arts & Leisure Services,WWW.GLL.ORG/MEMBERSHIP,28-Aug-2020,197.40
FAMILY SUPPORT & CHILD PROTECTION,Financial Services,ROYAL BANK UK /,28-Aug-2020,300.00
FAMILY SUPPORT & CHILD PROTECTION,Financial Services,ROYAL BANK UK /,28-Aug-2020,60.00
FAMILY SUPPORT & CHILD PROTECTION,Travel/Subsistence,OYSTER BUS AUTOLOAD,28-Aug-2020,40.00
FAMILY SUPPORT & CHILD PROTECTION,Travel/Subsistence,OYSTER BUS AUTOLOAD,28-Aug-2020,20.00
HIGHWAYS,Vehicle Hire,Zipcar UK Limited,28-Aug-2020,85.00
LIBRARIES & ARCHIVES,Education-Library Books,AMZNMktplace,28-Aug-2020,68.08
PARKS & LEISURE SERVICES,Financial Services,LAND REGISTRY,28-Aug-2020,6.00
PARKS & LEISURE SERVICES,Financial Services,LAND REGISTRY,28-Aug-2020,6.00
PARKS & LEISURE SERVICES,Financial Services,LAND REGISTRY,28-Aug-2020,6.00
PARKS & LEISURE SERVICES,Financial Services,LAND REGISTRY,28-Aug-2020,6.00
PARKS & LEISURE SERVICES,Financial Services,LAND REGISTRY,28-Aug-2020,6.00
SUBSTANCE MISUSE,Healthcare-Drugs,BOOTS.COM,28-Aug-2020,53.94
ACCESS & ASSESSMENTS,Travel/Subsistence,OYSTER BUS AUTOLOAD,29-Aug-2020,40.00
ACCESS & ASSESSMENTS,Travel/Subsistence,OYSTER BUS AUTOLOAD,29-Aug-2020,20.00
FAMILY SUPPORT & CHILD PROTECTION,Travel/Subsistence,OYSTER BUS AUTOLOAD,29-Aug-2020,20.00
FAMILY SUPPORT & CHILD PROTECTION,Travel/Subsistence,OYSTER AUTO TOPUP,29-Aug-2020,20.00
16+ INDEPENDENCE SERVICE (LEAVING CARE),Domestic Goods-Other,ARGOS LTD,30-Aug-2020,965.93
16+ INDEPENDENCE SERVICE (LEAVING CARE),Domestic Goods-Other,ARGOS LTD,30-Aug-2020,293.90
16+ INDEPENDENCE SERVICE (LEAVING CARE),Travel/Subsistence,OYSTER BUS AUTOLOAD,30-Aug-2020,20.00
ACCESS & ASSESSMENTS,Travel/Subsistence,OYSTER AUTO TOPUP,30-Aug-2020,20.00
FAMILY SUPPORT & CHILD PROTECTION,Travel/Subsistence,OYSTER BUS AUTOLOAD,30-Aug-2020,20.00
FAMILY SUPPORT & CHILD PROTECTION,Travel/Subsistence,OYSTER BUS AUTOLOAD,30-Aug-2020,20.00
16+ INDEPENDENCE SERVICE (LEAVING CARE),Accommodation,CASH ADVANCE FEE,31-Aug-2020,5.90
16+ INDEPENDENCE SERVICE (LEAVING CARE),Accommodation,CASH ADVANCE FEE,31-Aug-2020,5.90
ACCESS & ASSESSMENTS,Travel/Subsistence,OYSTER BUS AUTOLOAD,31-Aug-2020,20.00
ADOPTIONS,Accommodation,CASH ADVANCE FEE,31-Aug-2020,7.08
ADOPTIONS,Accommodation,CASH ADVANCE FEE,31-Aug-2020,2.95
CAMPAIGNS & COMMUNICATIONS,IT Services,WINSERVE3136709,31-Aug-2020,11.99
CHILDREN WITH DISABILITIES,Clothing-Children/Adults,SCHOOLU-FORMDIRECT,31-Aug-2020,-2.85
FAMILY SUPPORT & CHILD PROTECTION,Accommodation,CASH ADVANCE FEE,31-Aug-2020,2.95
FAMILY SUPPORT & CHILD PROTECTION,Travel/Subsistence,OYSTER BUS AUTOLOAD,31-Aug-2020,20.00
LIBRARIES & ARCHIVES,Education-Library Books,AMZNMktplace,31-Aug-2020,76.25
FAMILY SUPPORT & CHILD PROTECTION,Financial Services,ROYAL BANK UK /,01-Sep-2020,100.00
16+ INDEPENDENCE SERVICE (LEAVING CARE),Domestic Goods-Other,WWW.VOUCHEREXPRESS.CO.,02-Sep-2020,20.00
ASC SENIOR MANAGEMENT,Domestic Goods-Other,AMZNMktplace,02-Sep-2020,22.09
ASC SENIOR MANAGEMENT,Domestic Goods-Other,AMZNMKTPLACE AMAZON.CO.UK,02-Sep-2020,12.99
BEREAVEMENT SERVICES,Cemetery & Crematorium,LAMBETH INTERNET PAYM,02-Sep-2020,14.00
CAMPAIGNS & COMMUNICATIONS,IT Services,GOOGLE *GSUITE_lambeth,02-Sep-2020,20.70
CONTRACT SERVICES,IT Software,WHITEPAPER.CO.UK,02-Sep-2020,356.40
FAMILY SUPPORT & CHILD PROTECTION,Accommodation,PREMIER INN44537355,02-Sep-2020,39.50
FAMILY SUPPORT & CHILD PROTECTION,Clothing-Children/Adults,SCHOOLU-FORMDIRECT,02-Sep-2020,81.17
FAMILY SUPPORT & CHILD PROTECTION,Financial Services,LOYD - 18 ACRE LANE,02-Sep-2020,220.00
FAMILY SUPPORT & CHILD PROTECTION,Financial Services,LOYD - 18 ACRE LANE,02-Sep-2020,100.00
FAMILY SUPPORT & CHILD PROTECTION,Financial Services,LOYD - 18 ACRE LANE,02-Sep-2020,200.00
FAMILY SUPPORT & CHILD PROTECTION,Travel/Subsistence,OYSTER ONLINE,02-Sep-2020,110.00
FAMILY SUPPORT & CHILD PROTECTION,Travel/Subsistence,OYSTER ONLINE,02-Sep-2020,35.00
FOSTERING & PERMANENCY,Travel/Subsistence,OYSTER AUTO TOPUP,02-Sep-2020,20.00
HOUSING MANAGEMENT SERVICES,Facilities-Printing,Amazon.co.uk,02-Sep-2020,10.98
LAMBETH COUNTRY SHOW,Accommodation,NCVO,02-Sep-2020,144.00
LOCAL SAFEGUARDING CHILDRENS BOARD (LSCB),Domestic Goods-Other,AMZNMKTPLACE AMAZON.CO.UK,02-Sep-2020,34.50
LOCAL SAFEGUARDING CHILDRENS BOARD (LSCB),Domestic Goods-Other,AMZNMKTPLACE AMAZON.CO.UK,02-Sep-2020,24.31
LOCAL SAFEGUARDING CHILDRENS BOARD (LSCB),Domestic Goods-Other,AMZNMktplace,02-Sep-2020,44.28
PD SERVICES,Accommodation,TRAVELODGE GB0000,02-Sep-2020,292.66
SHELTERED HOUSING,Catering Food & Drink,TESCO STORES 6231,02-Sep-2020,21.05
16+ INDEPENDENCE SERVICE (LEAVING CARE),Domestic Goods-Other,ARGOS LTD,03-Sep-2020,741.94
16+ INDEPENDENCE SERVICE (LEAVING CARE),Facilities-Storage,WWW.SAFESTORE.CO.UK,03-Sep-2020,186.05
16+ INDEPENDENCE SERVICE (LEAVING CARE),Financial Services,ROYAL BANK UK /,03-Sep-2020,60.00
16+ INDEPENDENCE SERVICE (LEAVING CARE),Travel/Subsistence,thetrainline.com,03-Sep-2020,285.27
ACCESS & ASSESSMENTS,Travel/Subsistence,OYSTER BUS AUTOLOAD,03-Sep-2020,20.00
ACCESS & ASSESSMENTS,Travel/Subsistence,OYSTER BUS AUTOLOAD,03-Sep-2020,20.00
ASC SENIOR MANAGEMENT,Building-Tools,WWW.YAHIRE.COM,03-Sep-2020,720.90
BEREAVEMENT SERVICES,Cemetery & Crematorium,AMZNMktplace,03-Sep-2020,76.45
CHILDREN LOOKED AFTER,Financial Services,GEN REGISTER OFFICE,03-Sep-2020,73.00
CHILDREN LOOKED AFTER,Travel/Subsistence,OYSTER AUTO TOPUP,03-Sep-2020,20.00
FAMILY SUPPORT & CHILD PROTECTION,Accommodation,CASH ADVANCE FEE,03-Sep-2020,6.49
FAMILY SUPPORT & CHILD PROTECTION,Accommodation,CASH ADVANCE FEE,03-Sep-2020,2.95
FAMILY SUPPORT & CHILD PROTECTION,Accommodation,CASH ADVANCE FEE,03-Sep-2020,5.90
FAMILY SUPPORT & CHILD PROTECTION,Catering Food & Drink,TESCO GIFT CARD,03-Sep-2020,100.00
FAMILY SUPPORT & CHILD PROTECTION,Travel/Subsistence,OYSTER BUS AUTOLOAD,03-Sep-2020,20.00
FAMILY SUPPORT & CHILD PROTECTION,Travel/Subsistence,OYSTER AUTO TOPUP,03-Sep-2020,20.00
FAMILY SUPPORT & CHILD PROTECTION,Travel/Subsistence,OYSTER AUTO TOPUP,03-Sep-2020,20.00
LIBRARIES & ARCHIVES,Education-Library Books,AMZNMktplace,03-Sep-2020,78.00
LOCAL SAFEGUARDING CHILDRENS BOARD (LSCB),Domestic Goods-Other,AMZNMktplace,03-Sep-2020,139.34
MH SERVICES,Legal Services-Other,HMCOURTS-SERVICE.G,03-Sep-2020,75.00
PARKS & LEISURE SERVICES,Building-Timber,SELCO BUILDERS WAR,03-Sep-2020,40.60
PARKS & LEISURE SERVICES,Building-Timber,SELCO BUILDERS WAR,03-Sep-2020,98.38
SERVICE IMPROVEMENT,IT Services,AWS EMEA,03-Sep-2020,139.08
SUBSTANCE MISUSE,Catering Food & Drink,TESCO STORES 5999,03-Sep-2020,49.80
16+ INDEPENDENCE SERVICE (LEAVING CARE),Catering Food & Drink,TESCO GIFT CARD,04-Sep-2020,50.00
16+ INDEPENDENCE SERVICE (LEAVING CARE),Financial Services,HSBC/BRIXTON RD E1,04-Sep-2020,60.00
16+ INDEPENDENCE SERVICE (LEAVING CARE),Travel/Subsistence,SOUTHERN RAILWAY WEB,04-Sep-2020,27.20
16+ INDEPENDENCE SERVICE (LEAVING CARE),Travel/Subsistence,OYSTER AUTO TOPUP,04-Sep-2020,20.00
16+ INDEPENDENCE SERVICE (LEAVING CARE),Travel/Subsistence,OYSTER BUS AUTOLOAD,04-Sep-2020,20.00
ASC SENIOR MANAGEMENT,Healthcare Equipment,ISHOP,04-Sep-2020,69.32
BEREAVEMENT SERVICES,Domestic Goods-Other,AMZNMktplace,04-Sep-2020,55.99
CAMPAIGNS & COMMUNICATIONS,IT Services,BUZZSUMO.COM PRO,04-Sep-2020,92.84
CAMPAIGNS & COMMUNICATIONS,IT Services,NATIONBUILDER,04-Sep-2020,92.99
CHILDREN LOOKED AFTER,Catering Food & Drink,ASDA,04-Sep-2020,60.00
CHILDREN LOOKED AFTER,Domestic Goods-Other,AMZNMktplace,04-Sep-2020,20.98
CHILDREN LOOKED AFTER,Facilities-Printing,Amazon.co.uk,04-Sep-2020,40.00
CHILDREN LOOKED AFTER,Financial Services,LAMBETH INTERNET PAYM,04-Sep-2020,18.00
CHILDREN LOOKED AFTER,Travel/Subsistence,thetrainline.com,04-Sep-2020,107.29
CHILDREN WITH DISABILITIES,Financial Services,HSBC/BRIXTON RD E1,04-Sep-2020,200.00
EARLY HELP,Clothing-Children/Adults,I & A FASHIONS,04-Sep-2020,22.00
FAMILY SUPPORT & CHILD PROTECTION,Accommodation,CASH ADVANCE FEE,04-Sep-2020,2.95
FAMILY SUPPORT & CHILD PROTECTION,Accommodation,CASH ADVANCE FEE,04-Sep-2020,2.95
FAMILY SUPPORT & CHILD PROTECTION,Catering Food & Drink,TESCO GIFT CARD,04-Sep-2020,50.00
FAMILY SUPPORT & CHILD PROTECTION,Financial Services,NATWEST BANK  /,04-Sep-2020,100.00
FAMILY SUPPORT & CHILD PROTECTION,Financial Services,BT PHONE / ATM KIOSK,04-Sep-2020,15.99
FAMILY SUPPORT & CHILD PROTECTION,Travel/Subsistence,thetrainline.com,04-Sep-2020,34.83
FAMILY SUPPORT & CHILD PROTECTION,Travel/Subsistence,OYSTER BUS AUTOLOAD,04-Sep-2020,40.00
FOSTERING & PERMANENCY,Travel/Subsistence,TRAINLINE,04-Sep-2020,138.06
LIBRARIES & ARCHIVES,Education-Library Books,AMAZON.CO.UK,04-Sep-2020,25.59
LIBRARIES & ARCHIVES,Facilities-Market Research,ZOOM.GBP,04-Sep-2020,35.60
LOCAL SAFEGUARDING CHILDRENS BOARD (LSCB),Domestic Goods-Other,AMZNMktplace,04-Sep-2020,121.80
MH SERVICES,Accommodation,PASHA HOTEL,04-Sep-2020,"1,300.00"
PARKS & LEISURE SERVICES,Building-General,FORTRESS MASTER LOCKSMITH,04-Sep-2020,33.95
PARKS & LEISURE SERVICES,Building-Paint,LEYLAND SDM,04-Sep-2020,4.52
PARKS & LEISURE SERVICES,Consultancy-Business,FORTRESS MASTER LOCKSMITH,04-Sep-2020,47.40
PARKS & LEISURE SERVICES,Domestic Goods-Other,SAFETYSUPPL,04-Sep-2020,24.48
PARKS & LEISURE SERVICES,Facilities-Design & Photography,WWW.STOCKSIGNS.CO.UK,04-Sep-2020,250.00
EVENTS & FILMING,Consultancy-Business,Vistaprint,05-Sep-2020,19.25
FAMILY SUPPORT & CHILD PROTECTION,Travel/Subsistence,OYSTER AUTO TOPUP,05-Sep-2020,20.00
FAMILY SUPPORT & CHILD PROTECTION,Travel/Subsistence,OYSTER BUS AUTOLOAD,05-Sep-2020,20.00
LIBRARIES & ARCHIVES,Education-Library Books,Amazon.co.uk,05-Sep-2020,4.99
LIBRARIES & ARCHIVES,Education-Library Books,AMZNMktplace,05-Sep-2020,27.16
16+ INDEPENDENCE SERVICE (LEAVING CARE),Catering Food & Drink,TESCO GIFT CARD,06-Sep-2020,60.00
16+ INDEPENDENCE SERVICE (LEAVING CARE),Catering Food & Drink,TESCO GIFT CARD,06-Sep-2020,30.00
16+ INDEPENDENCE SERVICE (LEAVING CARE),Domestic Goods-Other,ARGOS LTD,06-Sep-2020,"1,437.92"
16+ INDEPENDENCE SERVICE (LEAVING CARE),Domestic Goods-Other,AMZ*Vytronix,06-Sep-2020,-68.99
16+ INDEPENDENCE SERVICE (LEAVING CARE),Domestic Goods-Other,ARGOS LTD,06-Sep-2020,"1,286.91"
16+ INDEPENDENCE SERVICE (LEAVING CARE),Furniture-Domestic Furniture,CRUSHED VELVET FURNITU,06-Sep-2020,849.00
16+ INDEPENDENCE SERVICE (LEAVING CARE),Furniture-Domestic Furniture,IKEA LTD SHOP ONLINE,06-Sep-2020,255.00
16+ INDEPENDENCE SERVICE (LEAVING CARE),Travel/Subsistence,OYSTER BUS AUTOLOAD,06-Sep-2020,20.00
16+ INDEPENDENCE SERVICE (LEAVING CARE),Travel/Subsistence,OYSTER AUTO TOPUP,06-Sep-2020,20.00
ACCESS & ASSESSMENTS,Travel/Subsistence,OYSTER BUS AUTOLOAD,06-Sep-2020,20.00
EVENTS & FILMING,Consultancy-Business,BLS*MONDAY.COM,06-Sep-2020,148.80
FAMILY SUPPORT & CHILD PROTECTION,Travel/Subsistence,OYSTER BUS AUTOLOAD,06-Sep-2020,20.00
FAMILY SUPPORT & CHILD PROTECTION,Travel/Subsistence,OYSTER BUS AUTOLOAD,06-Sep-2020,20.00
FAMILY SUPPORT & CHILD PROTECTION,Travel/Subsistence,OYSTER AUTO TOPUP,06-Sep-2020,20.00
FAMILY SUPPORT & CHILD PROTECTION,Travel/Subsistence,OYSTER BUS AUTOLOAD,06-Sep-2020,20.00
HOUSING MANAGEMENT SERVICES,Facilities-Market Research,AMAZON PRIME,06-Sep-2020,7.99
LIBRARIES & ARCHIVES,Books/Publications/Resources,AMZNMKTPLACE AMAZON.CO.UK,06-Sep-2020,535.00
LIBRARIES & ARCHIVES,Education-Library Books,AMZNMktplace,06-Sep-2020,85.09
SPECIALIST YOUTH,Travel/Subsistence,OYSTER BUS AUTOLOAD,06-Sep-2020,20.00
16+ INDEPENDENCE SERVICE (LEAVING CARE),Accommodation,CASH ADVANCE FEE,07-Sep-2020,2.95
ALD SERVICES,Domestic Goods-Other,AMZNMktplace,07-Sep-2020,57.52
ASC SENIOR MANAGEMENT,Couriers,MYPARCELDELIVERY.COM LTD,07-Sep-2020,31.69
CHILDREN WITH DISABILITIES,Accommodation,CASH ADVANCE FEE,07-Sep-2020,5.90
CHILDREN WITH DISABILITIES,Travel/Subsistence,OYSTER BUS AUTOLOAD,07-Sep-2020,20.00
CLIENT,IT Software-Customised,MSFT * E0700BPQA5,07-Sep-2020,-24.24
CLIENT,IT Software-Customised,MSFT *<E0700BFU24>,07-Sep-2020,-1.73
CSC SENIOR MANAGEMENT,Accommodation,CASH ADVANCE FEE,07-Sep-2020,2.95
FAMILY SUPPORT & CHILD PROTECTION,Accommodation,CASH ADVANCE FEE,07-Sep-2020,2.95
FOSTERING & PERMANENCY,Horticultural-Other,WWW.PRESTIGEFLOWERS.CO.U,07-Sep-2020,34.29
HOUSING OPTIONS - GF,Furniture-Domestic Furniture,IKEA LTD 144 CROYDON MAIN,07-Sep-2020,116.00
LEGAL SERVICES,Letting Agents,FOXTONS,07-Sep-2020,-700.00
LIBRARIES & ARCHIVES,Education-Library Books,WWW.PRISONS.ORG.UK,07-Sep-2020,120.28
PARKING INVESTIGATIONS,Travel/Subsistence,OYSTER BUS AUTOLOAD,07-Sep-2020,40.00
PARKS & LEISURE SERVICES,Building-Timber,SCREWFIX DIRECT,07-Sep-2020,221.89
PARKS & LEISURE SERVICES,Facilities-Design & Photography,WWW.STOCKSIGNS.CO.UK,07-Sep-2020,81.80
SENIOR MANAGEMENT - ADULTS & PUBLIC HEALTH,Conference Expenses,WWW.ADASS.ORG.UK,07-Sep-2020,120.00
16+ INDEPENDENCE SERVICE (LEAVING CARE),Domestic Goods-Other,ARGOS LTD,08-Sep-2020,420.00
ACCESS & ASSESSMENTS,Financial Services,ROYAL BANK UK /,08-Sep-2020,100.00
ASC SENIOR MANAGEMENT,Domestic Goods-Other,AMZNMKTPLACE AMAZON.CO.UK,08-Sep-2020,33.43
CHILDREN LOOKED AFTER,Travel/Subsistence,OYSTER ONLINE,08-Sep-2020,20.00
CHILDREN LOOKED AFTER,Travel/Subsistence,TRAINLINE,08-Sep-2020,48.31
CHILDREN WITH DISABILITIES,Travel/Subsistence,OYSTER AUTO TOPUP,08-Sep-2020,20.00
CSC SENIOR MANAGEMENT,Domestic Goods-Other,AMZ*DARA TRADING,08-Sep-2020,-64.28
FAMILY SUPPORT & CHILD PROTECTION,Financial Services,ROYAL BANK UK /,08-Sep-2020,80.00
FAMILY SUPPORT & CHILD PROTECTION,Financial Services,ROYAL BANK UK /,08-Sep-2020,50.00
FAMILY SUPPORT & CHILD PROTECTION,Financial Services,ROYAL BANK UK /,08-Sep-2020,60.00
FOSTERING & PERMANENCY,Travel/Subsistence,TRAINLINE,08-Sep-2020,61.02
HOUSING OPTIONS - GF,Books/Publications/Resources,WHICH,08-Sep-2020,11.75
LIBRARIES & ARCHIVES,Education-Library Books,Amazon.co.uk,08-Sep-2020,16.28
MH SERVICES,Legal Services-Other,HMCOURTS-SERVICE.G,08-Sep-2020,75.00
NO RECOURSE TO PUBLIC FUNDS,Facilities-Printing,Amazon.co.uk,08-Sep-2020,14.34
OP SERVICES,Consultancy-Other,CVLE / MPLC,08-Sep-2020,208.60
PD SERVICES,Accommodation,TRAVELODGE GB0000,08-Sep-2020,226.38
TECHNICAL SERVICES,Legal Services-Other,HMCOURTS-SERVICE.G,08-Sep-2020,"1,000.00"
16+ INDEPENDENCE SERVICE (LEAVING CARE),Catering Food & Drink,ASDA,09-Sep-2020,25.00
16+ INDEPENDENCE SERVICE (LEAVING CARE),Catering Food & Drink,TESCO GIFT CARD,09-Sep-2020,50.00
16+ INDEPENDENCE SERVICE (LEAVING CARE),Catering Food & Drink,TESCO GIFT CARD,09-Sep-2020,110.00
16+ INDEPENDENCE SERVICE (LEAVING CARE),Domestic Goods-Other,ARGOS LTD,09-Sep-2020,-289.99
16+ INDEPENDENCE SERVICE (LEAVING CARE),Domestic Goods-Other,ARGOS LTD,09-Sep-2020,161.95
16+ INDEPENDENCE SERVICE (LEAVING CARE),Domestic Goods-Other,AMAZON.CO.UK,09-Sep-2020,40.00
16+ INDEPENDENCE SERVICE (LEAVING CARE),Domestic Goods-Other,WWW.VOUCHEREXPRESS.CO.,09-Sep-2020,20.00
16+ INDEPENDENCE SERVICE (LEAVING CARE),Domestic Goods-Other,WWW.VOUCHEREXPRESS.CO.,09-Sep-2020,30.00
16+ INDEPENDENCE SERVICE (LEAVING CARE),Furniture-Domestic Furniture,CRAZYPRICEBEDS,09-Sep-2020,409.98
16+ INDEPENDENCE SERVICE (LEAVING CARE),Travel/Subsistence,OYSTER BUS AUTOLOAD,09-Sep-2020,20.00
16+ INDEPENDENCE SERVICE (LEAVING CARE),Travel/Subsistence,thetrainline.com,09-Sep-2020,81.26
16+ INDEPENDENCE SERVICE (LEAVING CARE),Travel/Subsistence,EAST MIDLANDS RAIL,09-Sep-2020,61.00
16+ INDEPENDENCE SERVICE (LEAVING CARE),Travel/Subsistence,thetrainline.com,09-Sep-2020,38.34
16+ INDEPENDENCE SERVICE (LEAVING CARE),Travel/Subsistence,OYSTER AUTO TOPUP,09-Sep-2020,20.00
ACCESS & ASSESSMENTS,Travel/Subsistence,OYSTER BUS AUTOLOAD,09-Sep-2020,20.00
ASC SENIOR MANAGEMENT,Facilities-Market Research,ZOOM.GBP,09-Sep-2020,14.39
CHILDREN LOOKED AFTER,Travel/Subsistence,thetrainline.com,09-Sep-2020,33.71
CSC SENIOR MANAGEMENT,Domestic Goods-Other,AMZNMktplace,09-Sep-2020,19.99
EVENTS & FILMING,Furniture-Domestic Furniture,WWW.FURNITUREATWORK.CO,09-Sep-2020,352.80
FAMILY SUPPORT & CHILD PROTECTION,Domestic Goods-Other,ARGOS LTD,09-Sep-2020,82.95
FAMILY SUPPORT & CHILD PROTECTION,Domestic Goods-Other,WWW.VOUCHEREXPRESS.CO.,09-Sep-2020,10.00
FAMILY SUPPORT & CHILD PROTECTION,Financial Services,LOYD - 18 ACRE LANE,09-Sep-2020,120.00
FAMILY SUPPORT & CHILD PROTECTION,Telecommunications,VESTA,09-Sep-2020,30.00
FAMILY SUPPORT & CHILD PROTECTION,Travel/Subsistence,LUL TICKET MACHINE,09-Sep-2020,180.00
FAMILY SUPPORT & CHILD PROTECTION,Travel/Subsistence,OYSTER BUS AUTOLOAD,09-Sep-2020,40.00
FAMILY SUPPORT & CHILD PROTECTION,Travel/Subsistence,LNER WEB SALES,09-Sep-2020,24.00
HIGHWAYS,Facilities-Printing,Minute Man Press Clapha,09-Sep-2020,73.20
HOUSING BENEFIT,IT Software,KAHOOT! AS,09-Sep-2020,288.00
LIBRARIES & ARCHIVES,Travel/Subsistence,OYSTER BUS AUTOLOAD,09-Sep-2020,40.00
LOCAL SAFEGUARDING CHILDRENS BOARD (LSCB),Domestic Goods-Other,AMZNMktplace,09-Sep-2020,49.46
PARKS & LEISURE SERVICES,Building-General,FORTRESS MASTER LOCKSMITH,09-Sep-2020,4.96
PARKS & LEISURE SERVICES,Building-Timber,SELCO TRADING CTR,09-Sep-2020,130.16
PARKS & LEISURE SERVICES,Building-Timber,SCREWFIX DIRECT,09-Sep-2020,56.67
PARKS & LEISURE SERVICES,Consultancy-Other,FLEETSOURCE,09-Sep-2020,90.00
PARKS & LEISURE SERVICES,Stationery,RYMAN 1134,09-Sep-2020,49.99
16+ INDEPENDENCE SERVICE (LEAVING CARE),Catering Food & Drink,TESCO GIFT CARD,10-Sep-2020,50.00
16+ INDEPENDENCE SERVICE (LEAVING CARE),Catering Food & Drink,ASDA,10-Sep-2020,30.00
16+ INDEPENDENCE SERVICE (LEAVING CARE),Catering Food & Drink,TESCO GIFT CARD,10-Sep-2020,30.00
16+ INDEPENDENCE SERVICE (LEAVING CARE),Domestic Goods-Other,ARGOS LTD,10-Sep-2020,270.15
16+ INDEPENDENCE SERVICE (LEAVING CARE),Domestic Goods-Other,ARGOS LTD,10-Sep-2020,321.94
16+ INDEPENDENCE SERVICE (LEAVING CARE),Domestic Goods-Other,ARGOS LTD,10-Sep-2020,144.94
16+ INDEPENDENCE SERVICE (LEAVING CARE),Domestic Goods-Other,ARGOS LTD,10-Sep-2020,768.92
16+ INDEPENDENCE SERVICE (LEAVING CARE),Domestic Goods-Other,WWW.VOUCHEREXPRESS.CO.,10-Sep-2020,30.00
16+ INDEPENDENCE SERVICE (LEAVING CARE),Domestic Goods-Other,ARGOS LTD,10-Sep-2020,163.99
16+ INDEPENDENCE SERVICE (LEAVING CARE),Domestic Goods-Other,WWW.VOUCHEREXPRESS.CO.,10-Sep-2020,30.00
16+ INDEPENDENCE SERVICE (LEAVING CARE),Domestic Goods-Other,ARGOS LTD,10-Sep-2020,829.94
16+ INDEPENDENCE SERVICE (LEAVING CARE),Domestic Goods-Other,WWW.VOUCHEREXPRESS.CO.,10-Sep-2020,80.00
16+ INDEPENDENCE SERVICE (LEAVING CARE),Domestic Goods-Other,WWW.VOUCHEREXPRESS.CO.,10-Sep-2020,80.00
16+ INDEPENDENCE SERVICE (LEAVING CARE),Furniture-Domestic Furniture,IKEA LTD SHOP ONLINE,10-Sep-2020,339.00
16+ INDEPENDENCE SERVICE (LEAVING CARE),Travel/Subsistence,OYSTER AUTO TOPUP,10-Sep-2020,20.00
16+ INDEPENDENCE SERVICE (LEAVING CARE),Travel/Subsistence,thetrainline.com,10-Sep-2020,21.31
ACCESS & ASSESSMENTS,Accommodation,CASH ADVANCE FEE,10-Sep-2020,2.95
ACCESS & ASSESSMENTS,Financial Services,ROYAL BANK UK /,10-Sep-2020,100.00
ADOPTIONS,Accommodation,CASH ADVANCE FEE,10-Sep-2020,2.95
ADOPTIONS,Financial Services,ROYAL BANK UK /,10-Sep-2020,250.00
ADULT LEARNING,Education-Other,Amazon.co.uk,10-Sep-2020,350.00
CHILDREN LOOKED AFTER,Travel/Subsistence,thetrainline.com,10-Sep-2020,38.65
CHILDREN LOOKED AFTER,Travel/Subsistence,OYSTER BUS AUTOLOAD,10-Sep-2020,20.00
CHILDREN LOOKED AFTER,Travel/Subsistence,GREATER ANGLIA TRAINS,10-Sep-2020,25.30
CSC SENIOR MANAGEMENT,Travel/Subsistence,OYSTER BUS AUTOLOAD,10-Sep-2020,20.00
EARLY HELP,Domestic Goods-Other,AMZNMktplace,10-Sep-2020,15.10
FAMILY SUPPORT & CHILD PROTECTION,Accommodation,CASH ADVANCE FEE,10-Sep-2020,3.54
FAMILY SUPPORT & CHILD PROTECTION,Accommodation,CASH ADVANCE FEE,10-Sep-2020,2.95
FAMILY SUPPORT & CHILD PROTECTION,Accommodation,CASH ADVANCE FEE,10-Sep-2020,2.95
FAMILY SUPPORT & CHILD PROTECTION,Domestic Goods-Other,ARGOS LTD,10-Sep-2020,82.95
FAMILY SUPPORT & CHILD PROTECTION,Facilities-Printing,Amazon.co.uk,10-Sep-2020,13.38
FAMILY SUPPORT & CHILD PROTECTION,Financial Services,ROYAL BANK UK /,10-Sep-2020,120.00
FAMILY SUPPORT & CHILD PROTECTION,Travel/Subsistence,OYSTER BUS AUTOLOAD,10-Sep-2020,20.00
FAMILY SUPPORT & CHILD PROTECTION,Travel/Subsistence,OYSTER BUS AUTOLOAD,10-Sep-2020,40.00
FAMILY SUPPORT & CHILD PROTECTION,Travel/Subsistence,OYSTER BUS AUTOLOAD,10-Sep-2020,20.00
LOCAL SAFEGUARDING CHILDRENS BOARD (LSCB),Domestic Goods-Other,AMZ*LightingandMobileA,10-Sep-2020,-8.30
LOCAL SAFEGUARDING CHILDRENS BOARD (LSCB),Domestic Goods-Other,AMZNMktplace,10-Sep-2020,100.00
PARKING INVESTIGATIONS,Travel/Subsistence,OYSTER BUS AUTOLOAD,10-Sep-2020,40.00
PARKS & LEISURE SERVICES,Building-Timber,SELCO TRADING CTR,10-Sep-2020,77.22
PARKS & LEISURE SERVICES,Building-Timber,SELCO TRADING CTR,10-Sep-2020,-82.07
PARKS & LEISURE SERVICES,IT Hardware,HIRE 4 LOWER,10-Sep-2020,92.44
PARKS & LEISURE SERVICES,Mail Services-Postage,THE POST OFFICE,10-Sep-2020,36.48
SCHOOL & EDUCATIONAL IMPROVEMENT SERVICE,Facilities-Advertising,THE PRESS ASSOCIATION LIM,10-Sep-2020,187.20
SUBSTANCE MISUSE,Facilities-Printing,PRINT INTERFACE LTD,10-Sep-2020,70.80
VALUATION & STRATEGIC ASSETS,Utilities,EVERFLOW,10-Sep-2020,454.35
16+ INDEPENDENCE SERVICE (LEAVING CARE),Domestic Goods-Other,ARGOS LTD,11-Sep-2020,-109.99
16+ INDEPENDENCE SERVICE (LEAVING CARE),Facilities-Storage,WWW.SAFESTORE.CO.UK,11-Sep-2020,166.55
16+ INDEPENDENCE SERVICE (LEAVING CARE),Financial Services,LOYD - 18 ACRE LANE,11-Sep-2020,210.00
16+ INDEPENDENCE SERVICE (LEAVING CARE),Travel/Subsistence,OYSTER BUS AUTOLOAD,11-Sep-2020,20.00
ADOPTIONS,Accommodation,CASH ADVANCE FEE,11-Sep-2020,7.08
CHILDREN LOOKED AFTER,Travel/Subsistence,TRAINLINE,11-Sep-2020,48.92
CHILDREN LOOKED AFTER,Travel/Subsistence,SE ONLINE WEB,11-Sep-2020,28.80
CHILDREN LOOKED AFTER,Travel/Subsistence,OYSTER AUTO TOPUP,11-Sep-2020,20.00
CHILDREN LOOKED AFTER,Travel/Subsistence,thetrainline.com,11-Sep-2020,16.32
CHILDREN WITH DISABILITIES,Travel/Subsistence,OYSTER AUTO TOPUP,11-Sep-2020,20.00
FAMILY SUPPORT & CHILD PROTECTION,Accommodation,CASH ADVANCE FEE,11-Sep-2020,2.95
FAMILY SUPPORT & CHILD PROTECTION,Accommodation,CASH ADVANCE FEE,11-Sep-2020,3.54
FAMILY SUPPORT & CHILD PROTECTION,Accommodation,CASH ADVANCE FEE,11-Sep-2020,2.95
FAMILY SUPPORT & CHILD PROTECTION,Facilities-Printing,Amazon.co.uk,11-Sep-2020,14.49
FAMILY SUPPORT & CHILD PROTECTION,Financial Services,GEN REGISTER OFFICE,11-Sep-2020,83.25
FAMILY SUPPORT & CHILD PROTECTION,Financial Services,LAMBETH INTERNET PAYM,11-Sep-2020,14.00
FAMILY SUPPORT & CHILD PROTECTION,IT Software,COMPAREMANVAN,11-Sep-2020,59.74
FAMILY SUPPORT & CHILD PROTECTION,Travel/Subsistence,OYSTER AUTO TOPUP,11-Sep-2020,60.00
FAMILY SUPPORT & CHILD PROTECTION,Travel/Subsistence,OYSTER BUS AUTOLOAD,11-Sep-2020,40.00
MH SERVICES,Legal Services-Other,HMCOURTS-SERVICE.G,11-Sep-2020,75.00
16+ INDEPENDENCE SERVICE (LEAVING CARE),Travel/Subsistence,OYSTER AUTO TOPUP,12-Sep-2020,20.00
ACCESS & ASSESSMENTS,Travel/Subsistence,OYSTER BUS AUTOLOAD,12-Sep-2020,40.00
ACCESS & ASSESSMENTS,Travel/Subsistence,OYSTER BUS AUTOLOAD,12-Sep-2020,40.00
CHILDREN LOOKED AFTER,Travel/Subsistence,OYSTER BUS AUTOLOAD,12-Sep-2020,20.00
CHILDREN WITH DISABILITIES,Travel/Subsistence,OYSTER BUS AUTOLOAD,12-Sep-2020,20.00
FAMILY SUPPORT & CHILD PROTECTION,Travel/Subsistence,OYSTER AUTO TOPUP,12-Sep-2020,40.00
FAMILY SUPPORT & CHILD PROTECTION,Travel/Subsistence,OYSTER BUS AUTOLOAD,12-Sep-2020,20.00
16+ INDEPENDENCE SERVICE (LEAVING CARE),Travel/Subsistence,OYSTER AUTO TOPUP,13-Sep-2020,20.00
CHILDREN LOOKED AFTER,Travel/Subsistence,OYSTER BUS AUTOLOAD,13-Sep-2020,20.00
CHILDREN WITH DISABILITIES,Travel/Subsistence,OYSTER BUS AUTOLOAD,13-Sep-2020,20.00
FAMILY SUPPORT & CHILD PROTECTION,Travel/Subsistence,OYSTER BUS AUTOLOAD,13-Sep-2020,40.00
SPECIALIST YOUTH,Public Transport,OYSTER BUS AUTOLOAD,13-Sep-2020,20.00
16+ INDEPENDENCE SERVICE (LEAVING CARE),Accommodation,CASH ADVANCE FEE,14-Sep-2020,2.95
16+ INDEPENDENCE SERVICE (LEAVING CARE),Accommodation,CASH ADVANCE FEE,14-Sep-2020,2.95
16+ INDEPENDENCE SERVICE (LEAVING CARE),Catering Food & Drink,ASDA,14-Sep-2020,50.00
16+ INDEPENDENCE SERVICE (LEAVING CARE),Financial Services,LOYD - 18 ACRE LANE,14-Sep-2020,60.00
ACCESS & ASSESSMENTS,Domestic Goods-Other,PAYPAL,14-Sep-2020,7.99
CHILDREN LOOKED AFTER,Travel/Subsistence,SE ONLINE WEB,14-Sep-2020,27.40
CONTRACT MANAGEMENT,Domestic Goods-Other,AMZNMktplace,14-Sep-2020,33.70
FAMILY SUPPORT & CHILD PROTECTION,Accommodation,CASH ADVANCE FEE,14-Sep-2020,2.95
FAMILY SUPPORT & CHILD PROTECTION,Financial Services,LOYD - 18 ACRE LANE,14-Sep-2020,40.00
HIGHWAYS,Vehicle Hire,Zipcar UK Limited,14-Sep-2020,40.00
LIBRARIES & ARCHIVES,Education-Library Books,AMAZON.CO.UK,14-Sep-2020,22.17
LIBRARIES & ARCHIVES,Education-Library Books,AMZNMktplace,14-Sep-2020,5.82
MH SERVICES,Legal Services-Other,HMCOURTS-SERVICE.G,14-Sep-2020,75.00
MH SERVICES,Legal Services-Other,HMCOURTS-SERVICE.G,14-Sep-2020,-75.00
SPECIALIST YOUTH,Domestic Goods-Other,AMZNMktplace,14-Sep-2020,61.43
16+ INDEPENDENCE SERVICE (LEAVING CARE),Accommodation,CASH ADVANCE FEE,15-Sep-2020,2.95
16+ INDEPENDENCE SERVICE (LEAVING CARE),Accommodation,CASH ADVANCE FEE,15-Sep-2020,2.95
16+ INDEPENDENCE SERVICE (LEAVING CARE),Travel/Subsistence,TRAINLINE,15-Sep-2020,96.21
16+ INDEPENDENCE SERVICE (LEAVING CARE),Travel/Subsistence,HOTELSCOM9201907458892,15-Sep-2020,55.00
CHILDREN WITH DISABILITIES,Travel/Subsistence,TRAINLINE,15-Sep-2020,49.32
EARLY HELP,Domestic Goods-Other,AMZNMktplace,15-Sep-2020,37.86
EMERGENCY PLANNING,Catering Food & Drink,TESCO STORE 2143,15-Sep-2020,14.30
FAMILY SUPPORT & CHILD PROTECTION,Travel/Subsistence,OYSTER ONLINE,15-Sep-2020,30.00
FAMILY SUPPORT & CHILD PROTECTION,Travel/Subsistence,OYSTER ONLINE,15-Sep-2020,30.00
FAMILY SUPPORT & CHILD PROTECTION,Travel/Subsistence,TRAINLINE,15-Sep-2020,185.70
HIGHWAYS,Vehicle Hire,Zipcar UK Limited,15-Sep-2020,5.00
HOUSING OPTIONS - GF,Furniture-Domestic Furniture,IKEA LTD SHOP ONLINE,15-Sep-2020,179.00
HOUSING OPTIONS - GF,Furniture-Domestic Furniture,SMART LINE FURNITURE24,15-Sep-2020,491.00
LIBRARIES & ARCHIVES,Education-Library Books,AMZNMKTPLACE AMAZON.CO.UK,15-Sep-2020,7.12
PARKS & LEISURE SERVICES,Building-General,B & Q 1009,15-Sep-2020,56.92
PARKS & LEISURE SERVICES,Building-Roofing,TARA FABRICATIONS,15-Sep-2020,199.20
PARKS & LEISURE SERVICES,Building-Timber,SCREWFIX DIRECT,15-Sep-2020,40.98
REGISTRAR SERVICES,Domestic Goods-Other,AMZNMktplace,15-Sep-2020,29.99
SCHOOL & EDUCATIONAL IMPROVEMENT SERVICE,Consultancy-Business,AWEBER COMMUNICATIONS,15-Sep-2020,8.00
SPECIALIST YOUTH,Taxi Fares,WWW.ADDISONLEE.COM,15-Sep-2020,43.90
16+ INDEPENDENCE SERVICE (LEAVING CARE),Domestic Goods-Other,WWW.VOUCHEREXPRESS.CO.,16-Sep-2020,190.00
16+ INDEPENDENCE SERVICE (LEAVING CARE),Domestic Goods-Other,ARGOS LTD,16-Sep-2020,103.90
16+ INDEPENDENCE SERVICE (LEAVING CARE),Financial Services,LOYD - 18 ACRE LANE,16-Sep-2020,120.00
16+ INDEPENDENCE SERVICE (LEAVING CARE),Financial Services,LOYD - 18 ACRE LANE,16-Sep-2020,60.00
16+ INDEPENDENCE SERVICE (LEAVING CARE),IT Software,COMPAREMANVAN,16-Sep-2020,43.89
ACCESS & ASSESSMENTS,Travel/Subsistence,OYSTER AUTO TOPUP,16-Sep-2020,40.00
ASC SENIOR MANAGEMENT,IT Software,UnitedArtsGmbH,16-Sep-2020,450.00
CONTRACT MANAGEMENT,Financial Services,LAMBETH INTERNET PAYM,16-Sep-2020,18.00
CSC SENIOR MANAGEMENT,Financial Services,LOYD - 18 ACRE LANE,16-Sep-2020,40.00
FAMILY SUPPORT & CHILD PROTECTION,Clothing-Children/Adults,SCHOOLU-FORMDIRECT,16-Sep-2020,-2.85
FAMILY SUPPORT & CHILD PROTECTION,Financial Services,LOYD - 18 ACRE LANE,16-Sep-2020,150.00
FAMILY SUPPORT & CHILD PROTECTION,Financial Services,BT PHONE / ATM KIOSK,16-Sep-2020,35.99
FAMILY SUPPORT & CHILD PROTECTION,Works-Construction,SQ *EPENNY LOGISTICS,16-Sep-2020,66.35
HOUSING MANAGEMENT SERVICES,Building-Paint,LEYLAND SDM,16-Sep-2020,51.65
HOUSING MANAGEMENT SERVICES,Domestic Goods-Other,AMZNMktplace,16-Sep-2020,74.97
LIBRARIES & ARCHIVES,Education-Library Books,AMZNMktplace,16-Sep-2020,36.91
LIBRARIES & ARCHIVES,Education-Library Books,AMZNMktplace,16-Sep-2020,57.63
LIBRARIES & ARCHIVES,Education-Library Books,Amazon.co.uk,16-Sep-2020,17.98
MH SERVICES,Legal Services-Other,HMCOURTS-SERVICE.G,16-Sep-2020,75.00
PARKS & LEISURE SERVICES,Legal Services-Other,LAND REGISTRY,16-Sep-2020,6.00
SPECIALIST YOUTH,Domestic Goods-Other,AMZNMktplace,16-Sep-2020,24.99
SPECIALIST YOUTH,Furniture-Office Furniture,AMZNMktplace,16-Sep-2020,236.99
16+ INDEPENDENCE SERVICE (LEAVING CARE),Accommodation,CASH ADVANCE FEE,17-Sep-2020,8.85
16+ INDEPENDENCE SERVICE (LEAVING CARE),Accommodation,CASH ADVANCE FEE,17-Sep-2020,5.90
16+ INDEPENDENCE SERVICE (LEAVING CARE),Domestic Goods-Other,WWW.VOUCHEREXPRESS.CO.,17-Sep-2020,50.00
16+ INDEPENDENCE SERVICE (LEAVING CARE),Domestic Goods-Other,ARGOS LTD,17-Sep-2020,364.99
ACCESS & ASSESSMENTS,Domestic Goods-Other,AMAZON.CO.UK,17-Sep-2020,31.70
ACCESS & ASSESSMENTS,Domestic Goods-Other,PAYPAL,17-Sep-2020,19.95
ACCESS & ASSESSMENTS,Domestic Goods-Other,AMZNMktplace,17-Sep-2020,24.98
ACCESS & ASSESSMENTS,Travel/Subsistence,OYSTER BUS AUTOLOAD,17-Sep-2020,20.00
